Organisation Name,Organisation Code,Effective Date,Directorate,Service Category,Service Category URI,Supplier Name,Payment Date,Transaction Number,Net Amount,Irrecoverable VAT,Purpose_of_the_expenditure,Merchant Category
Wyre Council,http://opendatacommunities.org/doc/district-council/wyre,13/06/2024,People and Places,Cultural and Related Services,132A,Blackpool Council,30/04/2024,PE158084,500.00,0.00,Events Guide feature 2024,Advertising - General
Wyre Council,http://opendatacommunities.org/doc/district-council/wyre,13/06/2024,People and Places,Planning and Development Servs,132C,Duxburys Commercial,25/04/2024,PE158766,610.00,0.00,"letting of Unit 14 Croft Court, Butts Close, FY5 4JX",Advertising - General
Wyre Council,http://opendatacommunities.org/doc/district-council/wyre,13/06/2024,Resources,Cultural and Related Services,132A,Visual Print and Design Ltd,08/04/2024,RS158325,580.00,0.00,Poulton Heritage leaflet flat size 592mm x 210mm roll folded to finished size A5 8pp 150gsm silk x5000 copies,Advertising - General
Wyre Council,http://opendatacommunities.org/doc/district-council/wyre,13/06/2024,Resources,Support Services,135B,Starfish Search Limited,02/04/2024,RS158126,2700.00,0.00,Advertising Director of Transformation & Change w/ Starfish,Advertising - Recruitment
Wyre Council,http://opendatacommunities.org/doc/district-council/wyre,13/06/2024,Resources,Support Services,135B,National World Publishing Ltd,30/04/2024,RS158657,509.76,0.00,Advert relating to: S123 Notice North  Drive Bowling Green Advert reference no. NMC6301137 Notice dates 03/04/2024 & 10/04/2024,Advertising - Statutory Notices
Wyre Council,http://opendatacommunities.org/doc/district-council/wyre,13/06/2024,People and Places,Planning and Development Servs,132C,National World Publishing Ltd,19/04/2024,PE158658,133.56,0.00,Fleetwood Weekly News 17.04.24,Advertising - Statutory Notices
Wyre Council,http://opendatacommunities.org/doc/district-council/wyre,13/06/2024,People and Places,Planning and Development Servs,132C,National World Publishing Ltd,19/04/2024,PE158656,494.70,0.00,Blackpool Gazette and Garstang Courier 17.04.24,Advertising - Statutory Notices
Wyre Council,http://opendatacommunities.org/doc/district-council/wyre,13/06/2024,People and Places,Planning and Development Servs,132C,National World Publishing Ltd,08/04/2024,PE158306,166.32,0.00,Fleetwood Weekly News 03.04.24,Advertising - Statutory Notices
Wyre Council,http://opendatacommunities.org/doc/district-council/wyre,13/06/2024,People and Places,Planning and Development Servs,132C,National World Publishing Ltd,08/04/2024,PE158328,416.07,0.00,Garstang and Blackpool 03.04.24,Advertising - Statutory Notices
Wyre Council,http://opendatacommunities.org/doc/district-council/wyre,13/06/2024,Resources,Housing General Fund,134A,Huck Properties LTD,10/04/2024,RS158399,2050.00,0.00,Affordable warmth ,Affordable Warmth 2017/18
Wyre Council,http://opendatacommunities.org/doc/district-council/wyre,13/06/2024,Resources,Housing General Fund,134A,Huck Properties LTD,10/04/2024,RS158398,75.00,0.00,Repair WC ,Affordable Warmth 2017/18
Wyre Council,http://opendatacommunities.org/doc/district-council/wyre,13/06/2024,Resources,Housing General Fund,134A,RHEA PROJECTS LTD,09/04/2024,RS158355,60.00,0.00,Affordable warmth ,Affordable Warmth 2017/18
Wyre Council,http://opendatacommunities.org/doc/district-council/wyre,13/06/2024,Resources,Housing General Fund,134A,RHEA PROJECTS LTD,29/04/2024,RS158848,1970.00,0.00,Affordable warmth,Affordable Warmth 2017/18
Wyre Council,http://opendatacommunities.org/doc/district-council/wyre,13/06/2024,Resources,Housing General Fund,134A,RHEA PROJECTS LTD,29/04/2024,RS158851,2045.00,0.00,Affordable warmth,Affordable Warmth 2017/18
Wyre Council,http://opendatacommunities.org/doc/district-council/wyre,13/06/2024,Resources,Housing General Fund,134A,RHEA PROJECTS LTD,29/04/2024,RS158850,1970.00,0.00,Affordable warmth,Affordable Warmth 2017/18
Wyre Council,http://opendatacommunities.org/doc/district-council/wyre,13/06/2024,Resources,Housing General Fund,134A,RHEA PROJECTS LTD,29/04/2024,RS158849,2350.00,0.00,Affordable warmth,Affordable Warmth 2017/18
Wyre Council,http://opendatacommunities.org/doc/district-council/wyre,13/06/2024,People and Places,Support Services,135B,M J Wilkinson,26/04/2024,PE158837,316.80,0.00,Labour  25/3/24 - 28/3/24 Time sheet 1182,Agency Staff
Wyre Council,http://opendatacommunities.org/doc/district-council/wyre,13/06/2024,People and Places,Support Services,135B,M J Wilkinson,26/04/2024,PE158836,211.20,0.00,Labour 2/4/24 - 3/4/24 Time sheet 11183,Agency Staff
Wyre Council,http://opendatacommunities.org/doc/district-council/wyre,13/06/2024,People and Places,Support Services,135B,M J Wilkinson,26/04/2024,PE158839,211.20,0.00,Labour  11/3/24 - 12/3/24 Time sheet 11179,Agency Staff
Wyre Council,http://opendatacommunities.org/doc/district-council/wyre,13/06/2024,People and Places,Support Services,135B,M J Wilkinson,26/04/2024,PE158839,211.20,0.00,Labour  13/3/24 - 14/3/24 Time sheet 11180,Agency Staff
Wyre Council,http://opendatacommunities.org/doc/district-council/wyre,13/06/2024,People and Places,Support Services,135B,M J Wilkinson,26/04/2024,PE158835,488.40,0.00,Labour  18/3/24 - 22/3/24 Time sheet 11181,Agency Staff
Wyre Council,http://opendatacommunities.org/doc/district-council/wyre,13/06/2024,People and Places,Support Services,135B,M J Wilkinson,26/04/2024,PE158838,277.20,0.00,Labour  4/3/24 - 12/3/24 Time sheet 11178,Agency Staff
Wyre Council,http://opendatacommunities.org/doc/district-council/wyre,13/06/2024,People and Places,Cultural and Related Services,132A,Catering Elite Ltd,11/04/2024,PE158456,65.40,0.00,Agency staff 31/3/24,Agency Staff
Wyre Council,http://opendatacommunities.org/doc/district-council/wyre,13/06/2024,Resources,Central Services to the Public,131C,The Association Of Electoral Administrators,12/04/2024,RS158476,20891.95,0.00,Consultancy Services March 2024,Agency Staff
Wyre Council,http://opendatacommunities.org/doc/district-council/wyre,13/06/2024,People and Places,Planning and Development Servs,132C,Vivid Resourcing Ltd,11/04/2024,PE158317,7500.00,0.00,Fleetwood market,Agency Staff
Wyre Council,http://opendatacommunities.org/doc/district-council/wyre,13/06/2024,People and Places,Support Services,135B,Vivid Resourcing Ltd,08/04/2024,PE158316,7628.50,0.00,GP Surveyor  03/03/24 to 31/03/24,Agency Staff
Wyre Council,http://opendatacommunities.org/doc/district-council/wyre,13/06/2024,People and Places,Support Services,135B,Vivid Resourcing Ltd,24/04/2024,PE158750,1215.40,0.00,To provide Contaminated land cover  ,Agency Staff
Wyre Council,http://opendatacommunities.org/doc/district-council/wyre,13/06/2024,People and Places,Support Services,135B,Vivid Resourcing Ltd,24/04/2024,PE158320,3189.96,0.00,Appointment to join the Environmental Health team from 28th February 2024 for 3 months contract ,Agency Staff
Wyre Council,http://opendatacommunities.org/doc/district-council/wyre,13/06/2024,People and Places,Support Services,135B,Vivid Resourcing Ltd,29/04/2024,PE158752,4056.50,0.00,GP Surveyor -Period 18/2/24 to 25/2/24,Agency Staff
Wyre Council,http://opendatacommunities.org/doc/district-council/wyre,13/06/2024,People and Places,Support Services,135B,Vivid Resourcing Ltd,25/04/2024,PE158751,2820.78,0.00,To Provide Food Safety cover   ,Agency Staff
Wyre Council,http://opendatacommunities.org/doc/district-council/wyre,13/06/2024,People and Places,Support Services,135B,Vivid Resourcing Ltd,09/04/2024,PE158319,3568.20,0.00,To Provide Food Safety cover ,Agency Staff
Wyre Council,http://opendatacommunities.org/doc/district-council/wyre,13/06/2024,People and Places,Support Services,135B,Vivid Resourcing Ltd,09/04/2024,PE158318,1573.34,0.00,To provide Contaminated land cover  ,Agency Staff
Wyre Council,http://opendatacommunities.org/doc/district-council/wyre,13/06/2024,People and Places,Support Services,135B,G2V Recruitment Group Ltd T/A G2 Recruitment Solu,23/04/2024,PE158723,507.50,0.00,To recruit a Contaminated Land Officer on a temporary contract of 3 months,Agency Staff
Wyre Council,http://opendatacommunities.org/doc/district-council/wyre,13/06/2024,People and Places,Support Services,135B,G2V Recruitment Group Ltd T/A G2 Recruitment Solu,23/04/2024,PE158724,588.00,0.00,To recruit a Contaminated Land Officer on a temporary contract of 3 months,Agency Staff
Wyre Council,http://opendatacommunities.org/doc/district-council/wyre,13/06/2024,People and Places,Support Services,135B,G2V Recruitment Group Ltd T/A G2 Recruitment Solu,23/04/2024,PE158312,483.00,0.00,To recruit a Contaminated Land Officer on a temporary contract of 3 months,Agency Staff
Wyre Council,http://opendatacommunities.org/doc/district-council/wyre,13/06/2024,Resources,Support Services,135B,G2V Recruitment Group Ltd T/A G2 Recruitment Solu,05/04/2024,RS158273,1668.00,0.00,Period end 31/03/2024,Agency Staff
Wyre Council,http://opendatacommunities.org/doc/district-council/wyre,13/06/2024,People and Places,Support Services,135B,G2V Recruitment Group Ltd T/A G2 Recruitment Solu,26/04/2024,PE158840,210.00,0.00,"To recruit a Contaminated Land Officer on a temporary contract of 3 months from Monday 11th March 2024 42 x 15 hrs x 13 weeks = 8,190",Agency Staff
Wyre Council,http://opendatacommunities.org/doc/district-council/wyre,13/06/2024,Resources,Support Services,135B,G2V Recruitment Group Ltd T/A G2 Recruitment Solu,04/04/2024,RS158251,1670.70,0.00,Payment of invoice SL1G2R0136123Period end 24/03/2024,Agency Staff
Wyre Council,http://opendatacommunities.org/doc/district-council/wyre,13/06/2024,People and Places,Cultural and Related Services,132A,Quantum Staffing Solutions Ltd,24/04/2024,PE158470,126.80,0.00,Agency staff 10/4/24,Agency Staff
Wyre Council,http://opendatacommunities.org/doc/district-council/wyre,13/06/2024,People and Places,Cultural and Related Services,132A,Quantum Staffing Solutions Ltd,30/04/2024,PE158834,263.20,0.00,Agency staff 24/4/24,Agency Staff
Wyre Council,http://opendatacommunities.org/doc/district-council/wyre,13/06/2024,Resources,Support Services,135B,Macildowie Associates Limited,24/04/2024,RS158784,3449.75,0.00,Ref - Year End Closure Accountant ,Agency Staff
Wyre Council,http://opendatacommunities.org/doc/district-council/wyre,13/06/2024,Resources,Support Services,135B,Macildowie Associates Limited,17/04/2024,RS158619,3449.75,0.00,Ref: Year End Closure Accountant,Agency Staff
Wyre Council,http://opendatacommunities.org/doc/district-council/wyre,13/06/2024,Resources,Support Services,135B,Macildowie Associates Limited,04/04/2024,RS158242,2759.80,0.00,Ref: - Year End Closure Accountant,Agency Staff
Wyre Council,http://opendatacommunities.org/doc/district-council/wyre,13/06/2024,Resources,Support Services,135B,Macildowie Associates Limited,16/04/2024,RS158437,2759.80,0.00,Ref: - Year End Closure Accountant ,Agency Staff
Wyre Council,http://opendatacommunities.org/doc/district-council/wyre,13/06/2024,People and Places,Cultural and Related Services,132A,M D Security,26/04/2024,PE158827,50.00,0.00,"Riverside Rangers Room, Stanah: service to fire alarm sensors tested",Alarm Systems and Security - Annual
Wyre Council,http://opendatacommunities.org/doc/district-council/wyre,13/06/2024,People and Places,Cultural and Related Services,132A,M D Security,18/04/2024,PE158195,160.00,0.00,Rossall Point: Maintenance of fire alarm system for 1 year,Alarm Systems and Security - Annual
Wyre Council,http://opendatacommunities.org/doc/district-council/wyre,13/06/2024,People and Places,Cultural and Related Services,132A,M D Security,17/04/2024,PE158220,1306.33,0.00,thornton Little Theater: replacement of 18  emergency light fittings,Alarm Systems and Security - Annual
Wyre Council,http://opendatacommunities.org/doc/district-council/wyre,13/06/2024,People and Places,Support Services,135B,M D Security,17/04/2024,PE158215,60.00,0.00,Carried Out emergency light test at Civic Centre,Alarm Systems and Security - Annual
Wyre Council,http://opendatacommunities.org/doc/district-council/wyre,13/06/2024,People and Places,Cultural and Related Services,132A,M D Security,18/04/2024,PE157210,1818.00,0.00,Marine ?Hall: emergency light repairs. Replaced 3 x 50v fittings and 2 x 240v fittings and 5 x circular led fittings,Alarm Systems and Security - Annual
Wyre Council,http://opendatacommunities.org/doc/district-council/wyre,13/06/2024,People and Places,Support Services,135B,M D Security,25/04/2024,PE158791,172.50,0.00,"Civic Centre: replaced key switch in members lounge, bulkhead adjacent 164",Alarm Systems and Security - Responsive
Wyre Council,http://opendatacommunities.org/doc/district-council/wyre,13/06/2024,People and Places,Support Services,135B,M D Security,25/04/2024,PE158790,361.00,0.00,"Civic Centre: replaced exit sign adjacent 174, bulkhead fitting adj 121, externall bulkhead fitting in post room, external bulkhead fitting adj cctv/police area",Alarm Systems and Security - Responsive
Wyre Council,http://opendatacommunities.org/doc/district-council/wyre,13/06/2024,Finance,Support Services,135B,,23/04/2024,WPST00139854,2938.00,0.00,19/4/24 Mar 24 Total Apprenticeship levy,Apprenticeship Levy
Wyre Council,http://opendatacommunities.org/doc/district-council/wyre,13/06/2024,People and Places,Cultural and Related Services,132A,Peter Barton,22/04/2024,PE158498,4500.00,0.00,Big Country at Marine Hall 13/4/24,Artistes Fees
Wyre Council,http://opendatacommunities.org/doc/district-council/wyre,13/06/2024,Resources,Corporate and Democratic Core,131A,PR Chauffeuring Services,02/04/2024,RS158142,1595.00,0.00,Payment to Mayors chauffer for engagements March 2024,Attendant Chauffeur Service
Wyre Council,http://opendatacommunities.org/doc/district-council/wyre,13/06/2024,Finance,Corporate and Democratic Core,131A,NATWEST BANK,23/04/2024,WPST00139899,766.32,0.00,19/04/24 Worldpay invoice 300217189,Bank Charges
Wyre Council,http://opendatacommunities.org/doc/district-council/wyre,13/06/2024,Finance,Corporate and Democratic Core,131A,NATWEST BANK,23/04/2024,WPST00139903,1489.01,0.00,19/04/24 Worldpay invoice 300182602,Bank Charges
Wyre Council,http://opendatacommunities.org/doc/district-council/wyre,13/06/2024,Finance,Corporate and Democratic Core,131A,NATWEST BANK,03/04/2024,WPST00137559,693.21,0.00,28/03/24 01MAR GRP 99795000,Bank Charges
Wyre Council,http://opendatacommunities.org/doc/district-council/wyre,13/06/2024,Resources,Support Services,135B,Arthur J Gallagher Insurance Brokers Ltd,29/04/2024,RS158858,1934.05,0.00,Additional premium in respect of increased sums insured to TLT and YMCA Thornton,Building Insurance Premiums General
Wyre Council,http://opendatacommunities.org/doc/district-council/wyre,13/06/2024,People and Places,Planning and Development Servs,132C,Lancashire County Council,11/04/2024,PE158449,32.50,0.00,Boost business clinic - room hire Garstang library,Business Workshop/Advice/Surgery Events
Wyre Council,http://opendatacommunities.org/doc/district-council/wyre,13/06/2024,People and Places,Cultural and Related Services,132A,APCOA Parking UK Ltd,19/04/2024,PE158638,6.86,0.00,Bank processing costs @0.41p per 100 for collections from business centres for 2023/2024,Cash Collection Security Service
Wyre Council,http://opendatacommunities.org/doc/district-council/wyre,13/06/2024,People and Places,Cultural and Related Services,132A,APCOA Parking UK Ltd,19/04/2024,PE158638,11.33,0.00,cash collection charges,Cash Collection Security Service
Wyre Council,http://opendatacommunities.org/doc/district-council/wyre,13/06/2024,People and Places,Support Services,135B,APCOA Parking UK Ltd,19/04/2024,PE158638,5.43,0.00,Bank processing costs @0.41p per 100 for collections from business centres for 2023/2024,Cash Collection Security Service
Wyre Council,http://opendatacommunities.org/doc/district-council/wyre,13/06/2024,People and Places,Support Services,135B,APCOA Parking UK Ltd,19/04/2024,PE158638,11.33,0.00,cash collection charges,Cash Collection Security Service
Wyre Council,http://opendatacommunities.org/doc/district-council/wyre,13/06/2024,People and Places,Planning and Development Servs,132C,APCOA Parking UK Ltd,19/04/2024,PE158638,11.33,0.00,Cash collection charges,Cash Collection Security Service
Wyre Council,http://opendatacommunities.org/doc/district-council/wyre,13/06/2024,People and Places,Planning and Development Servs,132C,APCOA Parking UK Ltd,19/04/2024,PE158638,31.75,0.00,Bank processing costs @0.41p per 100 for collections from business centres for 2023/2024,Cash Collection Security Service
Wyre Council,http://opendatacommunities.org/doc/district-council/wyre,13/06/2024,People and Places,Parking Services,133F,APCOA Parking UK Ltd,22/04/2024,PE158637,496.97,0.00,"Provide cash collection and processing services for Wyre Council - 1 April 2023 - 31 March 2024  i) Cash collection from P&D car park machines - estimated 135 boxes per month at 11.33 per box ii) Cash processing - estimated 46,600 per month @ 0.44 per �",Cash Collection Security Service
Wyre Council,http://opendatacommunities.org/doc/district-council/wyre,13/06/2024,People and Places,Cultural and Related Services,132A,Nisbetts Next Day Catering Equipment,22/04/2024,PE158674,15.28,0.00,Fiesta hot cup x 4 boxes,Catering Disposables
Wyre Council,http://opendatacommunities.org/doc/district-council/wyre,13/06/2024,People and Places,Environmental Services,132B,N Power LTD,08/04/2024,PE158262,151.57,0.00,Unmetered Electricity Supply for town centre CCTV  1-31 March 2024,CCTV Running Costs
Wyre Council,http://opendatacommunities.org/doc/district-council/wyre,13/06/2024,People and Places,Environmental Services,132B,N Power LTD,08/04/2024,PE158262,101.00,0.00,Unmetered Electricity Supply for town centre CCTV  1-31 March 2024,CCTV Running Costs
Wyre Council,http://opendatacommunities.org/doc/district-council/wyre,13/06/2024,People and Places,Environmental Services,132B,N Power LTD,08/04/2024,PE158262,16.85,0.00,Unmetered Electricity Supply for town centre CCTV  1-31 March 2024,CCTV Running Costs
Wyre Council,http://opendatacommunities.org/doc/district-council/wyre,13/06/2024,Resources,Support Services,135B,Konica Minolta Business Solutions UK LTD,10/04/2024,RS158096,34.65,0.00,Rental Charges - 26th March 2024 - 25/03/2025  WECP - 1840141295,Central Printer/Copier Expenses
Wyre Council,http://opendatacommunities.org/doc/district-council/wyre,13/06/2024,Resources,Support Services,135B,Key Engineering & Hygiene Supplies LTD,24/04/2024,RS158787,10.44,0.00,WASHING UP LIQUID 5 LTR,Cleaning Materials
Wyre Council,http://opendatacommunities.org/doc/district-council/wyre,13/06/2024,Resources,Support Services,135B,Key Engineering & Hygiene Supplies LTD,24/04/2024,RS158787,10.83,0.00,KEYPINE GENERAL DISINFECTANT 5LTR,Cleaning Materials
Wyre Council,http://opendatacommunities.org/doc/district-council/wyre,13/06/2024,Resources,Support Services,135B,Key Engineering & Hygiene Supplies LTD,24/04/2024,RS158787,8.24,0.00,FLORATILE GENERAL PURPOSE  CLEANER 5 LTR,Cleaning Materials
Wyre Council,http://opendatacommunities.org/doc/district-council/wyre,13/06/2024,Resources,Support Services,135B,Key Engineering & Hygiene Supplies LTD,24/04/2024,RS158787,3.08,0.00,BLUE NITRILE POWDER FREE GLOVES LARGE,Cleaning Materials
Wyre Council,http://opendatacommunities.org/doc/district-council/wyre,13/06/2024,Resources,Support Services,135B,Key Engineering & Hygiene Supplies LTD,24/04/2024,RS158787,6.40,0.00,SAFE ZONE PLUS  5 LITRE,Cleaning Materials
Wyre Council,http://opendatacommunities.org/doc/district-council/wyre,13/06/2024,Resources,Support Services,135B,Key Engineering & Hygiene Supplies LTD,24/04/2024,RS158787,3.50,0.00,STANDARD YELLOW DUSTER 20 x 18,Cleaning Materials
Wyre Council,http://opendatacommunities.org/doc/district-council/wyre,13/06/2024,Resources,Support Services,135B,Key Engineering & Hygiene Supplies LTD,24/04/2024,RS158787,263.34,0.00,BLUE INTERFOLD HAND TOWELS 3600 SHEETS,Cleaning Materials
Wyre Council,http://opendatacommunities.org/doc/district-council/wyre,13/06/2024,Resources,Support Services,135B,Key Engineering & Hygiene Supplies LTD,24/04/2024,RS158787,134.68,0.00,SOFTLUX 3 PLY TOILET ROLL(10 X 4),Cleaning Materials
Wyre Council,http://opendatacommunities.org/doc/district-council/wyre,13/06/2024,Resources,Support Services,135B,Key Engineering & Hygiene Supplies LTD,24/04/2024,RS158787,7.23,0.00,EVANS FOAMING LEMON SOAP 5L,Cleaning Materials
Wyre Council,http://opendatacommunities.org/doc/district-council/wyre,13/06/2024,Resources,Support Services,135B,Key Engineering & Hygiene Supplies LTD,24/04/2024,RS158787,28.98,0.00,REGULAR BLACK SACKS 18X29X38,Cleaning Materials
Wyre Council,http://opendatacommunities.org/doc/district-council/wyre,13/06/2024,Resources,Support Services,135B,Key Engineering & Hygiene Supplies LTD,24/04/2024,RS158787,27.54,0.00,EAUFRESH NON ACIDIC POT POURRI TOILET CLEANER 1 LTR,Cleaning Materials
Wyre Council,http://opendatacommunities.org/doc/district-council/wyre,13/06/2024,Resources,Support Services,135B,Key Engineering & Hygiene Supplies LTD,22/04/2024,RS158487,9.18,0.00,EAUFRESH NON ACIDIC POT POURRI TOILET CLEANER 1 LTR,Cleaning Materials
Wyre Council,http://opendatacommunities.org/doc/district-council/wyre,13/06/2024,Resources,Support Services,135B,Key Engineering & Hygiene Supplies LTD,22/04/2024,RS158487,103.60,0.00,WHITE 2PLY LUXURY TOILET ROLL 320 40 PER PACK,Cleaning Materials
Wyre Council,http://opendatacommunities.org/doc/district-council/wyre,13/06/2024,Resources,Support Services,135B,Key Engineering & Hygiene Supplies LTD,22/04/2024,RS158487,6.40,0.00,SAFE ZONE PLUS  5 LITRE,Cleaning Materials
Wyre Council,http://opendatacommunities.org/doc/district-council/wyre,13/06/2024,Resources,Support Services,135B,Key Engineering & Hygiene Supplies LTD,22/04/2024,RS158487,146.30,0.00,BLUE INTERFOLD HAND TOWELS 3600 SHEETS,Cleaning Materials
Wyre Council,http://opendatacommunities.org/doc/district-council/wyre,13/06/2024,Resources,Support Services,135B,Key Engineering & Hygiene Supplies LTD,22/04/2024,RS158487,28.98,0.00,REGULAR BLACK SACKS 18X29X38,Cleaning Materials
Wyre Council,http://opendatacommunities.org/doc/district-council/wyre,13/06/2024,Resources,Support Services,135B,Key Engineering & Hygiene Supplies LTD,22/04/2024,RS158487,6.38,0.00,KEYPINE GENERAL DISINFECTANT 5LTR,Cleaning Materials
Wyre Council,http://opendatacommunities.org/doc/district-council/wyre,13/06/2024,Resources,Support Services,135B,Key Engineering & Hygiene Supplies LTD,22/04/2024,RS158487,7.52,0.00,EVANS FOAMING LEMON SOAP 5L,Cleaning Materials
Wyre Council,http://opendatacommunities.org/doc/district-council/wyre,13/06/2024,Resources,Support Services,135B,Key Engineering & Hygiene Supplies LTD,22/04/2024,RS158487,38.16,0.00,BRASSO POLISH 175ML,Cleaning Materials
Wyre Council,http://opendatacommunities.org/doc/district-council/wyre,13/06/2024,Resources,Support Services,135B,Key Engineering & Hygiene Supplies LTD,22/04/2024,RS158487,14.34,0.00,LIQUID SPRAY POLISH 750ML TRIGGER SPRAY,Cleaning Materials
Wyre Council,http://opendatacommunities.org/doc/district-council/wyre,13/06/2024,Resources,Support Services,135B,Amazon Business,23/04/2024,RS158718,31.20,0.00,DOMESTOS CITRUS FRESH 750ML,Cleaning Materials
Wyre Council,http://opendatacommunities.org/doc/district-council/wyre,13/06/2024,People and Places,Cultural and Related Services,132A,Amazon Business,23/04/2024,PE158442,11.95,0.00,Bleach x 12,Cleaning Materials
Wyre Council,http://opendatacommunities.org/doc/district-council/wyre,13/06/2024,People and Places,Cultural and Related Services,132A,Amazon Business,22/04/2024,PE158671,20.35,0.00,Hand wash pack of 3 x 5,Cleaning Materials
Wyre Council,http://opendatacommunities.org/doc/district-council/wyre,13/06/2024,Resources,Support Services,135B,Amazon Business,08/04/2024,RS158072,24.90,0.00,DOMESTOS CITRUS FRESH 750ML,Cleaning Materials
Wyre Council,http://opendatacommunities.org/doc/district-council/wyre,13/06/2024,Resources,Support Services,135B,Insight Direct (UK) Limited,11/04/2024,RS157158,1154.86,0.00,14 x YEALINK WH62 MONO PORTABLE TEAMS,Comp Hardware Purchases
Wyre Council,http://opendatacommunities.org/doc/district-council/wyre,13/06/2024,Resources,Support Services,135B,CCS MEDIA LTD,17/04/2024,RS158100,538.50,0.00,iiyama-GB3271QSU-B1 iiyama G-MASTER computer monitor 80 cm (31.5``) 2560 x 1440 pixels Wide Quad HD LED Black,Comp Hardware Purchases
Wyre Council,http://opendatacommunities.org/doc/district-council/wyre,13/06/2024,Resources,Support Services,135B,CCS MEDIA LTD,26/04/2024,RS158854,2637.20,0.00,"AOC-CU34G2X/BK AOC G2 LED display 86.4 cm (34``) 3440 x 1440 pixels Quad HD Black, RedScreen size (inch) 34, Panel resolution 3440x1440, Refresh rate 144 Hz, Response time MPRT 1 ms,",Comp Hardware Purchases
Wyre Council,http://opendatacommunities.org/doc/district-council/wyre,13/06/2024,Resources,Support Services,135B,Amazon Business,10/04/2024,RS158411,26.09,0.00,"2 x BUSOHE Cat 8 Ethernet Cable 0.5m (10 Pack), High-Speed 40Gbps 2000MHz Network Cable Braided Flat Gigabit Rj45 STP Shielded Internet Network Lan Cable Cord Compatible for Xbox PS5/4 Modem Router PC.",Comp Hardware Purchases
Wyre Council,http://opendatacommunities.org/doc/district-council/wyre,13/06/2024,Resources,Support Services,135B,Amazon Business,10/04/2024,RS158365,15.79,0.00,4 x PLUXION 5Pack (3/3/6/6/10 FT) iPhone Charger Cable Long Lightning Cable Fast Charging Cord High Speed Data Sync USB Cable for iPhone 14 13 12 11 Pro Max XR XS Mini 8 7 Plus.,Comp Hardware Purchases
Wyre Council,http://opendatacommunities.org/doc/district-council/wyre,13/06/2024,Resources,Support Services,135B,Amazon Business,10/04/2024,RS158336,33.86,0.00,"5 x &#12304;Genuine MFI Certification&#12305; High Speed iPhone Charging Cable, Genuine IPhone Cable Apple Charger Cable [6 FT 3 Set], Compatible with iPhone 14/13/12/11/XS/X/XR/8/7/6Plus, iPad and AirPods, etc...",Comp Hardware Purchases
Wyre Council,http://opendatacommunities.org/doc/district-council/wyre,13/06/2024,Resources,Support Services,135B,Amazon Business,10/04/2024,RS158367,57.68,0.00,8 x 3 pack White Usb Plug For Iphone Plugs Uk 3 Pin Usb Adapter Plug Uk Usb3 Pack Wall Plug-Usb Charger Plug Uk Mobile Phone Mains Chargers Usb Plugs Compatible With Other Mobiles/Iphone/Samsung/Ipads.,Comp Hardware Purchases
Wyre Council,http://opendatacommunities.org/doc/district-council/wyre,13/06/2024,Resources,Support Services,135B,Amazon Business,10/04/2024,RS158369,79.84,0.00,"8 x USB C Plug, 3 Pack [MFi Certified] 20W USB C Fast Charger Plug for iPhone 15/14/13/12/11 Pro/Pro Max/XS Max/XS/XR/X/SE 2022/10/8, Galaxy, USB C PD 3.0 Wall Charger Plug UK Type C Power Adaptor.",Comp Hardware Purchases
Wyre Council,http://opendatacommunities.org/doc/district-council/wyre,13/06/2024,Resources,Support Services,135B,Amazon Business,10/04/2024,RS158366,535.70,0.00,"10 x UGREEN Revodok Pro 211 USB C Docking Station, 11-in-1 USB C Hub Dual HDMI 4K@60Hz, Single 8K@30Hz, 10Gbps USB-C and USB-A Data Ports, 100W PD, Ethernet, SD/TF, 3.5mm Audio for XPS, ThinkPad, Surface.",Comp Hardware Purchases
Wyre Council,http://opendatacommunities.org/doc/district-council/wyre,13/06/2024,Resources,Support Services,135B,Amazon Business,22/04/2024,RS158415,291.66,0.00,"1 x Logitech H390 USB Headset with Noise-Cancelling Mic Black, 16 Count.",Comp Hardware Purchases
Wyre Council,http://opendatacommunities.org/doc/district-council/wyre,13/06/2024,Resources,Support Services,135B,Amazon Business,22/04/2024,RS158415,35.35,0.00,"5 x UGREEN USB Extension Cable, USB 3.0 Extender Male to Female 5Gbps High Speed Transfer, Extension Lead Compatible with Keyboard, Mouse, U Disk, Printer, Scanner, Gaming Controller, Charging Cable(3M)",Comp Hardware Purchases
Wyre Council,http://opendatacommunities.org/doc/district-council/wyre,13/06/2024,Resources,Support Services,135B,Amazon Business,22/04/2024,RS158415,99.82,0.00,"2 x INIU Power Bank, 100W 25000mAh Portable Charger Fast Charging USB C Input & Output for Laptop and Phones Battery Pack, Powerbank for iPhone 15 14 13 12 Pro Max Mini Plus Samsung Steam Deck iPad etc.",Comp Hardware Purchases
Wyre Council,http://opendatacommunities.org/doc/district-council/wyre,13/06/2024,Resources,Support Services,135B,Amazon Business,22/04/2024,RS158415,284.90,0.00,10 x SUMVISION PD 3.0 Quick Charge 3.0 100W USB C GaN Dual Port Compact Smart Charger Power Delivery Travel Charger Compatible Latest Macbook Pro iPad Samsung Nintendo (UK DESIGN UK PLUG UK TECH SUPPORT).,Comp Hardware Purchases
Wyre Council,http://opendatacommunities.org/doc/district-council/wyre,13/06/2024,Resources,Support Services,135B,OX IT Solutions Ltd,26/04/2024,RS158852,7100.00,0.00,"HP Pro Mini SFF Desktop PC, i3, 8Gb, 256Gb x 20",Comp Hardware Purchases
Wyre Council,http://opendatacommunities.org/doc/district-council/wyre,13/06/2024,Resources,Support Services,135B,OX IT Solutions Ltd,26/04/2024,RS158852,12060.00,0.00,"HP ProBook 450 G9 i5, 16Gb, 256Gb x 20",Comp Hardware Purchases
Wyre Council,http://opendatacommunities.org/doc/district-council/wyre,13/06/2024,Resources,Support Services,135B,Amazon Business,10/04/2024,RS158410,83.20,0.00,10 x Laptop Stand Desk Tablet Stand (UK COMPANY) Home Office Accessories Adjustable Laptop Stand Computer Holder.,Computer Stationery and Consumables
Wyre Council,http://opendatacommunities.org/doc/district-council/wyre,13/06/2024,Resources,Support Services,135B,Amazon Business,22/04/2024,RS158415,31.44,0.00,"4 x Double Dragon, 100 Premium Blank White PVC Plastic Business ID Cards, CR80, 30 Mil (760 Micron) - Suitable for Zebra Magicard Evolis Fargo Datacard NiSCA ID Card Printer (86 x 54mm).",Computer Stationery and Consumables
Wyre Council,http://opendatacommunities.org/doc/district-council/wyre,13/06/2024,Resources,Support Services,135B,Amazon Business,22/04/2024,RS158415,260.82,0.00,"2 x Durable Aluminium Tablet Holder Desk Clamp | Universal Arm Mount for 7-13`` iPad, Samsung, Surface & More | Anti Theft Lockable & Rotatable 360� | Lazy Bedside Holder.",Computer Stationery and Consumables
Wyre Council,http://opendatacommunities.org/doc/district-council/wyre,13/06/2024,Resources,Support Services,135B,Amazon Business,22/04/2024,RS158415,113.28,0.00,4 x 100 x Clear Enclosed Landscape Holders for Standard Credit & ID Cards - EasyBadge Enclosed Card Holders.,Computer Stationery and Consumables
Wyre Council,http://opendatacommunities.org/doc/district-council/wyre,13/06/2024,Resources,Corporate and Democratic Core,131A,Link Treasury Services LTD,09/04/2024,RS158337,4250.00,0.00,Treasury Services for the period 01/04/2024 to 30/09/2024,Consultants Fees
Wyre Council,http://opendatacommunities.org/doc/district-council/wyre,13/06/2024,Resources,Support Services,135B,PSTAX Consulting Limited,04/04/2024,RS158248,2550.00,0.00,HMRC VAT Inspection Preparation,Consultants Fees
Wyre Council,http://opendatacommunities.org/doc/district-council/wyre,13/06/2024,Resources,Support Services,135B,LG FUTURES LTD,17/04/2024,RS158601,4995.00,0.00,Collection Fund 2023/24 closedown operational support booking for w/c 2 April 2024,Consultants Fees
Wyre Council,http://opendatacommunities.org/doc/district-council/wyre,13/06/2024,People and Places,Planning and Development Servs,132C,AG & P Jackson,09/04/2024,PE158349,578.00,0.00,"Alan Jackson - Agricultural consultee fees for planning application 24/00068/FUL - Land Adjacent To Woodcar, Grange Road, Hambleton, Lancashire",Consultants Fees
Wyre Council,http://opendatacommunities.org/doc/district-council/wyre,13/06/2024,People and Places,Planning and Development Servs,132C,AG & P Jackson,19/04/2024,PE158652,470.00,0.00,"Alan Jackson - Agricultural consultee fees for planning application 24/00245/FUL, Wild Boar Bungalow, Rawcliffe Road, St. Michaels-on-Wyre, Preston, Lancashire, PR3 0UH",Consultants Fees
Wyre Council,http://opendatacommunities.org/doc/district-council/wyre,13/06/2024,People and Places,Planning and Development Servs,132C,AG & P Jackson,19/04/2024,PE158653,578.00,0.00,"Alan Jackson - Agricultural consultee fees for planning application - 24/00239/OUT - Park Farm, Longmoor Lane, NatebyPreston, Lancashire, PR3 0JB",Consultants Fees
Wyre Council,http://opendatacommunities.org/doc/district-council/wyre,13/06/2024,People and Places,Environmental Services,132B,Bloom Procurement Services Ltd,02/04/2024,PE158124,-48475.00,0.00,Preparation of Heat Decarbonisation Plans EvaluationPart of Low Carbon Skills Fund Grant,Consultants Fees
Wyre Council,http://opendatacommunities.org/doc/district-council/wyre,13/06/2024,People and Places,Environmental Services,132B,Bloom Procurement Services Ltd,02/04/2024,PE158124,48475.00,0.00,Preparation of Heat Decarbonisation Plans EvaluationPart of Low Carbon Skills Fund Grant,Consultants Fees
Wyre Council,http://opendatacommunities.org/doc/district-council/wyre,13/06/2024,People and Places,Environmental Services,132B,Bloom Procurement Services Ltd,02/04/2024,PE158127,48475.00,0.00,Preparation of Heat Decarbonisation Plans EvaluationPart of Low Carbon Skills Fund Grant,Consultants Fees
Wyre Council,http://opendatacommunities.org/doc/district-council/wyre,13/06/2024,Resources,Cultural and Related Services,132A,Tabbron Associates,08/04/2024,RS158280,3185.00,0.00,Theatres Consultant,Consultants Fees
Wyre Council,http://opendatacommunities.org/doc/district-council/wyre,13/06/2024,People and Places,"Cultural, Environ and Planning",137B,Halcrow Group LTD,08/04/2024,PE158281,9495.49,0.00,"Extend the existing OBC commission to include the following, as defined in your proposal dated 4 July 2023, Beach Management Plan fee value 40,652, excluding VAT",Consultants Fees (New CCR)
Wyre Council,http://opendatacommunities.org/doc/district-council/wyre,13/06/2024,People and Places,"Cultural, Environ and Planning",137B,Halcrow Group LTD,03/04/2024,PE158223,8317.24,0.00,Current approved order based on agreed additional work. Authorised by Carl Green,Consultants Fees (New CCR)
Wyre Council,http://opendatacommunities.org/doc/district-council/wyre,13/06/2024,People and Places,"Cultural, Environ and Planning",137B,The Lancashire Wildlife Trust Ltd,25/04/2024,PE158459,10200.00,0.00,Contribution of Employment of Engagement Officer  Nicola Parkinson,Consultants Fees (New CCR)
Wyre Council,http://opendatacommunities.org/doc/district-council/wyre,13/06/2024,People and Places,"Cultural, Environ and Planning",137B,The Lancashire Wildlife Trust Ltd,25/04/2024,PE158310,4800.00,0.00,Contribution of Employment of Engagement Officer  Nicola Parkinson,Consultants Fees (New CCR)
Wyre Council,http://opendatacommunities.org/doc/district-council/wyre,13/06/2024,People and Places,"Cultural, Environ and Planning",137B,The Lancashire Wildlife Trust Ltd,25/04/2024,PE158310,521.36,0.00,Travel expenses,Consultants Fees (New CCR)
Wyre Council,http://opendatacommunities.org/doc/district-council/wyre,13/06/2024,People and Places,"Cultural, Environ and Planning",137B,The Lancashire Wildlife Trust Ltd,25/04/2024,PE158309,4494.70,0.00,Contribution of Employment of Engagement Officer  Nicola Parkinson,Consultants Fees (New CCR)
Wyre Council,http://opendatacommunities.org/doc/district-council/wyre,13/06/2024,People and Places,"Cultural, Environ and Planning",137B,Sefton Council,24/04/2024,PE158343,13447.46,0.00,Project Management Services for the Our Future Coast Scheme,Consultants Fees (New CCR)
Wyre Council,http://opendatacommunities.org/doc/district-council/wyre,13/06/2024,People and Places,"Cultural, Environ and Planning",137B,MARLAN MARITIME TECHNOLOGIES LTD,03/04/2024,PE158231,5250.00,0.00,Works to provide synoptic radar monitoring at sites across NW for Eco-CoBS project.Deployment at first site Fleetwood 16 Dec 2021.Contract until 31 March 2027.,Consultants Fees (New CCR)
Wyre Council,http://opendatacommunities.org/doc/district-council/wyre,13/06/2024,People and Places,"Cultural, Environ and Planning",137B,Susannah Bleakley Consulting,10/04/2024,PE158371,68.00,0.00,ECO-CoBS Project,Consultants Fees (New CCR)
Wyre Council,http://opendatacommunities.org/doc/district-council/wyre,13/06/2024,People and Places,"Cultural, Environ and Planning",137B,Susannah Bleakley Consulting,03/04/2024,PE158228,4272.70,0.00,Community Engagement,Consultants Fees (New CCR)
Wyre Council,http://opendatacommunities.org/doc/district-council/wyre,13/06/2024,People and Places,"Cultural, Environ and Planning",137B,Morecambe Bay Partnership,15/04/2024,PE158516,13914.00,0.00,Annual order - Our Future Coast 2024/25,Consultants Fees (New CCR)
Wyre Council,http://opendatacommunities.org/doc/district-council/wyre,13/06/2024,People and Places,"Cultural, Environ and Planning",137B,Morecambe Bay Partnership,15/04/2024,PE158497,6489.73,0.00,Annual order - Our Future Coast 2024/25,Consultants Fees (New CCR)
Wyre Council,http://opendatacommunities.org/doc/district-council/wyre,13/06/2024,People and Places,"Cultural, Environ and Planning",137B,Natural England,24/04/2024,PE158786,2560.85,0.00,"""Provide nature conservation advice in-line with consenting processes""",Consultants Fees (New CCR)
Wyre Council,http://opendatacommunities.org/doc/district-council/wyre,13/06/2024,People and Places,Support Services,135B,Blackpool Skip Hire LTD,16/04/2024,PE158582,225.00,0.00,Empty skips at Cemeteries in Wyre,Containers Skips and Hire
Wyre Council,http://opendatacommunities.org/doc/district-council/wyre,13/06/2024,People and Places,Support Services,135B,Blackpool Skip Hire LTD,04/04/2024,PE158253,225.00,0.00,Skip Empty Poulton Cemetery  27/3/24,Containers Skips and Hire
Wyre Council,http://opendatacommunities.org/doc/district-council/wyre,13/06/2024,People and Places,"Cultural, Environ and Planning",137B,EAS Electrical Mechanical,12/04/2024,PE158479,1912.84,0.00,Power Supplies for external AC Units,Contract (New CCR)
Wyre Council,http://opendatacommunities.org/doc/district-council/wyre,13/06/2024,People and Places,"Cultural, Environ and Planning",137B,EAS Electrical Mechanical,12/04/2024,PE158479,1378.85,0.00,"Power Supplies as agreed for Wyre Council New CCTV Control Room - for CCTV, desks and monitors",Contract (New CCR)
Wyre Council,http://opendatacommunities.org/doc/district-council/wyre,13/06/2024,People and Places,"Cultural, Environ and Planning",137B,HUWS GRAY LTD,08/04/2024,PE158304,470.64,0.00,Fixed mount camera posts (Stanah gateway),Contract (New CCR)
Wyre Council,http://opendatacommunities.org/doc/district-council/wyre,13/06/2024,People and Places,"Cultural, Environ and Planning",137B,BT Surveillance solutions,02/04/2024,PE158143,196222.58,0.00,Provision of Town Centre CCTV upgrade including provision of a new control room as per BT Statement of Works dated 16.11.2023. Phase 1 - Supply of all Equipment,Contract (New CCR)
Wyre Council,http://opendatacommunities.org/doc/district-council/wyre,13/06/2024,People and Places,"Cultural, Environ and Planning",137B,Traffic Technology Ltd,02/04/2024,PE158146,8400.00,0.00,3 x people counters for Stannah Gateway project,Contract (New CCR)
Wyre Council,http://opendatacommunities.org/doc/district-council/wyre,13/06/2024,People and Places,"Cultural, Environ and Planning",137B,Traffic Technology Ltd,02/04/2024,PE158152,-10080.00,0.00,3 x people counters for Stannah Gateway project,Contract (New CCR)
Wyre Council,http://opendatacommunities.org/doc/district-council/wyre,13/06/2024,People and Places,"Cultural, Environ and Planning",137B,Traffic Technology Ltd,11/04/2024,PE158443,3655.00,0.00,Box for PYRO Evo x3ReCycled Post Evo x 5Eco-Visio Light Account (1 year : 1 April to 31 March),Contract (New CCR)
Wyre Council,http://opendatacommunities.org/doc/district-council/wyre,13/06/2024,People and Places,"Cultural, Environ and Planning",137B,F PARKINSON LTD,16/04/2024,PE158460,23278.39,0.00,Contract 524584 Fleetwood Market Restoration & Refurbishment Works - Wyre Capital Additional Works,Contract (New CCR)
Wyre Council,http://opendatacommunities.org/doc/district-council/wyre,13/06/2024,People and Places,"Cultural, Environ and Planning",137B,Balfour Beatty Civil Engineering Ltd,18/04/2024,PE158622,938305.85,0.00,"FAO Chloe SumnerBalfour Beatty Civil Engineering LtdChaddock Lane WorsleyManchesterM28 1XYWyre Beach Management Scheme Phase 2 � Construction Works.Cost 35,601,957.69Carl Green / Mike Wilkinson",Contract (New CCR)
Wyre Council,http://opendatacommunities.org/doc/district-council/wyre,13/06/2024,Finance,Corporate and Democratic Core,131A,,22/04/2024,WPST00139708,11311.41,0.00,18/04 LGA Membership 24/25,Corporate and Professional Subscriptions
Wyre Council,http://opendatacommunities.org/doc/district-council/wyre,13/06/2024,Resources,Support Services,135B,Bill Rogerson Safety Services LTD,11/04/2024,RS158463,90.00,0.00,FAW Refresher Course 2 April 2024Delegate Tracy Waistle,Corporate Training - Health and Safety
Wyre Council,http://opendatacommunities.org/doc/district-council/wyre,13/06/2024,Resources,Support Services,135B,First Aid Direct UK Ltd,17/04/2024,RS158615,395.00,0.00,"To deliver Mental Health Awareness at our depot:Copse Road, Fleetwood FY7 6RPApril 11 20242 sessions 8 a.m. and 12 a.m.",Corporate Training - Health and Safety
Wyre Council,http://opendatacommunities.org/doc/district-council/wyre,13/06/2024,Resources,Support Services,135B,CMS Training Ltd,08/04/2024,RS158323,2340.00,0.00,"TO DELIVERY OF Dealing with Conflict and Aggression training26,27,28 March 2024",Corporate Training - Health and Safety
Wyre Council,http://opendatacommunities.org/doc/district-council/wyre,13/06/2024,Finance,Current Assets,130B,,23/04/2024,WPST00139911,28924.10,0.00,19/04/24 Ctax Refunds,Council Tax Refunds
Wyre Council,http://opendatacommunities.org/doc/district-council/wyre,13/06/2024,Finance,Current Assets,130B,,16/04/2024,WPST00139180,19220.88,0.00,12/04/24 Ctax refunds,Council Tax Refunds
Wyre Council,http://opendatacommunities.org/doc/district-council/wyre,13/06/2024,Finance,Current Assets,130B,,09/04/2024,WPST00138399,19449.97,0.00,05/04/2024CTAX REFUNDS,Council Tax Refunds
Wyre Council,http://opendatacommunities.org/doc/district-council/wyre,13/06/2024,Finance,Current Assets,130B,,30/04/2024,WPST00140839,15843.02,0.00,26/04/24 Ctax refunds,Council Tax Refunds
Wyre Council,http://opendatacommunities.org/doc/district-council/wyre,13/06/2024,Resources,Cultural and Related Services,132A,Preston City Council,10/04/2024,RS158370,18.75,0.00,Just Reminiscing Cleveleys  A5 1pp x 200 copies 18.75  UKSPF Project cards x 8 new A6 1pp **ADDED TO SAME INVOICE AS JUST REM LEAFLETS DUE TO MINIMUM ORDER REQUIREMENTS - EXPENDITURE CODES SPLIT** 0.50,Creative People and Places Contribution
Wyre Council,http://opendatacommunities.org/doc/district-council/wyre,13/06/2024,People and Places,Cultural and Related Services,132A,Stardrivemusic,26/04/2024,PE158855,750.00,0.00,"For the role of site manager at the Wanderland event on Saturday 27th July 2024 in Poulton -le- Fylde.To include attendance at planning meetings and sub contracting. Assistance with the drawing up of site plans and site designs, and the production sched",Creative People and Places Contribution
Wyre Council,http://opendatacommunities.org/doc/district-council/wyre,13/06/2024,People and Places,Cultural and Related Services,132A,JANINE WALKER ART,23/04/2024,PE158705,900.00,0.00,Payment 1 of 2 for Creative Wellbeing sessions at Over Wyre Medical Centre - 900,Creative People and Places Contribution
Wyre Council,http://opendatacommunities.org/doc/district-council/wyre,13/06/2024,Resources,Cultural and Related Services,132A,Amazon Business,22/04/2024,RS158669,48.90,0.00,300 GWF cake toppers and pack of felt tips for GWF birthday/coronation walk in May,Creative People and Places Contribution
Wyre Council,http://opendatacommunities.org/doc/district-council/wyre,13/06/2024,Resources,Cultural and Related Services,132A,Amazon Business,22/04/2024,RS158672,16.66,0.00,300 GWF cake toppers and pack of felt tips for GWF birthday/coronation walk in May,Creative People and Places Contribution
Wyre Council,http://opendatacommunities.org/doc/district-council/wyre,13/06/2024,People and Places,Environmental Services,132B,Allcool (NW) Ltd,26/04/2024,PE158803,136.52,0.00,Services Tractor Job ref: 25186 22/4/24,Daywork Materials (Excl.Tyres)
Wyre Council,http://opendatacommunities.org/doc/district-council/wyre,13/06/2024,People and Places,Environmental Services,132B,Dennis Eagle LTD,26/04/2024,PE158268,366.95,0.00,Window regulator and motor,Daywork Materials (Excl.Tyres)
Wyre Council,http://opendatacommunities.org/doc/district-council/wyre,13/06/2024,People and Places,Support Services,135B,FR Sharrock LTD,26/04/2024,PE158700,840.19,0.00,Parts,Daywork Materials (Excl.Tyres)
Wyre Council,http://opendatacommunities.org/doc/district-council/wyre,13/06/2024,People and Places,Support Services,135B,FR Sharrock LTD,26/04/2024,PE158701,530.51,0.00,Parts,Daywork Materials (Excl.Tyres)
Wyre Council,http://opendatacommunities.org/doc/district-council/wyre,13/06/2024,People and Places,Environmental Services,132B,Bucher Municipal Limited,18/04/2024,PE158579,342.74,0.00,to supply as delivered 2 disc axles,Daywork Materials (Excl.Tyres)
Wyre Council,http://opendatacommunities.org/doc/district-council/wyre,13/06/2024,People and Places,Environmental Services,132B,Bucher Municipal Limited,26/04/2024,PE158473,342.74,0.00,Road speed Sensor - Disc Axle,Daywork Materials (Excl.Tyres)
Wyre Council,http://opendatacommunities.org/doc/district-council/wyre,13/06/2024,People and Places,Support Services,135B,ABLE LORRY LOADERS LTD,26/04/2024,PE158831,539.92,0.00,Major Service,Daywork Materials (Excl.Tyres)
Wyre Council,http://opendatacommunities.org/doc/district-council/wyre,13/06/2024,People and Places,Support Services,135B,CORNTHWAITE GROUP,11/04/2024,PE158457,154.24,0.00,REAR VIEW MIRROR,Daywork Materials (Excl.Tyres)
Wyre Council,http://opendatacommunities.org/doc/district-council/wyre,13/06/2024,People and Places,Support Services,135B,CORNTHWAITE GROUP,11/04/2024,PE158457,6.50,0.00,CARRIAGE,Daywork Materials (Excl.Tyres)
Wyre Council,http://opendatacommunities.org/doc/district-council/wyre,13/06/2024,People and Places,Support Services,135B,Amazon Business,24/04/2024,PE158313,11.66,0.00,Bearings,Daywork Materials (Excl.Tyres)
Wyre Council,http://opendatacommunities.org/doc/district-council/wyre,13/06/2024,People and Places,Support Services,135B,Amazon Business,24/04/2024,PE158314,6.24,0.00,Bearings,Daywork Materials (Excl.Tyres)
Wyre Council,http://opendatacommunities.org/doc/district-council/wyre,13/06/2024,People and Places,Planning and Development Servs,132C,Blackpool Skip Hire LTD,26/04/2024,PE158745,400.00,0.00,40 Cu Yd Ro Ro Skip empty wood  17/4/24,Disposal Costs Industrial Waste
Wyre Council,http://opendatacommunities.org/doc/district-council/wyre,13/06/2024,People and Places,Cultural and Related Services,132A,Carlsberg UK LTD,11/04/2024,PE158165,79.80,0.00,Rental Co2 & Mixed Gas,Drinks
Wyre Council,http://opendatacommunities.org/doc/district-council/wyre,13/06/2024,People and Places,Cultural and Related Services,132A,Carlsberg UK LTD,30/04/2024,PE158818,931.83,0.00,Marine Hall drinks,Drinks
Wyre Council,http://opendatacommunities.org/doc/district-council/wyre,13/06/2024,Resources,Current Assets,130B,Preston City Council,22/04/2024,RS158642,106.05,0.00,Print costs for polling station appointment pack enclosures,Elect. - Other Costs
Wyre Council,http://opendatacommunities.org/doc/district-council/wyre,13/06/2024,Resources,Current Assets,130B,Amazon Business,17/04/2024,RS158599,17.46,0.00,Non standard stationery and print cartridge supplies for PCC elections administration (rubber finger grips and print cartridge for postal vote statement printer),Elect. - Other Costs
Wyre Council,http://opendatacommunities.org/doc/district-council/wyre,13/06/2024,Resources,Current Assets,130B,Amazon Business,17/04/2024,RS158585,38.89,0.00,Non standard stationery and print cartridge supplies for PCC elections administration (rubber finger grips and print cartridge for postal vote statement printer),Elect. - Other Costs
Wyre Council,http://opendatacommunities.org/doc/district-council/wyre,13/06/2024,Resources,Current Assets,130B,Print Image Network LTD,15/04/2024,RS158517,13922.88,0.00,Payment for firs issue Poll cards PCC election 2024,Elect. - Poll Cards
Wyre Council,http://opendatacommunities.org/doc/district-council/wyre,13/06/2024,Resources,Current Assets,130B,Print Image Network LTD,12/04/2024,RS158474,11602.40,0.00,Payment for firs issue Poll cards PCC election 2024,Elect. - Poll Cards
Wyre Council,http://opendatacommunities.org/doc/district-council/wyre,13/06/2024,Resources,Current Assets,130B,Print Image Network LTD,15/04/2024,RS158474,-11602.40,0.00,Payment for firs issue Poll cards PCC election 2024,Elect. - Poll Cards
Wyre Council,http://opendatacommunities.org/doc/district-council/wyre,13/06/2024,Resources,Current Assets,130B,Royal Mail Group PLC,24/04/2024,RS158761,2073.54,0.00,Mailing of postal votes for PCC election 2024 - no VAT reclaimable on PCC election,Elect. - Postal Votes
Wyre Council,http://opendatacommunities.org/doc/district-council/wyre,13/06/2024,People and Places,Parking Services,133F,N Power LTD,08/04/2024,PE158264,1882.58,0.00,1610036002846 unmetered supply lighting Civic Centre 01/03/24 to 31/03/24 (5652.4 kWh),Electricity
Wyre Council,http://opendatacommunities.org/doc/district-council/wyre,13/06/2024,People and Places,Parking Services,133F,N Power LTD,08/04/2024,PE158263,53.56,0.00,1610036002855 unmetered supply 01/03/24 to 31/03/24 (7.5kWh),Electricity
Wyre Council,http://opendatacommunities.org/doc/district-council/wyre,13/06/2024,People and Places,Cultural and Related Services,132A,N Power LTD,17/04/2024,PE158294,7348.67,0.00,"2500000793090 Thornton Leisure Centre, Victoria Road East, Thornton FY5 3SX 01/03/24 to 31/03/24 (27077.2 kWh) A",Electricity
Wyre Council,http://opendatacommunities.org/doc/district-council/wyre,13/06/2024,People and Places,Parking Services,133F,N Power LTD,08/04/2024,PE158265,499.44,0.00,1620000821031 Unmetered supply lighting 01/03/24 to 31/03/24 (1387.1 kWh),Electricity
Wyre Council,http://opendatacommunities.org/doc/district-council/wyre,13/06/2024,People and Places,Environmental Services,132B,N Power LTD,08/04/2024,PE158263,9.55,0.00,1610036002855 unmetered supply 01/03/24 to 31/03/24 (1.3kWh),Electricity
Wyre Council,http://opendatacommunities.org/doc/district-council/wyre,13/06/2024,People and Places,Environmental Services,132B,N Power LTD,08/04/2024,PE158264,335.68,0.00,1610036002846 unmetered supply lighting Civic Centre 01/03/24 to 31/03/24 (1007.9 kWh),Electricity
Wyre Council,http://opendatacommunities.org/doc/district-council/wyre,13/06/2024,People and Places,Cultural and Related Services,132A,N Power LTD,09/04/2024,PE158298,1161.35,0.00,"Electricity supplied to 1610023220857 YMCA Garstang Leisure Centre, Windsor Road, Garstang PR3 1ED for the period  01/03/24-31/03/24 - 3813.20 kWh used",Electricity
Wyre Council,http://opendatacommunities.org/doc/district-council/wyre,13/06/2024,People and Places,Cultural and Related Services,132A,N Power LTD,09/04/2024,PE158295,7418.56,0.00,"Electriity Supplied to 1600000162884 Fleetwood Leisure Centre, The Esplanade, Fleetwood FY7 6HF for the period  01/03/24-31/03/24 - 30081.90 kWh use",Electricity
Wyre Council,http://opendatacommunities.org/doc/district-council/wyre,13/06/2024,People and Places,Cultural and Related Services,132A,N Power LTD,09/04/2024,PE158296,4068.24,0.00,"Electricity supplied to 2500000676813 Swimming & Fitness Centre, Breck Road, Poulton FY6 7HU for the period  01/03/24-31/03/24 - 13973.00 kWh used",Electricity
Wyre Council,http://opendatacommunities.org/doc/district-council/wyre,13/06/2024,People and Places,Cultural and Related Services,132A,N Power LTD,09/04/2024,PE158297,1725.04,0.00,"Electricity supplied for 1600000125794 Garstang Swimming Pool, Birch Road, Garstang PR3 1WJ for the period  01/03/24-31/03/24 - 6620.40 kWh used",Electricity
Wyre Council,http://opendatacommunities.org/doc/district-council/wyre,13/06/2024,People and Places,Planning and Development Servs,132C,BES UTILITIES,23/04/2024,PE158519,2.00,0.00,"1610004791261 Unit 9 Croft Court, Butts Close, Thornton Cleveleys, FY5 4JX  paper invoice charge",Electricity
Wyre Council,http://opendatacommunities.org/doc/district-council/wyre,13/06/2024,People and Places,Planning and Development Servs,132C,BES UTILITIES,23/04/2024,PE158519,93.46,0.00,"1610004791261 Unit 9 Croft Court, Butts Close, Thornton Cleveleys, FY5 4JX 13/04/24 to 13/04/24 (1kWh)",Electricity
Wyre Council,http://opendatacommunities.org/doc/district-council/wyre,13/06/2024,People and Places,Planning and Development Servs,132C,BES UTILITIES,23/04/2024,PE158518,362.57,0.00,"1610004791261 Unit 9 Croft Court, Butts Close, Thornton Cleveleu=ys, FY5 4JX 14/11/23 to 13/04/24 (5.7 kWh)",Electricity
Wyre Council,http://opendatacommunities.org/doc/district-council/wyre,13/06/2024,People and Places,Planning and Development Servs,132C,BES UTILITIES,23/04/2024,PE158518,2.00,0.00,"1610004791261 Unit 9 Croft Court, Butts Close, Thornton Cleveleu=ys, FY5 4JX paper invoice charge",Electricity
Wyre Council,http://opendatacommunities.org/doc/district-council/wyre,13/06/2024,People and Places,Support Services,135B,Corona Energy Retail 4 Limited,29/04/2024,PE158418,14027.43,0.00,1600000162857 Civic Centre Breck Road Blackpool FY39DT 01/03/24 to 31/03/24 (38695.6kWh),Electricity
Wyre Council,http://opendatacommunities.org/doc/district-council/wyre,13/06/2024,People and Places,Cultural and Related Services,132A,Corona Energy Retail 4 Limited,29/04/2024,PE158419,7606.80,0.00,1600000162875 Marine Hall The Esplanade Fleetwood FY76HF 01/03/24 to 31/03/24 (18616kWh),Electricity
Wyre Council,http://opendatacommunities.org/doc/district-council/wyre,13/06/2024,People and Places,Cultural and Related Services,132A,Corona Energy Retail 4 Limited,29/04/2024,PE158421,1392.95,0.00,1630000670291 Promendae Cafe North Promenade Thornton-Cleveleys FY51DB 01/03/24 to 31/03/24 (3764.3kWh),Electricity
Wyre Council,http://opendatacommunities.org/doc/district-council/wyre,13/06/2024,People and Places,Cultural and Related Services,132A,Corona Energy Retail 4 Limited,29/04/2024,PE158416,407.30,0.00,1650000008330 The Mount Pavilion Mount Road Fleetwood FY76EZ 01/03/24 to 31/03/24 (899kWh),Electricity
Wyre Council,http://opendatacommunities.org/doc/district-council/wyre,13/06/2024,People and Places,Planning and Development Servs,132C,Corona Energy Retail 4 Limited,29/04/2024,PE158420,804.01,0.00,1620000784666 Main Hall Adelaide Street Fleetwood FY76AB 01/03/24 to 31/03/24 (0kWh),Electricity
Wyre Council,http://opendatacommunities.org/doc/district-council/wyre,13/06/2024,People and Places,Planning and Development Servs,132C,Drax Energy Solutions Limited,30/04/2024,PE158283,130.67,0.00,"3200000534791 Unit 10, Dock Ave, Fleetwood, FY76PS 01/03/24 to 31/03/24c(22kWh)",Electricity
Wyre Council,http://opendatacommunities.org/doc/district-council/wyre,13/06/2024,People and Places,Planning and Development Servs,132C,Drax Energy Solutions Limited,30/04/2024,PE158282,131.88,0.00,"3200000534782 Unit 9, Dock Ave, Fleetwood, FY76PS 01/0324 to 31/04/24 (26 kWh)",Electricity
Wyre Council,http://opendatacommunities.org/doc/district-council/wyre,13/06/2024,People and Places,Planning and Development Servs,132C,Drax Energy Solutions Limited,30/04/2024,PE158284,143.71,0.00,"3200000534807 LL Supply c/o Port Office, Dock Ave, Fleetwood, FY76PS 01/03/24 to 31/03/24 (65kWh)",Electricity
Wyre Council,http://opendatacommunities.org/doc/district-council/wyre,13/06/2024,People and Places,Planning and Development Servs,132C,Drax Energy Solutions Limited,22/04/2024,PE158677,122.81,0.00,Contra refund WPST00140052,Electricity
Wyre Council,http://opendatacommunities.org/doc/district-council/wyre,13/06/2024,People and Places,Planning and Development Servs,132C,Drax Energy Solutions Limited,22/04/2024,PE158676,127.72,0.00,Drax contra refund WPST00140052,Electricity
Wyre Council,http://opendatacommunities.org/doc/district-council/wyre,13/06/2024,People and Places,Planning and Development Servs,132C,Drax Energy Solutions Limited,22/04/2024,PE158675,129.12,0.00,Drax refund contra,Electricity
Wyre Council,http://opendatacommunities.org/doc/district-council/wyre,13/06/2024,People and Places,Environmental Services,132B,Engie Power Limited,23/04/2024,PE158542,155.01,0.00,"1610004845313  Fleetwood Corp Cemetery, Beach Rd, Fleetwood, FY7 8PH 01/03/24 to 31/03/24  (309.1kWh) E",Electricity
Wyre Council,http://opendatacommunities.org/doc/district-council/wyre,13/06/2024,People and Places,Environmental Services,132B,Engie Power Limited,23/04/2024,PE158540,420.76,0.00,"1610004845304  Fleetwood Corp Cemetery, Beach Rd, Fleetwood, FY7 8PH 01/03/24 to 31/03/24  (973.1kWh) A",Electricity
Wyre Council,http://opendatacommunities.org/doc/district-council/wyre,13/06/2024,People and Places,Cultural and Related Services,132A,Engie Power Limited,23/04/2024,PE158549,108.67,0.00,"1610004932427  King Georges Field, Broadwater, Fleetwood Road, Fleetwood, Lancashire, FY7  8BD 01/03/24 to 31/03/24 (133.3kWh) E",Electricity
Wyre Council,http://opendatacommunities.org/doc/district-council/wyre,13/06/2024,People and Places,Cultural and Related Services,132A,Engie Power Limited,23/04/2024,PE158554,295.51,0.00,"1610004897385  Tennis Pavillion, Memorial Park, Fleetwood, FY7 7AE 01/03/24 to 31/03/24  (682.9kWh) E",Electricity
Wyre Council,http://opendatacommunities.org/doc/district-council/wyre,13/06/2024,People and Places,Cultural and Related Services,132A,Engie Power Limited,23/04/2024,PE158548,531.22,0.00,"1610004897400  Ladies Bowls Pavilion, Memorial Park, Fleetwood, FY7 7AE 01/03/24 to 31/03/24  (1255.4kWh) E",Electricity
Wyre Council,http://opendatacommunities.org/doc/district-council/wyre,13/06/2024,People and Places,Cultural and Related Services,132A,Engie Power Limited,23/04/2024,PE158546,337.30,0.00,"1610004897394  Bowls House, Memorial Park, Fleetwood, FY7 7AE 01/03/24 to 31/03/24  (739.2kWh) A",Electricity
Wyre Council,http://opendatacommunities.org/doc/district-council/wyre,13/06/2024,People and Places,Cultural and Related Services,132A,Engie Power Limited,23/04/2024,PE158551,210.65,0.00,"1610004867488  Mount Pavilion, Mount Rd, Fleetwood, FY7 6EZ 01/03/24 to 31/03/24 (520.2kWh)  E",Electricity
Wyre Council,http://opendatacommunities.org/doc/district-council/wyre,13/06/2024,People and Places,Cultural and Related Services,132A,Engie Power Limited,23/04/2024,PE158556,436.92,0.00,"1610004867432  Mount Hotel, Mount Rd, Fleetwood, FY7 6RA 01/03/24 to 31/03/24 (1018.4kWh) E",Electricity
Wyre Council,http://opendatacommunities.org/doc/district-council/wyre,13/06/2024,People and Places,Cultural and Related Services,132A,Engie Power Limited,23/04/2024,PE158560,234.00,0.00,1610004867479  The Mount Pavilion Mount Rd Fleetwood FY7 6EZ 01/03/24 to 31/03/24 (462.9kWh)  E,Electricity
Wyre Council,http://opendatacommunities.org/doc/district-council/wyre,13/06/2024,People and Places,Cultural and Related Services,132A,Engie Power Limited,23/04/2024,PE158557,210.81,0.00,"1610004867441  Mount Hotel, Mount Rd, Fleetwood, FY7 6RA 01/03/24 to 31/03/24 (520.8kWh) E",Electricity
Wyre Council,http://opendatacommunities.org/doc/district-council/wyre,13/06/2024,People and Places,Cultural and Related Services,132A,Engie Power Limited,23/04/2024,PE158553,531.62,0.00,"1610004890636  Fishermans Walk, Lord St, Fleetwood, FY7 6DU 01/03/24 to 31/03/24 (1256.5kWh)  E",Electricity
Wyre Council,http://opendatacommunities.org/doc/district-council/wyre,13/06/2024,People and Places,Environmental Services,132B,Engie Power Limited,23/04/2024,PE158562,241.52,0.00,"1630000584632  PC, rear of Tesco, Rough Lea Rd, Thornton Cleveleys, FY5 1BW 01/03/24 to  31/03/24 (470.8kWh) E",Electricity
Wyre Council,http://opendatacommunities.org/doc/district-council/wyre,13/06/2024,People and Places,Environmental Services,132B,Engie Power Limited,23/04/2024,PE158561,113.82,0.00,"1620001343345  PC, Thornton Centre, Victoria Rd East, FY5 5DZ 01/03/24 to 31/03/24  (112.9kWh) A",Electricity
Wyre Council,http://opendatacommunities.org/doc/district-council/wyre,13/06/2024,People and Places,Environmental Services,132B,Engie Power Limited,23/04/2024,PE158564,150.60,0.00,"1630000819048  Public Conveniences, Cherestanc Square, Garstang, Lancashire, PR3 1EF  01/03/24 to 31/03/24 (216kWh) E",Electricity
Wyre Council,http://opendatacommunities.org/doc/district-council/wyre,13/06/2024,People and Places,Environmental Services,132B,Engie Power Limited,23/04/2024,PE158563,297.26,0.00,"1630000740099  PC, Wyreside, Knott End on Sea, FY6 0AA 01/03/24 to 31/03/24 (627kWh) E",Electricity
Wyre Council,http://opendatacommunities.org/doc/district-council/wyre,13/06/2024,People and Places,Environmental Services,132B,Engie Power Limited,23/04/2024,PE158552,138.76,0.00,"1610004885487  PC, Preston St, Fleetwood, FY7 6JA 01/03/24 to 31/03/24 (182.8kWh) E",Electricity
Wyre Council,http://opendatacommunities.org/doc/district-council/wyre,13/06/2024,People and Places,Environmental Services,132B,Engie Power Limited,23/04/2024,PE158545,249.16,0.00,"1610023195261  PC, Smallwood Hey, Pilling, Preston, PR3 6HJ 01/03/24 to 31/03/24 (492.2kWh)  E",Electricity
Wyre Council,http://opendatacommunities.org/doc/district-council/wyre,13/06/2024,People and Places,Environmental Services,132B,Engie Power Limited,23/04/2024,PE158547,321.99,0.00,"1610023251891  PC, Gubberford Lane, Scorton, PR3 1BL 01/03/24 to 31/03/24 (696.3kWh) E",Electricity
Wyre Council,http://opendatacommunities.org/doc/district-council/wyre,13/06/2024,People and Places,Environmental Services,132B,Engie Power Limited,23/04/2024,PE158544,160.89,0.00,"1610023169146  Public Conveniences, Barton Square, Knott End on Sea, Lancashire, FY6 0AG  01/03/24 to 31/03/24 (256.1kWh) E",Electricity
Wyre Council,http://opendatacommunities.org/doc/district-council/wyre,13/06/2024,People and Places,Environmental Services,132B,Engie Power Limited,23/04/2024,PE158543,218.72,0.00,"1610013371994  PC, The Weind, Great Eccleston, PR3 0ZU 01/03/24 to 31/03/24 (406.9kWh) E",Electricity
Wyre Council,http://opendatacommunities.org/doc/district-council/wyre,13/06/2024,People and Places,Planning and Development Servs,132C,Engie Power Limited,23/04/2024,PE158520,104.75,0.00,"1640000947154  Kiosk 3, Fleetwood Market, Adelaide St, Fleetwood, FY7 6AB 01/03/24 to  31/03/24 (170kWh) A",Electricity
Wyre Council,http://opendatacommunities.org/doc/district-council/wyre,13/06/2024,People and Places,Planning and Development Servs,132C,Engie Power Limited,23/04/2024,PE158522,82.42,0.00,"1640000947172  Kiosk 5, Fleetwood Market, Adelaide St, Fleetwood, FY7 6AB 01/03/24 to 31/03/24 (101.7kWh) A",Electricity
Wyre Council,http://opendatacommunities.org/doc/district-council/wyre,13/06/2024,People and Places,Planning and Development Servs,132C,Engie Power Limited,23/04/2024,PE158523,53.63,0.00,"1640000947181  Kiosk 6, Fleetwood Market, Adelaide St, Fleetwood, FY7 6AB 0 01/03/24 to  31/03/24 (13.6kWh) A",Electricity
Wyre Council,http://opendatacommunities.org/doc/district-council/wyre,13/06/2024,People and Places,Planning and Development Servs,132C,Engie Power Limited,23/04/2024,PE158531,49.70,0.00,"1640000947215  Landlord Supply, Fleetwood Market, Adelaide St, Fleetwood, FY7 6AB 01/03/24 to 31/03/24 (1.6kWh) A",Electricity
Wyre Council,http://opendatacommunities.org/doc/district-council/wyre,13/06/2024,People and Places,Planning and Development Servs,132C,Engie Power Limited,23/04/2024,PE158521,57.06,0.00,"1640000947163  Kiosk 4, Fleetwood Market, Adelaide St, Fleetwood, FY7 6AB 01/03/24 to 31/03/24 (24.1kWh) A",Electricity
Wyre Council,http://opendatacommunities.org/doc/district-council/wyre,13/06/2024,People and Places,Planning and Development Servs,132C,Engie Power Limited,23/04/2024,PE158527,104.00,0.00,"1640000947136  Kiosk 1, Fleetwood Market, Adelaide St, Fleetwood, FY7 6AB 01/03/24 to 31/03/24 (167.7kWh) E",Electricity
Wyre Council,http://opendatacommunities.org/doc/district-council/wyre,13/06/2024,People and Places,Planning and Development Servs,132C,Engie Power Limited,23/04/2024,PE158530,63.63,0.00,"1640000947206  Kiosk 8, Fleetwood Market, Adelaide St, Fleetwood, FY7 6AB 01/03/24 to 31/03/24 (44.2kWh) A",Electricity
Wyre Council,http://opendatacommunities.org/doc/district-council/wyre,13/06/2024,People and Places,Planning and Development Servs,132C,Engie Power Limited,23/04/2024,PE158529,202.75,0.00,"1640000947190  Kiosk 7, Fleetwood Market, Adelaide St, Fleetwood, FY7 6AB 01/03/24 to 31/03/24 (469.8kWh) A",Electricity
Wyre Council,http://opendatacommunities.org/doc/district-council/wyre,13/06/2024,People and Places,Planning and Development Servs,132C,Engie Power Limited,23/04/2024,PE158525,219.55,0.00,"1640000947145  Kiosk 2, Fleetwood Market, Adelaie St, Fleetwood, FY7 6AB 01/03/24 to 31/03/24 (521.2kWh) A",Electricity
Wyre Council,http://opendatacommunities.org/doc/district-council/wyre,13/06/2024,People and Places,Cultural and Related Services,132A,Engie Power Limited,23/04/2024,PE158537,73.78,0.00,"1610004846502  Valve House, Marine Lake, Laidleys Walk, Fleetwood, FY7 7JL 01/03/24 to  31/03/24 (0.7kWh) E",Electricity
Wyre Council,http://opendatacommunities.org/doc/district-council/wyre,13/06/2024,People and Places,Cultural and Related Services,132A,Engie Power Limited,23/04/2024,PE158533,479.99,0.00,"1610004863605  Central Toilets Kiosk, The Esplanade, Fleetwood, FY7 7BE 01/03/24 to 31/03/24 (1114.9kWh) A",Electricity
Wyre Council,http://opendatacommunities.org/doc/district-council/wyre,13/06/2024,People and Places,Cultural and Related Services,132A,Engie Power Limited,23/04/2024,PE158532,188.50,0.00,"1610004846558  Pump Station, The Esplanade, Fleetwood, FY7 6HF 01/03/24 to 31/03/24 (322.2kWh) A",Electricity
Wyre Council,http://opendatacommunities.org/doc/district-council/wyre,13/06/2024,People and Places,Environmental Services,132B,Engie Power Limited,23/04/2024,PE158536,149.68,0.00,"1610004845322  PC, Beach Rd, Fleetwood, FY7 8PH 01/03/24 to 31/03/24 (213.4kWh) E",Electricity
Wyre Council,http://opendatacommunities.org/doc/district-council/wyre,13/06/2024,People and Places,Environmental Services,132B,Engie Power Limited,23/04/2024,PE158528,191.70,0.00,"1640000218200  PC, Bold St, Fleetwood, FY7 6BW  01/03/24 to 31/03/24 (436kWh) E",Electricity
Wyre Council,http://opendatacommunities.org/doc/district-council/wyre,13/06/2024,People and Places,Cultural and Related Services,132A,Engie Power Limited,23/04/2024,PE158524,92.16,0.00,"1640000400837  Beach Huts, The Esplanade, Fleetwood, FY7 6QD  01/03/24 to 31/03/24 (131.5kWh) E",Electricity
Wyre Council,http://opendatacommunities.org/doc/district-council/wyre,13/06/2024,People and Places,Cultural and Related Services,132A,Engie Power Limited,23/04/2024,PE158535,250.62,0.00,1610004846390  Pump House Model Yacht Pond Laidleys Walk Fleetwood FY7 7JL 01/03/24 to  31/03/24 (496.3kWh) A,Electricity
Wyre Council,http://opendatacommunities.org/doc/district-council/wyre,13/06/2024,People and Places,Cultural and Related Services,132A,Engie Power Limited,23/04/2024,PE158526,284.24,0.00,"1640000118533  Feeder Pillar, Vicarage Rd, Poulton le Fylde, FY6 7BE 01/03/24 to 31/03/24 (719.1kWh) A",Electricity
Wyre Council,http://opendatacommunities.org/doc/district-council/wyre,13/06/2024,People and Places,Cultural and Related Services,132A,Engie Power Limited,23/04/2024,PE158541,146.00,0.00,"1610004775074  The Windmill, Fleetwood Rd North, Thornton Cleveleys, FY5 4BP 01/03/24 to  31/03/24 (203.1kWh) A",Electricity
Wyre Council,http://opendatacommunities.org/doc/district-council/wyre,13/06/2024,People and Places,Cultural and Related Services,132A,Engie Power Limited,23/04/2024,PE158538,725.20,0.00,"1610004775083  The Windmill, Fleetwood Road North, Thornton Cleveleys, FY5 4BP 01/03/24 to  31/03/24 (2401.6kWh) A",Electricity
Wyre Council,http://opendatacommunities.org/doc/district-council/wyre,13/06/2024,People and Places,Environmental Services,132B,Engie Power Limited,23/04/2024,PE158539,672.89,0.00,"1610004828771  Council Depot, Chatsworth Day Centre, Chatsworth Ave, Fleetwood, FY7 8AP  01/03/24 to 31/03/24 (1644kWh) E",Electricity
Wyre Council,http://opendatacommunities.org/doc/district-council/wyre,13/06/2024,People and Places,Environmental Services,132B,Engie Power Limited,23/04/2024,PE158565,62.29,0.00,"1640000258365  PC, River Road, Thornton Cleveleys, FY5 5LR  01/12/23 to 31/12/23 (40.1kWh) E",Electricity
Wyre Council,http://opendatacommunities.org/doc/district-council/wyre,13/06/2024,People and Places,Environmental Services,132B,Engie Power Limited,23/04/2024,PE158571,112.82,0.00,"1640000258365  PC, River Road, Thornton Cleveleys, FY5 5LR  01/03/24 to 31/03/24 (194.7kWh) A",Electricity
Wyre Council,http://opendatacommunities.org/doc/district-council/wyre,13/06/2024,People and Places,Environmental Services,132B,Engie Power Limited,23/04/2024,PE158569,58.79,0.00,"1640000258365  PC, River Road, Thornton Cleveleys, FY5 5LR  01/02/24 to 29/02/24 (39.1kWh) E",Electricity
Wyre Council,http://opendatacommunities.org/doc/district-council/wyre,13/06/2024,People and Places,Environmental Services,132B,Engie Power Limited,23/04/2024,PE158567,63.79,0.00,"1640000258365  PC, River Road, Thornton Cleveleys, FY5 5LR  01/01/24 to 31/01/24 (44.7kWh) E",Electricity
Wyre Council,http://opendatacommunities.org/doc/district-council/wyre,13/06/2024,People and Places,Cultural and Related Services,132A,Engie Power Limited,23/04/2024,PE158559,99.22,0.00,"1640000004924  Feeder Pillar, Hawthorne Park, Hawthorne Rd, Thornton Cleveleys, FY5 5DH  01/03/24 to 31/03/24 (69.7kWh) A",Electricity
Wyre Council,http://opendatacommunities.org/doc/district-council/wyre,13/06/2024,People and Places,Cultural and Related Services,132A,Engie Power Limited,23/04/2024,PE158555,9.49,0.00,"1610004863776  Tourist Information Office, The Esplanade, Fleetwood, FY7 6DL 01/03/24 to  31/03/24 (0kWh) F",Electricity
Wyre Council,http://opendatacommunities.org/doc/district-council/wyre,13/06/2024,People and Places,Environmental Services,132B,Engie Power Limited,23/04/2024,PE158550,246.52,0.00,"1610004933625  Springfield Pumping Station 17, Fleeetwood Road, Fleetwood, Lancashire, FY7  8TW 01/03/24 to 31/03/24 (516.8kWh) E",Electricity
Wyre Council,http://opendatacommunities.org/doc/district-council/wyre,13/06/2024,People and Places,Planning and Development Servs,132C,British Gas Lite,12/04/2024,PE158412,986.18,0.00,"1610004791448 Unit 18 Croft Court, Butts Close, Thornton Cleveleys, FY5 4JX 21/12/22 to 25/03/24",Electricity
Wyre Council,http://opendatacommunities.org/doc/district-council/wyre,13/06/2024,People and Places,Planning and Development Servs,132C,British Gas Lite,30/04/2024,PE158872,164.51,0.00,"1610004791313 Unit 14 Croft Court, Butts Close, FY5 4JX  04/02/24 to 22/04/24 (0.1kWh) Read",Electricity
Wyre Council,http://opendatacommunities.org/doc/district-council/wyre,13/06/2024,People and Places,Planning and Development Servs,132C,British Gas Lite,30/04/2024,PE158871,477.04,0.00,"1610004791448 Unit 18 Croft Court, Butts Close, FY5 4JX 25/03/24 to 22/04/24 (1049.1kWh) Est",Electricity
Wyre Council,http://opendatacommunities.org/doc/district-council/wyre,13/06/2024,People and Places,Planning and Development Servs,132C,British Gas Lite,11/04/2024,PE158414,64.22,0.00,"1610004791313 Unit 14 Croft Court, Butts Close, Thornton Cleveleys FY5 4JX 27/02/24 to 27/03/24 (16.4kWh) Est",Electricity
Wyre Council,http://opendatacommunities.org/doc/district-council/wyre,13/06/2024,People and Places,Planning and Development Servs,132C,British Gas Lite,11/04/2024,PE158413,54.04,0.00,"1610004791313 Unit 14 Croft Court, Butts Close, Thornton Cleveleys, FY5 4JX 04/02/24 to 27/02/24 (15.8 kWh) Est",Electricity
Wyre Council,http://opendatacommunities.org/doc/district-council/wyre,13/06/2024,Resources,Support Services,135B,The Lunchbox Ltd,23/04/2024,RS158719,35.00,0.00,"Buffet for 5 people to include a selection of sandwiches (including 2 x vegetarian options), chicken skewers, salad, crisps, mayo and cakes. To be delivered to Civic Centre Reception at 12 noon on Tuesday 23 April.",Event Hospitality
Wyre Council,http://opendatacommunities.org/doc/district-council/wyre,13/06/2024,Resources,Support Services,135B,The Lunchbox Ltd,22/04/2024,RS158670,130.00,0.00,A selection of sandwiches for 20 people on Monday 22 April 2024.  To be delivered at 11.45am.All as discussed with Catherine.,Event Hospitality
Wyre Council,http://opendatacommunities.org/doc/district-council/wyre,13/06/2024,Resources,Housing General Fund,134A,KPMG LLP,12/04/2024,RS158475,12076.00,0.00,2022/23 HBAP Base Fee (undertaken 2023/24),External Audit Fees
Wyre Council,http://opendatacommunities.org/doc/district-council/wyre,13/06/2024,Resources,Housing General Fund,134A,KPMG LLP,12/04/2024,RS158475,7623.00,0.00,2022/23 HBAP 3 initial workbooks (undertaken 2023/24),External Audit Fees
Wyre Council,http://opendatacommunities.org/doc/district-council/wyre,13/06/2024,Resources,Housing General Fund,134A,KPMG LLP,12/04/2024,RS158475,5776.00,0.00,2022/23 HBAP 4 sets  40+ testing (CAKE) (undertaken 2023/24),External Audit Fees
Wyre Council,http://opendatacommunities.org/doc/district-council/wyre,13/06/2024,People and Places,Cultural and Related Services,132A,Fleetwood Town Community Trust,24/04/2024,PE158797,7001.25,0.00,Quarter 4 TrySport - Fleetwood Town Community Trust,External Coaching
Wyre Council,http://opendatacommunities.org/doc/district-council/wyre,13/06/2024,People and Places,Cultural and Related Services,132A,The Ramblers Association,24/04/2024,PE158617,-750.00,0.00,Subscription to Wellbeing Walks scheme 2024,External Contractor
Wyre Council,http://opendatacommunities.org/doc/district-council/wyre,13/06/2024,People and Places,Cultural and Related Services,132A,Amazon Business,26/04/2024,PE158806,237.30,0.00,15 x first aid kits GWF,First Aid Supplies
Wyre Council,http://opendatacommunities.org/doc/district-council/wyre,13/06/2024,People and Places,Environmental Services,132B,NWIFCA      N W Inshore Fisheries and Conservation,08/04/2024,PE158299,623.00,0.00,Shellfish Collections sept 23- Mar24,Food and Drug Etc Samples
Wyre Council,http://opendatacommunities.org/doc/district-council/wyre,13/06/2024,People and Places,Cultural and Related Services,132A,Lancashire County Council,04/04/2024,PE158160,6800.00,0.00,Annual contribution to Forest of Bowland National Landscape Partnership,Forest of Bowland Joint Advise Com Contr
Wyre Council,http://opendatacommunities.org/doc/district-council/wyre,13/06/2024,People and Places,Cultural and Related Services,132A,Lancashire County Council,04/04/2024,PE158155,-6800.00,0.00,Annual contribution to Forest of Bowland National Landscape Partnership,Forest of Bowland Joint Advise Com Contr
Wyre Council,http://opendatacommunities.org/doc/district-council/wyre,13/06/2024,People and Places,Support Services,135B,British Gas,30/04/2024,PE158679,-3471.50,0.00,"603764151 Wyre Borough Council, Civic Centre, Breck Road 01/10/23 to 31/10/23",Gas
Wyre Council,http://opendatacommunities.org/doc/district-council/wyre,13/06/2024,People and Places,Planning and Development Servs,132C,British Gas,30/04/2024,PE158063,462.00,0.00,"603764162 Fleetwood Market, Adelaide Street, Fleetwood 04/10/23 to 31/10/23",Gas
Wyre Council,http://opendatacommunities.org/doc/district-council/wyre,13/06/2024,People and Places,Planning and Development Servs,132C,British Gas,30/04/2024,PE158062,2695.71,0.00,"603764162 Fleetwood Market, Adelaide Street, Fleetwood 04/10/23 to 31/10/23",Gas
Wyre Council,http://opendatacommunities.org/doc/district-council/wyre,13/06/2024,People and Places,Support Services,135B,British Gas,30/04/2024,PE158062,3311.40,0.00,"603764151 Wyre Borough Council, Civic Centre, Breck Road 01/10/23 to 31/10/23",Gas
Wyre Council,http://opendatacommunities.org/doc/district-council/wyre,13/06/2024,People and Places,Support Services,135B,British Gas,30/04/2024,PE158063,3471.50,0.00,"603764151 Wyre Borough Council, Civic Centre, Breck Road 01/10/23 to 31/10/23",Gas
Wyre Council,http://opendatacommunities.org/doc/district-council/wyre,13/06/2024,People and Places,Cultural and Related Services,132A,British Gas,30/04/2024,PE158062,777.32,0.00,"603764149 Thornton Little Theatre, Victoria Road East 08/10/23 to 31/10/23",Gas
Wyre Council,http://opendatacommunities.org/doc/district-council/wyre,13/06/2024,People and Places,Planning and Development Servs,132C,British Gas,30/04/2024,PE158063,90.37,0.00,"603764150 Copse Road Depot, Copse Road, Fleetwood 01/10/23 to 31/10/23",Gas
Wyre Council,http://opendatacommunities.org/doc/district-council/wyre,13/06/2024,People and Places,Cultural and Related Services,132A,Engie Gas Limited,16/04/2024,PE158468,1316.24,0.00,"Gas supplied to 73570403 Thornton Little Theatre, Victoria Rd E, Thornton Cleveleys, FY5 3SZ for the period  01/03/24 to 31/03/24 - 12,766.20  kWh used",Gas
Wyre Council,http://opendatacommunities.org/doc/district-council/wyre,13/06/2024,People and Places,Support Services,135B,Engie Gas Limited,16/04/2024,PE158469,7452.41,0.00,"Gas charges for 20867010 Civic Centre, Breck Rd, Poulton le Fylde, FY6 7PU for the period  01/03/24 to 31/03/24 -  86,310.40  kWh used",Gas
Wyre Council,http://opendatacommunities.org/doc/district-council/wyre,13/06/2024,People and Places,Planning and Development Servs,132C,Engie Gas Limited,16/04/2024,PE158466,5195.08,0.00,"Gas supplied to 49097909 Fleetwood Market, Adelaide St, Fleetwood, FY7 6AB for the period 01/03/24 to 31/03/24 - 59,255.50  kWh used",Gas
Wyre Council,http://opendatacommunities.org/doc/district-council/wyre,13/06/2024,People and Places,Planning and Development Servs,132C,Engie Gas Limited,11/04/2024,PE157564,380.60,0.00,"9322410204 Copse Rd Depot, Fleetwood, FY7 6PR 01/02/24 to 29/02/24 (1899.4 kWh)",Gas
Wyre Council,http://opendatacommunities.org/doc/district-council/wyre,13/06/2024,Resources,Planning and Development Servs,132C,Engie Gas Limited,16/04/2024,RS158467,363.26,0.00,"Gas Supplied to 7322410204 Copse Rd Depot, Copse Rd, Fleetwood, FY7 6RP for the period 01/03/24 to 31/03/24 -  1,462.10  kWh used",Gas
Wyre Council,http://opendatacommunities.org/doc/district-council/wyre,13/06/2024,People and Places,Cultural and Related Services,132A,Npower Commercial Gas Ltd,09/04/2024,PE158292,2466.79,0.00,"Gas supplied to 9159039903 Garstang Swimming Club, YMCA, Oak Road, Garstang PR3 1HT for the period  01/03/2024-31/03/2024 - 37505.1 kWh used",Gas
Wyre Council,http://opendatacommunities.org/doc/district-council/wyre,13/06/2024,People and Places,Cultural and Related Services,132A,Npower Commercial Gas Ltd,09/04/2024,PE158291,11884.16,0.00,"Gas supplied to 20411606 Fleetwood YMCA, The Esplanade, Fleetwood FY7 6HF for the period  01/03/2024-31/03/2024 - 181035.4 kWh used",Gas
Wyre Council,http://opendatacommunities.org/doc/district-council/wyre,13/06/2024,People and Places,Cultural and Related Services,132A,Npower Commercial Gas Ltd,09/04/2024,PE158293,920.47,0.00,"Gas supplied to 50171305 Thornton Sports Centre, Victoria Road East, Thornton FY5 3SX for the period  01/03/2024-31/03/2024 - 10030.8 kWh used",Gas
Wyre Council,http://opendatacommunities.org/doc/district-council/wyre,13/06/2024,People and Places,Cultural and Related Services,132A,Npower Commercial Gas Ltd,09/04/2024,PE158290,500.14,0.00,"Gas supplied to 56039909 Garstang Sports Centre, Windsor Road, Garstang, PR3 1ED for the period  01/03/2024-31/03/2024 - 6047.4 kWh used",Gas
Wyre Council,http://opendatacommunities.org/doc/district-council/wyre,13/06/2024,Resources,"Cultural, Environ and Planning",137B,RH Property Management Ltd,11/04/2024,RS158464,39602.35,0.00,"HSHAZ Grant: Former HSBC bank, Albert St, Fleetwood, FY7 6AH",Grants and Advances
Wyre Council,http://opendatacommunities.org/doc/district-council/wyre,13/06/2024,Resources,Support Services,135B,Defibstore Ltd,02/04/2024,RS158148,-678.00,0.00,1 x battery and adult pad,Health and Safety General
Wyre Council,http://opendatacommunities.org/doc/district-council/wyre,13/06/2024,Resources,Support Services,135B,Amazon Business,19/04/2024,RS158620,142.10,0.00,Electric Standing Desk 140 x 80,Health and Safety General
Wyre Council,http://opendatacommunities.org/doc/district-council/wyre,13/06/2024,People and Places,Cultural and Related Services,132A,Arranpaul Audio LTD,24/04/2024,PE158771,805.00,0.00,Hire of PA system 13/4/24,Hire of Tools or Equipment
Wyre Council,http://opendatacommunities.org/doc/district-council/wyre,13/06/2024,Resources,Planning and Development Servs,132C,Konica Minolta Business Solutions UK LTD,10/04/2024,RS158096,34.65,0.00,Fleetwood Market - 1840080773,Hire of Tools or Equipment
Wyre Council,http://opendatacommunities.org/doc/district-council/wyre,13/06/2024,Resources,Housing General Fund,134A,Creative Support LTD,15/04/2024,RS158458,9678.00,0.00,Turning the Tide Contract Fees - 08/04/24-07/07/24,Homelessness Tenancy Support
Wyre Council,http://opendatacommunities.org/doc/district-council/wyre,13/06/2024,People and Places,Environmental Services,132B,Poulton Pets LTD,17/04/2024,PE158589,1489.50,0.00,Provision of stray dog kennelling service 2023/24,Impounded Dogs Costs
Wyre Council,http://opendatacommunities.org/doc/district-council/wyre,13/06/2024,Resources,Planning and Development Servs,132C,Kings Chambers,09/04/2024,RS158106,-4380.00,0.00,Internal credit note raised as original invoice was not a VAT invoice - Legal advice Helmsdeep enforcement 23/00050/COU - Phil Robson,Legal Fees
Wyre Council,http://opendatacommunities.org/doc/district-council/wyre,13/06/2024,Resources,Support Services,135B,23 ESSEX STREET CHAMBERS,30/04/2024,RS158269,2640.00,0.00,Melrose Investments Ltd v Wyre Borough CouncilProfessional Fees of: Mr Asa Tolson23/3/2024 *Opinion (Hours Worked 8h 0m)28/3/2024 Instructions received. Opinion Invoice ref 209633,Legal Fees
Wyre Council,http://opendatacommunities.org/doc/district-council/wyre,13/06/2024,People and Places,Highways,133B,HUWS GRAY LTD,19/04/2024,PE158350,186.50,0.00,kiln dried sapelle wood - machined to requirement for Mark Thomoson for R17792 - Ferry dock benches Refurb,Maint. of Unadopted Assets - Engineers
Wyre Council,http://opendatacommunities.org/doc/district-council/wyre,13/06/2024,People and Places,Parking Services,133F,STARK Building Materials UK Ltd T/A Jewson,26/04/2024,PE158136,250.00,0.00,Makita 18v BL Random Orbit Polisher DPO600Z Item number SP/2793327,Maintenance of Tools or Equipment
Wyre Council,http://opendatacommunities.org/doc/district-council/wyre,13/06/2024,People and Places,Parking Services,133F,STARK Building Materials UK Ltd T/A Jewson,26/04/2024,PE158136,62.51,0.00,"MAKITA 18V Li-ion 5.0Ah Battery B1850B 632F15-1, code M632F151  Car parks",Maintenance of Tools or Equipment
Wyre Council,http://opendatacommunities.org/doc/district-council/wyre,13/06/2024,People and Places,Parking Services,133F,STARK Building Materials UK Ltd T/A Jewson,26/04/2024,PE157223,58.33,0.00,Spare battery for Carparks Makita 18V Li-ion 5.0Ah Battery B1850B 632F15-1 Code M632F151,Maintenance of Tools or Equipment
Wyre Council,http://opendatacommunities.org/doc/district-council/wyre,13/06/2024,People and Places,Cultural and Related Services,132A,Ian Deemer,24/04/2024,PE158795,605.00,0.00,Clean Waterfront & Entrance/Foyer/Corridor,Maintenance of Tools or Equipment
Wyre Council,http://opendatacommunities.org/doc/district-council/wyre,13/06/2024,People and Places,Planning and Development Servs,132C,Buyer Direct LTD,22/04/2024,PE158699,462.49,0.00,6 canopies gazebos roofs,Maintenance of Tools or Equipment
Wyre Council,http://opendatacommunities.org/doc/district-council/wyre,13/06/2024,People and Places,Cultural and Related Services,132A,Steve Tuckey Cycles,26/04/2024,PE158810,1035.00,0.00,Wyre Wheels Maintenance 2024,Maintenance of Tools or Equipment
Wyre Council,http://opendatacommunities.org/doc/district-council/wyre,13/06/2024,People and Places,Parking Services,133F,PETER HEARN ELECTRICAL LTD,30/04/2024,PE158846,40.00,0.00,EMERGENCY CALLOUT - Wheatsheaf Way car park Check electrical connection to meter HHR013 as requested by Maria Leeder,Maintenance of Tools or Equipment
Wyre Council,http://opendatacommunities.org/doc/district-council/wyre,13/06/2024,People and Places,Highways,133B,T-Fer Tree Surgeons,29/04/2024,PE158864,780.00,0.00,"16/04/24 Quote 68 - Compley Green Alleviate any sight line issues, raise roadside crowns, clear wires and columns, remove deadwood, strip ivy from tree stem bases.Price 780Total net amount 780Vat @20% 0Quote total 780",Maintenance of Trees and Shrubs
Wyre Council,http://opendatacommunities.org/doc/district-council/wyre,13/06/2024,People and Places,Highways,133B,T-Fer Tree Surgeons,29/04/2024,PE158865,60.00,0.00,"Quote 72 22/04/24 Sheringham Way , Poulton le Fylde Fell and remove failed willow tree Total net amount 60 Vat 20%Quote total 60",Maintenance of Trees and Shrubs
Wyre Council,http://opendatacommunities.org/doc/district-council/wyre,13/06/2024,People and Places,Highways,133B,T-Fer Tree Surgeons,29/04/2024,PE158863,460.00,0.00,"17/04/24 Quote 70 - Sheringham Way, PoultonX3 heavily leaning willow � remove and cut back overhang / X3 willow � re-coppice, clear sign / X1 sycamore � clear light and column.460Total net amount 460Vat at 20% 0Quote total 460",Maintenance of Trees and Shrubs
Wyre Council,http://opendatacommunities.org/doc/district-council/wyre,13/06/2024,People and Places,Highways,133B,T-Fer Tree Surgeons,23/04/2024,PE158686,230.00,0.00,"Quote 65 09/04/24Garstang road east, Poulton. (Adjacent no 217) X2 Dead conifers - Remove230Total net amount 230VAT @ 20% 0Quote total 230",Maintenance of Trees and Shrubs
Wyre Council,http://opendatacommunities.org/doc/district-council/wyre,13/06/2024,People and Places,Highways,133B,T-Fer Tree Surgeons,17/04/2024,PE158611,320.00,0.00,"10/04/24 Quote 67 Lower GreenX2 Lime � remove epicormic, deadwood, crown raise to 4m and clear services320Total net amount 320Vat@ 20% 0Quote total 320",Maintenance of Trees and Shrubs
Wyre Council,http://opendatacommunities.org/doc/district-council/wyre,13/06/2024,People and Places,Support Services,135B,Fast Fix Workshop Ltd,19/04/2024,PE158578,53.32,0.00,2 x 5l Wood preserver - ordered and collected by Keith Urwin,Materials and Consumables
Wyre Council,http://opendatacommunities.org/doc/district-council/wyre,13/06/2024,People and Places,Support Services,135B,Fast Fix Workshop Ltd,16/04/2024,PE158577,45.82,0.00,Tape measurerskeys cut,Materials and Consumables
Wyre Council,http://opendatacommunities.org/doc/district-council/wyre,13/06/2024,People and Places,Support Services,135B,Agrovista UK LTD,29/04/2024,PE158868,498.00,0.00,10 tubs round up 49.80 / 5L,Materials and Consumables
Wyre Council,http://opendatacommunities.org/doc/district-council/wyre,13/06/2024,People and Places,Support Services,135B,Agrovista UK LTD,29/04/2024,PE158868,310.00,0.00,5 tubs katana 62.00 / 50gm,Materials and Consumables
Wyre Council,http://opendatacommunities.org/doc/district-council/wyre,13/06/2024,People and Places,Support Services,135B,Agrovista UK LTD,29/04/2024,PE158868,54.75,0.00,1 bottle Icade 54.75 / 1L,Materials and Consumables
Wyre Council,http://opendatacommunities.org/doc/district-council/wyre,13/06/2024,People and Places,Support Services,135B,Agrovista UK LTD,29/04/2024,PE158868,105.00,0.00,"3 tubs of Depitox @ 35.00 per 5L mate Delivery to Wyre Council, Copse Road Depot, Copse Road, Fleetwood, FY7 6RP",Materials and Consumables
Wyre Council,http://opendatacommunities.org/doc/district-council/wyre,13/06/2024,People and Places,Support Services,135B,Agrovista UK LTD,29/04/2024,PE158868,68.50,0.00,Supply 1 box ecoplugs 68.50 / pack,Materials and Consumables
Wyre Council,http://opendatacommunities.org/doc/district-council/wyre,13/06/2024,People and Places,Environmental Services,132B,Aitch Tools & Fasteners LTD,08/04/2024,PE158307,1477.25,0.00,Materials Engineers,Materials and Consumables
Wyre Council,http://opendatacommunities.org/doc/district-council/wyre,13/06/2024,People and Places,Support Services,135B,HUWS GRAY LTD,18/04/2024,PE158594,101.83,0.00,Goods already received  IG984145- various items for maintenance of playgrounds ordered by Keith Urwin,Materials and Consumables
Wyre Council,http://opendatacommunities.org/doc/district-council/wyre,13/06/2024,People and Places,Support Services,135B,HUWS GRAY LTD,25/04/2024,PE158757,90.47,0.00,Materials  Keith Urwin,Materials and Consumables
Wyre Council,http://opendatacommunities.org/doc/district-council/wyre,13/06/2024,People and Places,Cultural and Related Services,132A,HUWS GRAY LTD,09/04/2024,PE158351,59.32,0.00,bench bolts set spanners set of routing drills,Materials and Consumables
Wyre Council,http://opendatacommunities.org/doc/district-council/wyre,13/06/2024,Resources,Corporate and Democratic Core,131A,Best Western Garstang Country Hotel & Golf Club,10/04/2024,RS158407,1764.58,0.00,Payment for 3 course dinner for 87 guests plus sandwiches for 5 x Mayors attendants (minus 100 deposit already paid) - Mayors charity race night 6 April 2024,Mayoral Ball
Wyre Council,http://opendatacommunities.org/doc/district-council/wyre,13/06/2024,Resources,Corporate and Democratic Core,131A,HR Entertainment Limited,10/04/2024,RS158406,650.00,0.00,"Mayoral Charity Event - Corporate Race Night: 6 April 2024Provision of Race night entertainment package of eight races, an MC, plus 2 x betting operatives and all projection & sound equipment.",Mayoral Ball
Wyre Council,http://opendatacommunities.org/doc/district-council/wyre,13/06/2024,Resources,Corporate and Democratic Core,131A,The Lunchbox Ltd,24/04/2024,RS158798,121.50,0.00,Catering for Full Council - Thursday 18 April 2024,Members' Hospitality
Wyre Council,http://opendatacommunities.org/doc/district-council/wyre,13/06/2024,Resources,Corporate and Democratic Core,131A,The Lunchbox Ltd,04/04/2024,RS158249,60.75,0.00,Catering for the Planning Committee Wednesday 3 April 2024,Members' Hospitality
Wyre Council,http://opendatacommunities.org/doc/district-council/wyre,13/06/2024,Resources,Housing General Fund,134A,Mobility Care Services,24/04/2024,RS158738,640.00,0.00,REDACT,Minor Adaptations
Wyre Council,http://opendatacommunities.org/doc/district-council/wyre,13/06/2024,Resources,Housing General Fund,134A,Mobility Care Services,24/04/2024,RS158737,480.00,0.00,REDACT,Minor Adaptations
Wyre Council,http://opendatacommunities.org/doc/district-council/wyre,13/06/2024,Resources,Housing General Fund,134A,Mobility Care Services,24/04/2024,RS158736,270.00,0.00,REDACT,Minor Adaptations
Wyre Council,http://opendatacommunities.org/doc/district-council/wyre,13/06/2024,Resources,Housing General Fund,134A,Mobility Care Services,24/04/2024,RS158733,320.00,0.00,REDACT,Minor Adaptations
Wyre Council,http://opendatacommunities.org/doc/district-council/wyre,13/06/2024,Resources,Housing General Fund,134A,Mobility Care Services,24/04/2024,RS158735,160.00,0.00,REDACT,Minor Adaptations
Wyre Council,http://opendatacommunities.org/doc/district-council/wyre,13/06/2024,Resources,Housing General Fund,134A,Mobility Care Services,24/04/2024,RS158734,140.00,0.00,REDACT,Minor Adaptations
Wyre Council,http://opendatacommunities.org/doc/district-council/wyre,13/06/2024,Resources,Housing General Fund,134A,Mobility Care Services,24/04/2024,RS158739,220.00,0.00,REDACT,Minor Adaptations
Wyre Council,http://opendatacommunities.org/doc/district-council/wyre,13/06/2024,People and Places,Housing General Fund,134A,J A DICKENS LIMITED,23/04/2024,PE158689,80.00,0.00,REDACT,Minor Adaptations
Wyre Council,http://opendatacommunities.org/doc/district-council/wyre,13/06/2024,People and Places,Housing General Fund,134A,J A DICKENS LIMITED,23/04/2024,PE158689,80.00,0.00,REDACT,Minor Adaptations
Wyre Council,http://opendatacommunities.org/doc/district-council/wyre,13/06/2024,Resources,Housing General Fund,134A,J A DICKENS LIMITED,24/04/2024,RS158742,160.00,0.00,REDACT,Minor Adaptations
Wyre Council,http://opendatacommunities.org/doc/district-council/wyre,13/06/2024,Resources,Housing General Fund,134A,J A DICKENS LIMITED,24/04/2024,RS158742,160.00,0.00,REDACT,Minor Adaptations
Wyre Council,http://opendatacommunities.org/doc/district-council/wyre,13/06/2024,Resources,Housing General Fund,134A,J A DICKENS LIMITED,24/04/2024,RS158743,400.00,0.00,REDACT,Minor Adaptations
Wyre Council,http://opendatacommunities.org/doc/district-council/wyre,13/06/2024,Resources,Housing General Fund,134A,J A DICKENS LIMITED,24/04/2024,RS158743,480.00,0.00,REDACT,Minor Adaptations
Wyre Council,http://opendatacommunities.org/doc/district-council/wyre,13/06/2024,Resources,Housing General Fund,134A,J A DICKENS LIMITED,24/04/2024,RS158740,290.00,0.00,REDACT,Minor Adaptations
Wyre Council,http://opendatacommunities.org/doc/district-council/wyre,13/06/2024,Resources,Housing General Fund,134A,J A DICKENS LIMITED,24/04/2024,RS158740,270.00,0.00,REDACT,Minor Adaptations
Wyre Council,http://opendatacommunities.org/doc/district-council/wyre,13/06/2024,Resources,Housing General Fund,134A,J A DICKENS LIMITED,24/04/2024,RS158741,200.00,0.00,REDACT,Minor Adaptations
Wyre Council,http://opendatacommunities.org/doc/district-council/wyre,13/06/2024,Resources,Housing General Fund,134A,J A DICKENS LIMITED,24/04/2024,RS158741,210.00,0.00,REDACT,Minor Adaptations
Wyre Council,http://opendatacommunities.org/doc/district-council/wyre,13/06/2024,Resources,Housing General Fund,134A,J A DICKENS LIMITED,23/04/2024,RS158693,330.00,0.00,REDACT,Minor Adaptations
Wyre Council,http://opendatacommunities.org/doc/district-council/wyre,13/06/2024,Resources,Housing General Fund,134A,J A DICKENS LIMITED,23/04/2024,RS158693,330.00,0.00,REDACT,Minor Adaptations
Wyre Council,http://opendatacommunities.org/doc/district-council/wyre,13/06/2024,Resources,Housing General Fund,134A,J A DICKENS LIMITED,23/04/2024,RS158688,60.00,0.00,REDACT,Minor Adaptations
Wyre Council,http://opendatacommunities.org/doc/district-council/wyre,13/06/2024,Resources,Housing General Fund,134A,J A DICKENS LIMITED,23/04/2024,RS158690,90.00,0.00,REDACT,Minor Adaptations
Wyre Council,http://opendatacommunities.org/doc/district-council/wyre,13/06/2024,Resources,Housing General Fund,134A,J A DICKENS LIMITED,23/04/2024,RS158690,70.00,0.00,REDACT,Minor Adaptations
Wyre Council,http://opendatacommunities.org/doc/district-council/wyre,13/06/2024,Resources,Housing General Fund,134A,J A DICKENS LIMITED,23/04/2024,RS158691,80.00,0.00,REDACT,Minor Adaptations
Wyre Council,http://opendatacommunities.org/doc/district-council/wyre,13/06/2024,Resources,Housing General Fund,134A,J A DICKENS LIMITED,23/04/2024,RS158691,80.00,0.00,REDACT,Minor Adaptations
Wyre Council,http://opendatacommunities.org/doc/district-council/wyre,13/06/2024,Resources,Housing General Fund,134A,J A DICKENS LIMITED,23/04/2024,RS158692,520.00,0.00,REDACT,Minor Adaptations
Wyre Council,http://opendatacommunities.org/doc/district-council/wyre,13/06/2024,Resources,Housing General Fund,134A,J A DICKENS LIMITED,23/04/2024,RS158692,360.00,0.00,REDACT,Minor Adaptations
Wyre Council,http://opendatacommunities.org/doc/district-council/wyre,13/06/2024,Resources,Housing General Fund,134A,J A DICKENS LIMITED,23/04/2024,RS158688,80.00,0.00,REDACT,Minor Adaptations
Wyre Council,http://opendatacommunities.org/doc/district-council/wyre,13/06/2024,Resources,Housing General Fund,134A,New Progress Housing Association,26/04/2024,RS158768,5176.03,0.00,Out of hours service 2024-2025,New Progress - Out of Hours Service
Wyre Council,http://opendatacommunities.org/doc/district-council/wyre,13/06/2024,Resources,General Fund below the line,136A,Ribble Valley Borough Council,19/04/2024,RS158624,73592.85,0.00,"Business Rates Pool 10%, Retained levy due to LCC under the pooling arrangements for 2022/23",NNDR Levy to Government
Wyre Council,http://opendatacommunities.org/doc/district-council/wyre,13/06/2024,Finance,Current Assets,130B,,16/04/2024,WPST00139179,32594.64,0.00,12/04/2024 NNDR REfunds,NNDR Refunds
Wyre Council,http://opendatacommunities.org/doc/district-council/wyre,13/06/2024,Finance,Current Assets,130B,,23/04/2024,WPST00139912,4964.04,0.00,19/04/24 NNDR Refunds,NNDR Refunds
Wyre Council,http://opendatacommunities.org/doc/district-council/wyre,13/06/2024,Finance,Current Assets,130B,,09/04/2024,WPST00138400,1512.75,0.00,05/04/2024NNDR REFUNDS,NNDR Refunds
Wyre Council,http://opendatacommunities.org/doc/district-council/wyre,13/06/2024,Finance,Current Assets,130B,,30/04/2024,WPST00140840,2209.16,0.00,26/04/24 NNDR Refunds,NNDR Refunds
Wyre Council,http://opendatacommunities.org/doc/district-council/wyre,13/06/2024,Resources,Support Services,135B,People Asset Management LTD,09/04/2024,RS158272,795.43,0.00,Monthly PAYG Charges,Occupational Health Fees
Wyre Council,http://opendatacommunities.org/doc/district-council/wyre,13/06/2024,Resources,Support Services,135B,Karen Openshaw Consultancy,02/04/2024,RS158150,520.00,0.00,Listening Services until March 22024,Occupational Health Fees
Wyre Council,http://opendatacommunities.org/doc/district-council/wyre,13/06/2024,People and Places,Central Services to the Public,131C,Idox Software LTD,22/04/2024,PE158717,5230.00,0.00,Grant Finder web based solution from IDOX for Wyre Council for one year,Other Contributions
Wyre Council,http://opendatacommunities.org/doc/district-council/wyre,13/06/2024,Resources,General Fund below the line,136A,Catterall Parish Council,02/04/2024,RS158169,103500.00,0.00,Catterall Parish Precept 24/25,Other Contributions
Wyre Council,http://opendatacommunities.org/doc/district-council/wyre,13/06/2024,Resources,General Fund below the line,136A,Hambleton Parish Council,02/04/2024,RS158170,50000.00,0.00,Hambleton Parish Precept 24/25,Other Contributions
Wyre Council,http://opendatacommunities.org/doc/district-council/wyre,13/06/2024,Resources,General Fund below the line,136A,Preesall Town Council,02/04/2024,RS158171,100109.00,0.00,Preesall Town Precept 24/25,Other Contributions
Wyre Council,http://opendatacommunities.org/doc/district-council/wyre,13/06/2024,Resources,General Fund below the line,136A,Cabus Parish Council,02/04/2024,RS158172,9000.00,0.00,Cabus Parish Precept 24/25,Other Contributions
Wyre Council,http://opendatacommunities.org/doc/district-council/wyre,13/06/2024,Resources,General Fund below the line,136A,Great Eccleston Parish Council,02/04/2024,RS158173,47300.00,0.00,Gt Eccleston Parish Precept 24/25,Other Contributions
Wyre Council,http://opendatacommunities.org/doc/district-council/wyre,13/06/2024,Resources,General Fund below the line,136A,Forton Parish Council,02/04/2024,RS158174,21000.00,0.00,Forton Parish Precept 24/25,Other Contributions
Wyre Council,http://opendatacommunities.org/doc/district-council/wyre,13/06/2024,Resources,General Fund below the line,136A,Inskip with Sowerby Parish Council,02/04/2024,RS158175,12500.00,0.00,Inskip Parish Precept 24/25,Other Contributions
Wyre Council,http://opendatacommunities.org/doc/district-council/wyre,13/06/2024,People and Places,Central Services to the Public,131C,Police and Crime Commissioner for Lancashire,26/04/2024,PE158833,300.00,0.00,Contribution towards Lancashire Emergency Radio Area Network 2024/25,Other Contributions
Wyre Council,http://opendatacommunities.org/doc/district-council/wyre,13/06/2024,Resources,General Fund below the line,136A,Bleasdale Parish Council,02/04/2024,RS158176,1000.00,0.00,Bleasdale Parish Precept 2024/25,Other Contributions
Wyre Council,http://opendatacommunities.org/doc/district-council/wyre,13/06/2024,Resources,General Fund below the line,136A,Pilling Parish Council,02/04/2024,RS158178,81000.00,0.00,Pilling Precept 24/25,Other Contributions
Wyre Council,http://opendatacommunities.org/doc/district-council/wyre,13/06/2024,Resources,General Fund below the line,136A,Stalmine With Staynall Parish Council,02/04/2024,RS158177,40203.00,0.00,Stalmine Parish Precept 24/25,Other Contributions
Wyre Council,http://opendatacommunities.org/doc/district-council/wyre,13/06/2024,Resources,General Fund below the line,136A,Barnacre With Bonds Parish Council,02/04/2024,RS158179,17000.00,0.00,Barnacre Parish Precept 2024/25,Other Contributions
Wyre Council,http://opendatacommunities.org/doc/district-council/wyre,13/06/2024,Resources,General Fund below the line,136A,Garstang Town Council,02/04/2024,RS158180,139325.00,0.00,Garstang Town Precept 24/25,Other Contributions
Wyre Council,http://opendatacommunities.org/doc/district-council/wyre,13/06/2024,Resources,General Fund below the line,136A,c. Kirkland Parish Council,02/04/2024,RS158181,14175.00,0.00,Kirkland Parish Precept 24/25,Other Contributions
Wyre Council,http://opendatacommunities.org/doc/district-council/wyre,13/06/2024,Resources,General Fund below the line,136A,Upper Rawcliffe-With-Tarnacre Parish Council,02/04/2024,RS158182,9000.00,0.00,U Rawcliffe Parish Precept 24/25,Other Contributions
Wyre Council,http://opendatacommunities.org/doc/district-council/wyre,13/06/2024,Resources,General Fund below the line,136A,Winmarleigh Parish Council,02/04/2024,RS158183,5890.00,0.00,Winmarleigh Parish Precept 24/25,Other Contributions
Wyre Council,http://opendatacommunities.org/doc/district-council/wyre,13/06/2024,Resources,General Fund below the line,136A,Out Rawcliffe Parish Council,02/04/2024,RS158184,7500.00,0.00,Out Rawcliffe Parish Precept 24/25,Other Contributions
Wyre Council,http://opendatacommunities.org/doc/district-council/wyre,13/06/2024,Resources,General Fund below the line,136A,Nateby Parish Council,02/04/2024,RS158185,5746.00,0.00,Nateby Parish Precept 24/25,Other Contributions
Wyre Council,http://opendatacommunities.org/doc/district-council/wyre,13/06/2024,Resources,General Fund below the line,136A,Myerscough & Bilsborrow Parish Council,02/04/2024,RS158186,20500.00,0.00,Myerscough Parish Precept 24/25,Other Contributions
Wyre Council,http://opendatacommunities.org/doc/district-council/wyre,13/06/2024,Resources,General Fund below the line,136A,Claughton-On-Brock Parish Council,02/04/2024,RS158187,35000.00,0.00,Claughton Parish Precept 24/25,Other Contributions
Wyre Council,http://opendatacommunities.org/doc/district-council/wyre,13/06/2024,Resources,General Fund below the line,136A,Nether Wyresdale Parish Council,02/04/2024,RS158188,28000.00,0.00,Nether W Parish Precept 24/25,Other Contributions
Wyre Council,http://opendatacommunities.org/doc/district-council/wyre,13/06/2024,Resources,General Fund below the line,136A,Fleetwood Town Council,02/04/2024,RS158189,255653.00,0.00,Fleetwood Town Precept 24/25,Other Contributions
Wyre Council,http://opendatacommunities.org/doc/district-council/wyre,13/06/2024,People and Places,Environmental Services,132B,DANFO (UK) LTD,11/04/2024,PE158445,23387.86,0.00,Public Conveniences - Maintenance and Cleaning 2023/24,Other Establishments
Wyre Council,http://opendatacommunities.org/doc/district-council/wyre,13/06/2024,Finance,Collection Fund Revenue Accts,138A,LANCASHIRE FIRE AUTHORITY,24/04/2024,WPST00140359,331624.00,0.00,22/04/24 Lancs Fire 23/24 Ctax,Other Local Authorities
Wyre Council,http://opendatacommunities.org/doc/district-council/wyre,13/06/2024,Finance,Collection Fund Revenue Accts,138A,,24/04/2024,WPST00140360,6391.00,0.00,22/4/24 Lancs Fire 22/23 Ctax surplus,Other Local Authorities
Wyre Council,http://opendatacommunities.org/doc/district-council/wyre,13/06/2024,Finance,Collection Fund Revenue Accts,138A,LANCASHIRE COUNTY COUNCIL,24/04/2024,WPST00140357,236251.17,0.00,22/04/24 LCC 23/24 business rates,Other Local Authorities
Wyre Council,http://opendatacommunities.org/doc/district-council/wyre,13/06/2024,Finance,Collection Fund Revenue Accts,138A,,24/04/2024,WPST00140358,9987.21,0.00,22/04/24 LCC 22/23 bus rates surplus def,Other Local Authorities
Wyre Council,http://opendatacommunities.org/doc/district-council/wyre,13/06/2024,Finance,Collection Fund Revenue Accts,138A,LANCASHIRE FIRE AUTHORITY,24/04/2024,WPST00140361,26253.13,0.00,22/4/24 Lancs Fire 23/24 bus rates,Other Local Authorities
Wyre Council,http://opendatacommunities.org/doc/district-council/wyre,13/06/2024,Finance,Collection Fund Revenue Accts,138A,,24/04/2024,WPST00140362,1105.69,0.00,22/4/24 Lancs Fire 22/23 bus rates surpl,Other Local Authorities
Wyre Council,http://opendatacommunities.org/doc/district-council/wyre,13/06/2024,Finance,Collection Fund Revenue Accts,138A,LANCASHIRE COUNTY COUNCIL,24/04/2024,WPST00140355,6470723.60,0.00,22/04/24 LCC 23/24 Ctax,Other Local Authorities
Wyre Council,http://opendatacommunities.org/doc/district-council/wyre,13/06/2024,Finance,Collection Fund Revenue Accts,138A,,24/04/2024,WPST00140356,122346.00,0.00,22/04/24 LCC 22/23 Ctax surplus,Other Local Authorities
Wyre Council,http://opendatacommunities.org/doc/district-council/wyre,13/06/2024,Finance,Collection Fund Revenue Accts,138A,,24/04/2024,WPST00140363,1030903.63,0.00,22/4/24 PCCL 23/24 Ctax,Other Local Authorities
Wyre Council,http://opendatacommunities.org/doc/district-council/wyre,13/06/2024,Finance,Collection Fund Revenue Accts,138A,,24/04/2024,WPST00140364,19537.00,0.00,22/4/24 PCCL 22/23 Ctax surplus,Other Local Authorities
Wyre Council,http://opendatacommunities.org/doc/district-council/wyre,13/06/2024,Resources,Central Services to the Public,131C,Ribble Valley Borough Council,19/04/2024,RS158624,1818.18,0.00,Annual Charge from the lead authority for the administration of the Lancashire Business Rates Pool for 2023/24,Other Local Authorities
Wyre Council,http://opendatacommunities.org/doc/district-council/wyre,13/06/2024,People and Places,Cultural and Related Services,132A,SHARD SURFACING LTD,18/04/2024,PE158335,13837.01,0.00,Project: The Mount Re Surfacing  labour,Other Materials
Wyre Council,http://opendatacommunities.org/doc/district-council/wyre,13/06/2024,People and Places,Cultural and Related Services,132A,SHARD SURFACING LTD,18/04/2024,PE158335,33218.20,0.00,"Project: The Mount Re Surfacing  To attend site & remove 22no benches from around the pathway (to be refit following re surfacing). To plain out around no Entrances, 2no Bus stops & the Central Building. To scrap off any debris & Tacocat prior tto surfaci",Other Materials
Wyre Council,http://opendatacommunities.org/doc/district-council/wyre,13/06/2024,People and Places,Cultural and Related Services,132A,SHARD SURFACING LTD,18/04/2024,PE158335,4963.64,0.00,"Project: The Mount, Fleetwood - Options to seating area  Option 2  To attend site & plain off approx 68m2 of tar in front of 22no seating areas (1760m2) to allow tie ins & elevate pooling of seating areas including supply of 18mm base tarmadam to regulate",Other Materials
Wyre Council,http://opendatacommunities.org/doc/district-council/wyre,13/06/2024,People and Places,Parking Services,133F,Park Now Limited,08/04/2024,PE158308,725.99,0.00,RingGo fee 1 Nov 2023 - 31 March 2024,Other Parking Fees and Commission
Wyre Council,http://opendatacommunities.org/doc/district-council/wyre,13/06/2024,Resources,Corporate and Democratic Core,131A,Coastal Coaches,05/04/2024,RS158260,210.00,0.00,Site Visits for the Planning Committee Wednesday 3 April 2024,Other Travelling Expenses
Wyre Council,http://opendatacommunities.org/doc/district-council/wyre,13/06/2024,People and Places,Planning and Development Servs,132C,Andrew Signs LTD,02/04/2024,PE158113,85.20,0.00,"Supply of signs for wash down areas at Copse Road Depot, Fleetwood as your quotation QU-0407  To be collected by Bob Greaves","Paths, Roads and Car Park Mtnce Annual"
Wyre Council,http://opendatacommunities.org/doc/district-council/wyre,13/06/2024,People and Places,Parking Services,133F,Andrew Signs LTD,09/04/2024,PE158348,3560.40,0.00,"Supply 13 no 1000 x 1500 car park signs (artwork to be provided) and 20 no 320 x 250 signs (artwork to be provided). Signs to be rivetted to existing signs (to be delivered to, and collected from Andrews Signs Ltd.","Paths, Roads and Car Park Mtnce Annual"
Wyre Council,http://opendatacommunities.org/doc/district-council/wyre,13/06/2024,People and Places,Cultural and Related Services,132A,HUWS GRAY LTD,25/04/2024,PE158756,33.27,0.00,Timber,"Paths, Roads and Car Park Mtnce Annual"
Wyre Council,http://opendatacommunities.org/doc/district-council/wyre,13/06/2024,People and Places,Cultural and Related Services,132A,HUWS GRAY LTD,25/04/2024,PE158755,151.85,0.00,Timber and screws,"Paths, Roads and Car Park Mtnce Annual"
Wyre Council,http://opendatacommunities.org/doc/district-council/wyre,13/06/2024,People and Places,Parking Services,133F,SHARD SURFACING LTD,10/04/2024,PE158401,3633.34,0.00,Ashdell car park remedial works materials,"Paths, Roads and Car Park Mtnce Annual"
Wyre Council,http://opendatacommunities.org/doc/district-council/wyre,13/06/2024,People and Places,Parking Services,133F,SHARD SURFACING LTD,10/04/2024,PE158403,212.48,0.00,Civic Centre Patching works labour,"Paths, Roads and Car Park Mtnce Annual"
Wyre Council,http://opendatacommunities.org/doc/district-council/wyre,13/06/2024,People and Places,Parking Services,133F,SHARD SURFACING LTD,10/04/2024,PE158403,119.52,0.00,Civic Centre Patching works materials,"Paths, Roads and Car Park Mtnce Annual"
Wyre Council,http://opendatacommunities.org/doc/district-council/wyre,13/06/2024,People and Places,Parking Services,133F,SHARD SURFACING LTD,10/04/2024,PE158402,832.00,0.00,"*** Your Quotation date 28 Feb 2024 *** Civic centre car park, Poulton - cut out damaged pothole areas, tack coat and resurface Derby Road car park, Cleveleys - Supply and lay 3 no 10x5 kerbs, 1 no right dropper and 1 no 6x5 bullnose. Supply and lay 3m2 t","Paths, Roads and Car Park Mtnce Annual"
Wyre Council,http://opendatacommunities.org/doc/district-council/wyre,13/06/2024,People and Places,Parking Services,133F,SHARD SURFACING LTD,10/04/2024,PE158401,852.26,0.00,Ashdell car park remedial works labour,"Paths, Roads and Car Park Mtnce Annual"
Wyre Council,http://opendatacommunities.org/doc/district-council/wyre,13/06/2024,People and Places,Parking Services,133F,SHARD SURFACING LTD,10/04/2024,PE158402,768.00,0.00,Derby Road Car Park Entrance - materials,"Paths, Roads and Car Park Mtnce Annual"
Wyre Council,http://opendatacommunities.org/doc/district-council/wyre,13/06/2024,People and Places,Support Services,135B,Allstar Business Solutions LTD,09/04/2024,PE158226,191.02,0.00,Fuel to 26/03,Petrol
Wyre Council,http://opendatacommunities.org/doc/district-council/wyre,13/06/2024,People and Places,Cultural and Related Services,132A,EAS Electrical Mechanical,18/04/2024,PE157893,448.00,0.00,Thornton little Theatre: 2024 annual gas safety test to boilers,Planned Building Maintenance
Wyre Council,http://opendatacommunities.org/doc/district-council/wyre,13/06/2024,People and Places,Support Services,135B,EAS Electrical Mechanical,18/04/2024,PE158481,1079.60,0.00,Civic Centre: annual service and gas safety certificates,Planned Building Maintenance
Wyre Council,http://opendatacommunities.org/doc/district-council/wyre,13/06/2024,People and Places,Cultural and Related Services,132A,Schneider Electric LTD,18/04/2024,PE158270,860.00,0.00,Marine Hall: Maintenance for period 01/10/23 to 30/09/24,Planned Building Maintenance
Wyre Council,http://opendatacommunities.org/doc/district-council/wyre,13/06/2024,People and Places,Planning and Development Servs,132C,Pipescan LTD,18/04/2024,PE158340,1566.00,0.00,Clean all site gullies and catch pits and jet out the main foul water sewers on site to a point into the main sewer off site 05/04/24.  Remove and dispose oil interceptor waste. Remove and dispose silt waste,Planned Building Maintenance
Wyre Council,http://opendatacommunities.org/doc/district-council/wyre,13/06/2024,People and Places,Planning and Development Servs,132C,M D Security,16/04/2024,PE158205,582.60,0.00,Copse Rd Depot: maintenance and monitoring of security alarm system for 1 year,Planned Building Maintenance
Wyre Council,http://opendatacommunities.org/doc/district-council/wyre,13/06/2024,People and Places,Planning and Development Servs,132C,M D Security,17/04/2024,PE158214,60.00,0.00,Copse Rd Depot: carried out emergency light test on whole site for 03/24,Planned Building Maintenance
Wyre Council,http://opendatacommunities.org/doc/district-council/wyre,13/06/2024,People and Places,Cultural and Related Services,132A,M D Security,17/04/2024,PE158212,50.00,0.00,Mount Pavilion and Studios: carried out emergency light test to shole sites for 03/24,Planned Building Maintenance
Wyre Council,http://opendatacommunities.org/doc/district-council/wyre,13/06/2024,People and Places,Cultural and Related Services,132A,M D Security,26/04/2024,PE158825,60.00,0.00,Little Thornton Theatre: Emergency light test on whole site for 04/24,Planned Building Maintenance
Wyre Council,http://opendatacommunities.org/doc/district-council/wyre,13/06/2024,People and Places,Planning and Development Servs,132C,M D Security,26/04/2024,PE158823,60.00,0.00,Fleetwood Market: emergency light test - report sent,Planned Building Maintenance
Wyre Council,http://opendatacommunities.org/doc/district-council/wyre,13/06/2024,People and Places,Cultural and Related Services,132A,M D Security,26/04/2024,PE158826,60.00,0.00,Riverside Room Stannah: Carried out emergency light test to whole site for 04/24,Planned Building Maintenance
Wyre Council,http://opendatacommunities.org/doc/district-council/wyre,13/06/2024,People and Places,Cultural and Related Services,132A,M D Security,26/04/2024,PE158824,60.00,0.00,Marine Hall: Emergency light test with info given from site to location of lights and test points for 04/24,Planned Building Maintenance
Wyre Council,http://opendatacommunities.org/doc/district-council/wyre,13/06/2024,People and Places,Environmental Services,132B,M D Security,18/04/2024,PE158200,492.60,0.00,Chatsworth Depot: Maintenance and monitoring of security alarm system for 1 year,Planned Building Maintenance
Wyre Council,http://opendatacommunities.org/doc/district-council/wyre,13/06/2024,People and Places,Cultural and Related Services,132A,M D Security,16/04/2024,PE158197,531.50,0.00,Marine Hall: Maintenance and monitoring of security alarm system for 1 year,Planned Building Maintenance
Wyre Council,http://opendatacommunities.org/doc/district-council/wyre,13/06/2024,People and Places,Cultural and Related Services,132A,M D Security,18/04/2024,PE158211,50.00,0.00,Thornton Little Theatre: Carried out emergency light test on whole site for 03/24,Planned Building Maintenance
Wyre Council,http://opendatacommunities.org/doc/district-council/wyre,13/06/2024,People and Places,Environmental Services,132B,M D Security,18/04/2024,PE158213,50.00,0.00,Chatsworth Depot: Carried out emergency light test on whole site for 03/24,Planned Building Maintenance
Wyre Council,http://opendatacommunities.org/doc/district-council/wyre,13/06/2024,People and Places,Planning and Development Servs,132C,M D Security,18/04/2024,PE158208,510.00,0.00,Copse Rd Transport Depot: maintenance and monitoring of security alarm system for 1 year,Planned Building Maintenance
Wyre Council,http://opendatacommunities.org/doc/district-council/wyre,13/06/2024,People and Places,Support Services,135B,M D Security,18/04/2024,PE158196,997.60,0.00,Civic Centre: Maintenance and monitoring of security alarm system for 1 year,Planned Building Maintenance
Wyre Council,http://opendatacommunities.org/doc/district-council/wyre,13/06/2024,People and Places,Cultural and Related Services,132A,M D Security,18/04/2024,PE158218,50.00,0.00,Rossall Point: carried out emergency light test for month 03/24,Planned Building Maintenance
Wyre Council,http://opendatacommunities.org/doc/district-council/wyre,13/06/2024,People and Places,Cultural and Related Services,132A,M D Security,18/04/2024,PE158194,482.60,0.00,Rossall Point: maintenance and monitoring of security alarm system for 1 year,Planned Building Maintenance
Wyre Council,http://opendatacommunities.org/doc/district-council/wyre,13/06/2024,People and Places,Cultural and Related Services,132A,M D Security,17/04/2024,PE158201,548.80,0.00,Memorial Park: Maintenance and monitoring of security alarm system for 1 year,Planned Building Maintenance
Wyre Council,http://opendatacommunities.org/doc/district-council/wyre,13/06/2024,People and Places,Cultural and Related Services,132A,M D Security,17/04/2024,PE158207,520.00,0.00,"Mount Pavilion, lodge cafe & Arts and disables WC: maintenance and monitoring of security alarm system for 1 year.  Maintenance of fire alarm sensors",Planned Building Maintenance
Wyre Council,http://opendatacommunities.org/doc/district-council/wyre,13/06/2024,People and Places,Cultural and Related Services,132A,M D Security,17/04/2024,PE158206,740.00,0.00,Mount Pavilion: Maintenance and monitoring of fire and security alarm systems for 1 year,Planned Building Maintenance
Wyre Council,http://opendatacommunities.org/doc/district-council/wyre,13/06/2024,People and Places,Cultural and Related Services,132A,M D Security,17/04/2024,PE158199,469.76,0.00,Riverside Rangers Containers: maintenance and monitoring of security alarm system for 1 year,Planned Building Maintenance
Wyre Council,http://opendatacommunities.org/doc/district-council/wyre,13/06/2024,People and Places,Cultural and Related Services,132A,M D Security,17/04/2024,PE158216,50.00,0.00,Carried out emergency light test to whole site at Riverside rangers room,Planned Building Maintenance
Wyre Council,http://opendatacommunities.org/doc/district-council/wyre,13/06/2024,People and Places,Planning and Development Servs,132C,M D Security,17/04/2024,PE158193,514.40,0.00,Fleetwood Market: maintenance and monitoring of security alarm system for 1 year,Planned Building Maintenance
Wyre Council,http://opendatacommunities.org/doc/district-council/wyre,13/06/2024,People and Places,Cultural and Related Services,132A,M D Security,17/04/2024,PE158210,50.00,0.00,Carried out emergency light test at Thornton Windmill,Planned Building Maintenance
Wyre Council,http://opendatacommunities.org/doc/district-council/wyre,13/06/2024,People and Places,Cultural and Related Services,132A,M D Security,17/04/2024,PE158209,60.00,0.00,Marine Hall: Carried out emergency light test with info given from site to location of lights and test points for 03/24,Planned Building Maintenance
Wyre Council,http://opendatacommunities.org/doc/district-council/wyre,13/06/2024,People and Places,Cultural and Related Services,132A,M D Security,17/04/2024,PE158198,482.60,0.00,Little thornton Theatre: maintenance and monitoring of security alarm system for 1 year,Planned Building Maintenance
Wyre Council,http://opendatacommunities.org/doc/district-council/wyre,13/06/2024,People and Places,Planning and Development Servs,132C,M D Security,17/04/2024,PE158202,330.00,0.00,Fleetwood Market Studios: maintenance and monitoring of security alarm system for 1 year,Planned Building Maintenance
Wyre Council,http://opendatacommunities.org/doc/district-council/wyre,13/06/2024,People and Places,Cultural and Related Services,132A,M D Security,18/04/2024,PE158204,448.36,0.00,New Wave Beach Patol: Maintenance and monitoring of security alarm system for 1 year.  Maintenance of fire alarm system for 1 year,Planned Building Maintenance
Wyre Council,http://opendatacommunities.org/doc/district-council/wyre,13/06/2024,People and Places,Cultural and Related Services,132A,M D Security,18/04/2024,PE158203,448.36,0.00,New Wave Cafe: Maintenance and monitoring of security alarm system for 1 year. Maintenance of fire alarm system for 1 year,Planned Building Maintenance
Wyre Council,http://opendatacommunities.org/doc/district-council/wyre,13/06/2024,People and Places,Cultural and Related Services,132A,COWLEY FIRE,29/04/2024,PE158856,128.24,0.00,Cottam Hall Fields - service fire equipment,Planned Building Maintenance
Wyre Council,http://opendatacommunities.org/doc/district-council/wyre,13/06/2024,People and Places,Cultural and Related Services,132A,COWLEY FIRE,16/04/2024,PE157898,130.67,0.00,North Drive Bowling Club: service fire equipment,Planned Building Maintenance
Wyre Council,http://opendatacommunities.org/doc/district-council/wyre,13/06/2024,People and Places,Environmental Services,132B,COWLEY FIRE,16/04/2024,PE157724,133.17,0.00,Fleetwood Cemetery: Service fire equipment,Planned Building Maintenance
Wyre Council,http://opendatacommunities.org/doc/district-council/wyre,13/06/2024,People and Places,Public Transport,133G,COWLEY FIRE,16/04/2024,PE157754,38.35,0.00,"Bus Station Crew Room, Rough Lea Rd: service fire equipment",Planned Building Maintenance
Wyre Council,http://opendatacommunities.org/doc/district-council/wyre,13/06/2024,People and Places,Cultural and Related Services,132A,COWLEY FIRE,16/04/2024,PE157723,71.25,0.00,The servicing of equipment at Unit 6 Marine Hall kiosk,Planned Building Maintenance
Wyre Council,http://opendatacommunities.org/doc/district-council/wyre,13/06/2024,People and Places,Cultural and Related Services,132A,COWLEY FIRE,18/04/2024,PE158373,151.48,0.00,Jean Stansfield Memorial Park: Service fire equipment,Planned Building Maintenance
Wyre Council,http://opendatacommunities.org/doc/district-council/wyre,13/06/2024,People and Places,Cultural and Related Services,132A,COWLEY FIRE,18/04/2024,PE158372,131.75,0.00,"Kiosk 11, log cabin: service fire equipment",Planned Building Maintenance
Wyre Council,http://opendatacommunities.org/doc/district-council/wyre,13/06/2024,People and Places,Cultural and Related Services,132A,COWLEY FIRE,18/04/2024,PE158441,32.60,0.00,Kiosk 14 Beach kiosk: service fire equipment,Planned Building Maintenance
Wyre Council,http://opendatacommunities.org/doc/district-council/wyre,13/06/2024,People and Places,Cultural and Related Services,132A,COWLEY FIRE,18/04/2024,PE158440,198.06,0.00,Mount Beach  kiosk 7: service fire equipment,Planned Building Maintenance
Wyre Council,http://opendatacommunities.org/doc/district-council/wyre,13/06/2024,People and Places,Cultural and Related Services,132A,COWLEY FIRE,18/04/2024,PE158438,37.83,0.00,Gardeners Tool Shed: service fire equipment,Planned Building Maintenance
Wyre Council,http://opendatacommunities.org/doc/district-council/wyre,13/06/2024,People and Places,Cultural and Related Services,132A,COWLEY FIRE,18/04/2024,PE158439,44.25,0.00,"Gardener`s Mess Room, Colonade, Marine Hall: service fire equipment",Planned Building Maintenance
Wyre Council,http://opendatacommunities.org/doc/district-council/wyre,13/06/2024,People and Places,Cultural and Related Services,132A,COWLEY FIRE,26/04/2024,PE158800,194.42,0.00,Kiosk 3 nr boating lake Fleetwood: service fire equipment,Planned Building Maintenance
Wyre Council,http://opendatacommunities.org/doc/district-council/wyre,13/06/2024,People and Places,Cultural and Related Services,132A,COWLEY FIRE,26/04/2024,PE158799,51.71,0.00,Kiosk 4 Nr boating lake Fleetwood: service fire equipment,Planned Building Maintenance
Wyre Council,http://opendatacommunities.org/doc/district-council/wyre,13/06/2024,People and Places,Cultural and Related Services,132A,COWLEY FIRE,17/04/2024,PE158222,192.21,0.00,"the Paviliion Building, Memorial Park: sevice fire extinguishers",Planned Building Maintenance
Wyre Council,http://opendatacommunities.org/doc/district-council/wyre,13/06/2024,People and Places,Planning and Development Servs,132C,ADP ENVIRONMENTAL SERVICES LTD,29/04/2024,PE158857,1067.00,0.00,NSFP006 - 2024 annual service & maintenance agreement - including tankering.  1st service visit due March 20204 - 1 oil separator,Planned Building Maintenance
Wyre Council,http://opendatacommunities.org/doc/district-council/wyre,13/06/2024,People and Places,Planning and Development Servs,132C,John Carney,26/04/2024,PE158708,380.00,0.00,"Fleetwood Market: For cleaning of all debris to all accessible roof areas.  Taking down and disposal of all rubbish, brushing out al land gully`s.  Making sure water runs properly. also for cleaning out all gutters to lower canpoy",Planned Building Maintenance
Wyre Council,http://opendatacommunities.org/doc/district-council/wyre,13/06/2024,People and Places,Cultural and Related Services,132A,John Carney,26/04/2024,PE158707,250.00,0.00,"Thornton Sports Centre: Cleaning all debris to roof, sweeping and cleaning out all land gulleys to let water fun freely",Planned Building Maintenance
Wyre Council,http://opendatacommunities.org/doc/district-council/wyre,13/06/2024,People and Places,Cultural and Related Services,132A,John Carney,23/04/2024,PE158709,160.00,0.00,"Thornton Little Theatre: cleaning of all gutters, unblocking outlets, clearing off all leaves",Planned Building Maintenance
Wyre Council,http://opendatacommunities.org/doc/district-council/wyre,13/06/2024,People and Places,Environmental Services,132B,The Columbaria Company,19/04/2024,PE158447,148.80,0.00,REDACT,Plaque Inscriptions and Furniture
Wyre Council,http://opendatacommunities.org/doc/district-council/wyre,13/06/2024,People and Places,Environmental Services,132B,The Columbaria Company,09/04/2024,PE158346,74.40,0.00,REDACT,Plaque Inscriptions and Furniture
Wyre Council,http://opendatacommunities.org/doc/district-council/wyre,13/06/2024,Finance,Support Services,135B,,22/04/2024,WPST00139709,4400.00,0.00,18/04/24 LEF HAWTHORNE PARK,Playground Equipment
Wyre Council,http://opendatacommunities.org/doc/district-council/wyre,13/06/2024,People and Places,Support Services,135B,Kompan  LTD,26/04/2024,PE158845,13709.66,0.00,"As per quotation SQ289192-2Remove and dispose of existing net structure Hawthorne Park Thornton, hang new 6m space net , patch repairs to safety surface",Playground Equipment
Wyre Council,http://opendatacommunities.org/doc/district-council/wyre,13/06/2024,People and Places,Support Services,135B,Kompan  LTD,12/04/2024,PE158482,598.23,0.00,As per quotation SQ291687Supply and delivery A801491-99 Spica Upper Part,Playground Equipment
Wyre Council,http://opendatacommunities.org/doc/district-council/wyre,13/06/2024,People and Places,Support Services,135B,C I E H,11/04/2024,PE158363,681.00,0.00,Environmental Health Practitioner Portfolio registration for Mwaita Zengeni,Post Entry/Professional Training
Wyre Council,http://opendatacommunities.org/doc/district-council/wyre,13/06/2024,Resources,Central Services to the Public,131C,Royal Mail Group PLC,24/04/2024,RS158694,100.00,0.00,General Royal mail postage services,Postage
Wyre Council,http://opendatacommunities.org/doc/district-council/wyre,13/06/2024,Resources,Central Services to the Public,131C,Royal Mail Group PLC,29/04/2024,RS158830,208.08,0.00,Royal mail general elections postage,Postage
Wyre Council,http://opendatacommunities.org/doc/district-council/wyre,13/06/2024,Resources,Support Services,135B,NEC Software Solutions UK Limited,02/04/2024,RS158128,5000.00,0.00,Supplier Software: SMS Messaging Implementation services to be provided from block booking 145376 (1 day),Postage
Wyre Council,http://opendatacommunities.org/doc/district-council/wyre,13/06/2024,Resources,Support Services,135B,NEC Software Solutions UK Limited,03/04/2024,RS158227,1250.00,0.00,SUPPORT AND MAINTENANCE SERVICESSMS MessagingAnnually in advance of the Start Date and anniversaries thereof,Postage
Wyre Council,http://opendatacommunities.org/doc/district-council/wyre,13/06/2024,Resources,Support Services,135B,Critiqom LTD,17/04/2024,RS158603,10.00,0.00,data quality infractions March 24,Postage
Wyre Council,http://opendatacommunities.org/doc/district-council/wyre,13/06/2024,Resources,Central Services to the Public,131C,Critiqom LTD,05/04/2024,RS158266,187.85,0.00,Services March 24 IQ  post - Electoral,Postage
Wyre Council,http://opendatacommunities.org/doc/district-council/wyre,13/06/2024,Resources,Support Services,135B,Critiqom LTD,05/04/2024,RS158266,4.46,0.00,Services March 24 IQ  Post - Cemeteries,Postage
Wyre Council,http://opendatacommunities.org/doc/district-council/wyre,13/06/2024,Resources,Support Services,135B,Critiqom LTD,05/04/2024,RS158266,293.40,0.00,Services March 24 IQ  Post - Planning,Postage
Wyre Council,http://opendatacommunities.org/doc/district-council/wyre,13/06/2024,Resources,Support Services,135B,Critiqom LTD,05/04/2024,RS158266,15.24,0.00,Services March 24 IQ  Post - Pollution,Postage
Wyre Council,http://opendatacommunities.org/doc/district-council/wyre,13/06/2024,Resources,Support Services,135B,Critiqom LTD,05/04/2024,RS158266,766.23,0.00,Services March 24 IQ  post - Off Serv Admin,Postage
Wyre Council,http://opendatacommunities.org/doc/district-council/wyre,13/06/2024,Resources,Support Services,135B,Critiqom LTD,05/04/2024,RS158266,934.83,0.00,Services March 24 IQ  post - CC,Postage
Wyre Council,http://opendatacommunities.org/doc/district-council/wyre,13/06/2024,Resources,Housing General Fund,134A,Critiqom LTD,05/04/2024,RS158266,74.06,0.00,Services March 24  Benefit Notifications,Postage
Wyre Council,http://opendatacommunities.org/doc/district-council/wyre,13/06/2024,Resources,Housing General Fund,134A,Critiqom LTD,05/04/2024,RS158267,264.95,0.00,Postage March 24 Benefit Notifications,Postage
Wyre Council,http://opendatacommunities.org/doc/district-council/wyre,13/06/2024,Resources,Central Services to the Public,131C,Critiqom LTD,05/04/2024,RS158266,1164.36,0.00,Services March 24 Daily Bills,Postage
Wyre Council,http://opendatacommunities.org/doc/district-council/wyre,13/06/2024,Resources,Central Services to the Public,131C,Critiqom LTD,05/04/2024,RS158267,2050.91,0.00,Postage March 24 Daily Bills,Postage
Wyre Council,http://opendatacommunities.org/doc/district-council/wyre,13/06/2024,Finance,Housing General Fund,134A,,09/04/2024,WPST00138398,10250.00,0.00,05/04/24 Homes for Ukraine,Private Contractors
Wyre Council,http://opendatacommunities.org/doc/district-council/wyre,13/06/2024,People and Places,Environmental Services,132B,EAS Electrical Mechanical,23/04/2024,PE158480,6905.58,0.00,"*** Confirmation Order *** Royles Brook pumping station, Thornton YMCA Remove, repair and reinstall 3 no. pumps",Private Contractors
Wyre Council,http://opendatacommunities.org/doc/district-council/wyre,13/06/2024,People and Places,Environmental Services,132B,EAS Electrical Mechanical,30/04/2024,PE158876,6905.58,0.00,"*** Confirmation Order *** Royles Brook pumping station, Thornton YMCA Remove, repair and reinstall 3 no. pumps",Private Contractors
Wyre Council,http://opendatacommunities.org/doc/district-council/wyre,13/06/2024,People and Places,Support Services,135B,Lancashire County Council,19/04/2024,PE158472,255.75,0.00,advice from the Lancashire Historic Environment Record in relation to Woodland Management Plan (R. Arrell) -  Not in connection with Wyres Local Plan,Private Contractors
Wyre Council,http://opendatacommunities.org/doc/district-council/wyre,13/06/2024,People and Places,Public Transport,133G,Wyre Marine Services,24/04/2024,PE158760,9516.66,0.00,"Knott End Ferry Service - Schedule of payments 12 April 2024 - 11 April 202512 April 2024 - 11 May 2024 = 9,516.6612 May 2024 - 11 June 2024 = 9,516.6612 June 2024 - 11 July 2024 = 9,516.6612 July 2024 - 11 August 2024 = 9,516.6612 August 20",Private Contractors
Wyre Council,http://opendatacommunities.org/doc/district-council/wyre,13/06/2024,People and Places,Public Transport,133G,Wyre Marine Services,08/04/2024,PE158271,8685.00,0.00,"Knott End Ferry Service Schedule of  payments Oct 2023 - April 2024 12 Oct - 11 Nov  - 9,518.33 12 Nov - 11 Dec  - 9,518.33 12 Dec - 11 Jan  - 9,518.33 12 Jan - 11 Feb  - 9,518.33 12 Feb - 11 Mar  - 9,518.34 12 Mar - 11 Apr  - 9,518.34",Private Contractors
Wyre Council,http://opendatacommunities.org/doc/district-council/wyre,13/06/2024,People and Places,Parking Services,133F,NSL Services Group,09/04/2024,PE158353,4546.53,0.00,Variable fee - car park enforcement March 24,Private Contractors
Wyre Council,http://opendatacommunities.org/doc/district-council/wyre,13/06/2024,Resources,Housing General Fund,134A,Vivid Resourcing Ltd,16/04/2024,RS158573,6761.74,0.00,1131848 03/03/24 Housing Options Officer,Private Contractors
Wyre Council,http://opendatacommunities.org/doc/district-council/wyre,13/06/2024,People and Places,Environmental Services,132B,AMBER CONSULTANCY (MARPLE) LTD,03/04/2024,PE158167,500.00,0.00,"for  100 D rated food safety and hygiene inspections to include allergen management , completion of inspection documentation , letters for 0,1 and 2 rather premises where necessary , to input visit on the council data base system and communication of any",Private Contractors
Wyre Council,http://opendatacommunities.org/doc/district-council/wyre,13/06/2024,People and Places,Parking Services,133F,CHIPSIDE LTD,17/04/2024,PE158613,784.26,0.00,Technical support and managed host servers for Chipside Lancashire,Private Contractors
Wyre Council,http://opendatacommunities.org/doc/district-council/wyre,13/06/2024,People and Places,Parking Services,133F,CHIPSIDE LTD,22/04/2024,PE158233,15.00,0.00,Provide 2 no. 500mb SIMS for Wyre Council handhelds 2024-25,Private Contractors
Wyre Council,http://opendatacommunities.org/doc/district-council/wyre,13/06/2024,People and Places,Parking Services,133F,CHIPSIDE LTD,05/04/2024,PE158238,46.70,0.00,Wyre Council bank transaction fees 1 April 2023 - 31 March 2024,Private Contractors
Wyre Council,http://opendatacommunities.org/doc/district-council/wyre,13/06/2024,People and Places,Cultural and Related Services,132A,Melrose Development Services Ltd,22/04/2024,PE158123,1428.25,0.00,Marsh Mill rent and service charge,Private Contractors
Wyre Council,http://opendatacommunities.org/doc/district-council/wyre,13/06/2024,People and Places,Public Transport,133G,Leith Facilities Limited,02/04/2024,PE158154,3600.00,0.00,*** Confirmation Order ***Carry out cleaning of bus shelters as discussed with Maria Leeder,Private Contractors
Wyre Council,http://opendatacommunities.org/doc/district-council/wyre,13/06/2024,Resources,Housing General Fund,134A,Sathy Estates (Lettings) Limited,23/04/2024,RS158722,1000.00,0.00,", Blackpool",Private Contractors
Wyre Council,http://opendatacommunities.org/doc/district-council/wyre,13/06/2024,People and Places,Environmental Services,132B,PETER HEARN ELECTRICAL LTD,30/04/2024,PE158847,40.00,0.00,"Emergency Visit - 24 April 2024 Inspect and repair as necessary electrical connections to Royles Brook pumping station, Thornton",Private Contractors
Wyre Council,http://opendatacommunities.org/doc/district-council/wyre,13/06/2024,People and Places,Parking Services,133F,FLOWBIRD SMART CITY UK LTD,24/04/2024,PE158759,6171.60,0.00,Provide Weboffice (including airtime) for 16 no.CWT meters 1 April 2024 - 31 March 2025Provide credit card facilities for 10 no CWT meters 1 April 2024 - 31 March 2025,Private Contractors
Wyre Council,http://opendatacommunities.org/doc/district-council/wyre,13/06/2024,Resources,Planning and Development Servs,132C,Preston City Council,10/04/2024,RS158370,0.50,0.00,Just Reminiscing Cleveleys  A5 1pp x 200 copies 18.75  UKSPF Project cards x 8 new A6 1pp **ADDED TO SAME INVOICE AS JUST REM LEAFLETS DUE TO MINIMUM ORDER REQUIREMENTS - EXPENDITURE CODES SPLIT** 0.50,Project Costs
Wyre Council,http://opendatacommunities.org/doc/district-council/wyre,13/06/2024,People and Places,Planning and Development Servs,132C,Fylde Coast YMCA,24/04/2024,PE158758,147.60,0.00,Hire of room at the Lofthouse building on Thursday 1 Feb for a Bid Writing Training session,Project Costs
Wyre Council,http://opendatacommunities.org/doc/district-council/wyre,13/06/2024,People and Places,Planning and Development Servs,132C,Fleetwood Museum Trust,04/04/2024,PE157948,9038.80,0.00,"Inside Number 8, Renovations to building",Project Costs
Wyre Council,http://opendatacommunities.org/doc/district-council/wyre,13/06/2024,People and Places,Cultural and Related Services,132A,Play Inclusion Project,26/04/2024,PE158808,5359.48,0.00,Easter HAF Delivery,Project Costs
Wyre Council,http://opendatacommunities.org/doc/district-council/wyre,13/06/2024,Resources,Planning and Development Servs,132C,The Regenda Group,11/04/2024,RS157931,17750.00,0.00,Shaping Brighter Futures,Project Costs
Wyre Council,http://opendatacommunities.org/doc/district-council/wyre,13/06/2024,People and Places,Cultural and Related Services,132A,Tina Warren,22/04/2024,PE158687,760.00,0.00,Fee for Easter 2024 HAF sessions,Project Costs
Wyre Council,http://opendatacommunities.org/doc/district-council/wyre,13/06/2024,People and Places,Cultural and Related Services,132A,Tina Dempsey,22/04/2024,PE158681,570.00,0.00,Fee for Easter 2024 HAF sessions,Project Costs
Wyre Council,http://opendatacommunities.org/doc/district-council/wyre,13/06/2024,People and Places,Cultural and Related Services,132A,Lords Deli,29/04/2024,PE158859,2000.00,0.00,Easter HAF Food Supplier,Project Costs
Wyre Council,http://opendatacommunities.org/doc/district-council/wyre,13/06/2024,People and Places,Cultural and Related Services,132A,DENISE KEEN-JUNK,23/04/2024,PE158754,570.00,0.00,Fee for Easter 2024 HAF session(s),Project Costs
Wyre Council,http://opendatacommunities.org/doc/district-council/wyre,13/06/2024,People and Places,Cultural and Related Services,132A,CARICATURE WITH ATTITUDE,23/04/2024,PE158712,570.00,0.00,Fee for Easter 2024 HAF sessions,Project Costs
Wyre Council,http://opendatacommunities.org/doc/district-council/wyre,13/06/2024,People and Places,Cultural and Related Services,132A,JANINE WALKER ART,23/04/2024,PE158704,570.00,0.00,Fee for Easter 2024 HAF sessions,Project Costs
Wyre Council,http://opendatacommunities.org/doc/district-council/wyre,13/06/2024,People and Places,Cultural and Related Services,132A,Fylde Coast Holiday Club,18/04/2024,PE158330,3792.00,0.00,Easter HAF 2024 - Fylde Coast Holiday Club,Project Costs
Wyre Council,http://opendatacommunities.org/doc/district-council/wyre,13/06/2024,People and Places,Cultural and Related Services,132A,Acorns,26/04/2024,PE158809,1993.00,0.00,Easter HAF 2024 Delivery,Project Costs
Wyre Council,http://opendatacommunities.org/doc/district-council/wyre,13/06/2024,People and Places,Cultural and Related Services,132A,McGann Boxing and Fitness,25/04/2024,PE158828,886.09,0.00,Easter HAF Camp 2024,Project Costs
Wyre Council,http://opendatacommunities.org/doc/district-council/wyre,13/06/2024,People and Places,Cultural and Related Services,132A,The Fylde Rugby Community Foundation,19/04/2024,PE158626,1005.00,0.00,Easter HAF 2024 - Fylde Rugby Community Foundation,Project Costs
Wyre Council,http://opendatacommunities.org/doc/district-council/wyre,13/06/2024,Resources,Cultural and Related Services,132A,Absolute Futbol Ltd,23/04/2024,RS158695,7289.00,0.00,Easter 2024 HAF - Absolute Futbol,Project Costs
Wyre Council,http://opendatacommunities.org/doc/district-council/wyre,13/06/2024,People and Places,Cultural and Related Services,132A,Absolute Futbol Ltd,22/04/2024,PE158643,-7289.00,0.00,Easter 2024 HAF - Absolute Futbol,Project Costs
Wyre Council,http://opendatacommunities.org/doc/district-council/wyre,13/06/2024,People and Places,Cultural and Related Services,132A,Absolute Futbol Ltd,22/04/2024,PE158643,7289.00,0.00,Easter 2024 HAF - Absolute Futbol,Project Costs
Wyre Council,http://opendatacommunities.org/doc/district-council/wyre,13/06/2024,People and Places,Environmental Services,132B,Aspin and Company Ltd,16/04/2024,PE158581,550.00,0.00,To provide land valuation for land ,Project Costs
Wyre Council,http://opendatacommunities.org/doc/district-council/wyre,13/06/2024,People and Places,Cultural and Related Services,132A,The Creation Station Blackpool,19/04/2024,PE158649,570.00,0.00,Fee for Easter 2024 HAF sessions(s),Project Costs
Wyre Council,http://opendatacommunities.org/doc/district-council/wyre,13/06/2024,People and Places,Planning and Development Servs,132C,East Lancashire Chamber of Commerce & Industry,10/04/2024,PE157753,23000.00,0.00,"UKSPF project with Chamber Low Carbon - Supporting low carbon businesses in Wyre 2023/2024  -  35,000 2024/2025  -  35,000",Project Costs
Wyre Council,http://opendatacommunities.org/doc/district-council/wyre,13/06/2024,People and Places,Cultural and Related Services,132A,EW SSC Limited t/a SportsCool Fylde,19/04/2024,PE158630,6220.00,0.00,Easter HAF 2024 - Sportscool,Project Costs
Wyre Council,http://opendatacommunities.org/doc/district-council/wyre,13/06/2024,Resources,Environmental Services,132B,Preston City Council,22/04/2024,RS158642,143.75,0.00,3000 x dog ban leaflet A5 2pp,Promotions - General
Wyre Council,http://opendatacommunities.org/doc/district-council/wyre,13/06/2024,Resources,Cultural and Related Services,132A,Preston City Council,22/04/2024,RS158642,30.00,0.00,500 x Active Travel festival A5 1pp,Promotions - General
Wyre Council,http://opendatacommunities.org/doc/district-council/wyre,13/06/2024,Resources,Cultural and Related Services,132A,Preston City Council,22/04/2024,RS158642,30.00,0.00,Slimming World leaflets - A5 1pp x 500,Promotions - General
Wyre Council,http://opendatacommunities.org/doc/district-council/wyre,13/06/2024,Resources,Cultural and Related Services,132A,Preston City Council,22/04/2024,RS158642,436.25,0.00,"Wyre Moving More Strategy report A4 60pp full colour on 115gsm, saddle stitch 150 copies",Promotions - General
Wyre Council,http://opendatacommunities.org/doc/district-council/wyre,13/06/2024,People and Places,Planning and Development Servs,132C,Mcgrath Regional Media,09/04/2024,PE158361,2400.00,0.00,Full pg ad in Bolton & Bury 84 / Bolton & Bury 86 / Blackburn & Burley 73 / Blackburn & Burley 75 / Preston & Fylde Coast 70 / Preston & Fylde 72,Promotions - General
Wyre Council,http://opendatacommunities.org/doc/district-council/wyre,13/06/2024,People and Places,Planning and Development Servs,132C,PSM Group,09/04/2024,PE158326,860.00,0.00,11 sign boards on corex for celebration event,Promotions - General
Wyre Council,http://opendatacommunities.org/doc/district-council/wyre,13/06/2024,People and Places,Environmental Services,132B,Key Engineering & Hygiene Supplies LTD,02/04/2024,PE158151,205.62,0.00,"Supply clothing as your quotation 22701 *PLEASE DO NOT LOGO - NEEDS TO GO FOR SIZING FIRST*Delivery to Wyre Council, FAO Tracy Waistle, Civic Centre, Breck Road, Poulton, FY6 7PU",Protective Clothing
Wyre Council,http://opendatacommunities.org/doc/district-council/wyre,13/06/2024,People and Places,Support Services,135B,Key Engineering & Hygiene Supplies LTD,03/04/2024,PE158232,18.00,0.00,"9 no Wyre emb logo to the front of all fleeces Please deliver to Wyre Council, Civic Centre, Breck Road, Poulton, FY6 7PU",Protective Clothing
Wyre Council,http://opendatacommunities.org/doc/district-council/wyre,13/06/2024,People and Places,Support Services,135B,Key Engineering & Hygiene Supplies LTD,03/04/2024,PE158232,123.12,0.00,Supply and deliver the following sizes of UC601 Black 380GSM Premium full zip microfleece jacket as the example on quote 22743In sizes:-3 no Medium 4 no 2XL2 no XL,Protective Clothing
Wyre Council,http://opendatacommunities.org/doc/district-council/wyre,13/06/2024,People and Places,Environmental Services,132B,Key Engineering & Hygiene Supplies LTD,11/04/2024,PE158451,883.00,0.00,"Supply 50 boxes of blue refuse bags, code BL09 OCI @ 17.66 per box of 200Delivery to Wyre Council, Copse Road Depot, Copse Road, Fleetwood, FY7 6RP","Provision of Bins, Boxes and Sacks"
Wyre Council,http://opendatacommunities.org/doc/district-council/wyre,13/06/2024,People and Places,Environmental Services,132B,Veolia ES (UK) LTD,17/04/2024,PE158608,4977.81,0.00,Bin Provision,"Provision of Bins, Boxes and Sacks"
Wyre Council,http://opendatacommunities.org/doc/district-council/wyre,13/06/2024,People and Places,Cultural and Related Services,132A,C & C Supplies Collinson LTD,04/04/2024,PE158245,305.25,0.00,6 x limestone dust top dressing 6x 40mm to dust,Public Footpaths/Rights Of Way
Wyre Council,http://opendatacommunities.org/doc/district-council/wyre,13/06/2024,People and Places,Cultural and Related Services,132A,HUWS GRAY LTD,08/04/2024,PE158303,239.00,0.00,2 x 8by8 hanging post 3 x 6by 6 hanging post,Public Footpaths/Rights Of Way
Wyre Council,http://opendatacommunities.org/doc/district-council/wyre,13/06/2024,People and Places,Cultural and Related Services,132A,HUWS GRAY LTD,08/04/2024,PE158300,1548.20,0.00,various wood materials for PROW,Public Footpaths/Rights Of Way
Wyre Council,http://opendatacommunities.org/doc/district-council/wyre,13/06/2024,People and Places,Cultural and Related Services,132A,Arranpaul Audio LTD,24/04/2024,PE158770,310.00,0.00,Microphones 2 @ 155,Purchase of Tools or Equipment
Wyre Council,http://opendatacommunities.org/doc/district-council/wyre,13/06/2024,People and Places,Cultural and Related Services,132A,C & C Supplies Collinson LTD,12/04/2024,PE158471,13.32,0.00,packet of ratchet straps,Purchase of Tools or Equipment
Wyre Council,http://opendatacommunities.org/doc/district-council/wyre,13/06/2024,People and Places,Housing General Fund,134A,Fast Fix Workshop Ltd,04/04/2024,PE158057,24.82,0.00,Payment of invoice 48013,Purchase of Tools or Equipment
Wyre Council,http://opendatacommunities.org/doc/district-council/wyre,13/06/2024,People and Places,Housing General Fund,134A,Fast Fix Workshop Ltd,19/04/2024,PE158576,11.96,0.00,Invoice 40090,Purchase of Tools or Equipment
Wyre Council,http://opendatacommunities.org/doc/district-council/wyre,13/06/2024,People and Places,Cultural and Related Services,132A,Fast Fix Workshop Ltd,16/04/2024,PE158574,93.09,0.00,4 x padlocks,Purchase of Tools or Equipment
Wyre Council,http://opendatacommunities.org/doc/district-council/wyre,13/06/2024,People and Places,Cultural and Related Services,132A,Fast Fix Workshop Ltd,16/04/2024,PE158575,11.66,0.00,self tapping screws,Purchase of Tools or Equipment
Wyre Council,http://opendatacommunities.org/doc/district-council/wyre,13/06/2024,People and Places,Planning and Development Servs,132C,Lyreco UK LTD,02/04/2024,PE158164,118.11,0.00,"Stationery Copse Road DepotDelivery FAIO Tracy Waistle, Wyre Council, Copse Road Depot, Copse Road, Fleetwood, FY7 6RP",Purchase of Tools or Equipment
Wyre Council,http://opendatacommunities.org/doc/district-council/wyre,13/06/2024,Resources,Housing General Fund,134A,NEC Software Solutions UK Limited,23/04/2024,RS158753,1750.00,0.00,CRM 148267 - SAGSubsidy Audit 2023/24,Purchase of Tools or Equipment
Wyre Council,http://opendatacommunities.org/doc/district-council/wyre,13/06/2024,People and Places,Cultural and Related Services,132A,Nisbetts Next Day Catering Equipment,22/04/2024,PE158674,37.62,0.00,Mugs - CC203 x 36,Purchase of Tools or Equipment
Wyre Council,http://opendatacommunities.org/doc/district-council/wyre,13/06/2024,People and Places,Support Services,135B,Granthams Signs LTD,03/04/2024,PE158138,518.19,0.00,as per  Quote 48269-0 to supply and install 2 NO A3 dibond panels and supply only of 4 A3 panels with DTM digital print ref `No Dogs Allowed`,Purchase of Tools or Equipment
Wyre Council,http://opendatacommunities.org/doc/district-council/wyre,13/06/2024,People and Places,Environmental Services,132B,Balmers GM LTD,02/04/2024,PE158134,1432.00,0.00,FAO Steve PulmanTo Supply2  X Husqvarna 525ib MK11 Handheld Blowers @ 330.00 each + vat2  X BLi 300 Batteries @ 266.00 each + vat2 X  QC500 Battery Chargers @ 120.00 each + vat Total price 1432.00 + vatDelivery to:-Wyre CouncilCo,Purchase of Tools or Equipment
Wyre Council,http://opendatacommunities.org/doc/district-council/wyre,13/06/2024,Resources,Housing General Fund,134A,Solon Security LTD,09/04/2024,RS158356,1204.00,0.00,Payment of Invoice SI24005585,Purchase of Tools or Equipment
Wyre Council,http://opendatacommunities.org/doc/district-council/wyre,13/06/2024,People and Places,Support Services,135B,Groundsman Tools Ltd,29/04/2024,PE158861,38.19,0.00,Berthoud Vermorel 2000 sprayer                              030063                  1                Allow dew switch 2.5m                                                  100002                  2Cooper pegler lance 500mm,Purchase of Tools or Equipment
Wyre Council,http://opendatacommunities.org/doc/district-council/wyre,13/06/2024,People and Places,Support Services,135B,Groundsman Tools Ltd,19/04/2024,PE158621,571.73,0.00,Berthoud Vermorel 2000 sprayer                              030063                  1                Allow dew switch 2.5m                                                  100002                  2Cooper pegler lance 500mm,Purchase of Tools or Equipment
Wyre Council,http://opendatacommunities.org/doc/district-council/wyre,13/06/2024,Resources,Support Services,135B,TMR Executive Agency LTD,25/04/2024,RS158715,1003.79,0.00,TMR maintenance charge - Folder Inserter - 23/06/2024-22/06/2025,Purchase of Tools or Equipment
Wyre Council,http://opendatacommunities.org/doc/district-council/wyre,13/06/2024,People and Places,Cultural and Related Services,132A,Steve Wear Blinds,24/04/2024,PE158772,450.00,0.00,Vertical Blinds,Purchase of Tools or Equipment
Wyre Council,http://opendatacommunities.org/doc/district-council/wyre,13/06/2024,People and Places,Cultural and Related Services,132A,Mowerpower LTD,16/04/2024,PE158404,42.13,0.00,1 x chain guard 1 x air filter 1 x maintenance tool,Purchase of Tools or Equipment
Wyre Council,http://opendatacommunities.org/doc/district-council/wyre,13/06/2024,People and Places,Cultural and Related Services,132A,Mowerpower LTD,10/04/2024,PE158405,42.14,0.00,2 x chainsaw chains,Purchase of Tools or Equipment
Wyre Council,http://opendatacommunities.org/doc/district-council/wyre,13/06/2024,People and Places,Support Services,135B,Mowerpower LTD,26/04/2024,PE158853,1625.94,0.00,"Supply Mower as your estimate 106226Delivery to Wyre Council, Copse Road Depot, Copse Road, Fleetwood, FY7 6RP",Purchase of Tools or Equipment
Wyre Council,http://opendatacommunities.org/doc/district-council/wyre,13/06/2024,People and Places,Cultural and Related Services,132A,HUWS GRAY LTD,09/04/2024,PE158302,28.53,0.00,3 x packets of inpact driver bits,Purchase of Tools or Equipment
Wyre Council,http://opendatacommunities.org/doc/district-council/wyre,13/06/2024,People and Places,Cultural and Related Services,132A,HUWS GRAY LTD,08/04/2024,PE158301,130.33,0.00,post crete  tarp  3 x drill bits,Purchase of Tools or Equipment
Wyre Council,http://opendatacommunities.org/doc/district-council/wyre,13/06/2024,People and Places,Cultural and Related Services,132A,Knight Rigging Services Ltd,22/04/2024,PE158488,1568.00,0.00,Pit Barriers for Marine Hall - Big Country gig,Purchase of Tools or Equipment
Wyre Council,http://opendatacommunities.org/doc/district-council/wyre,13/06/2024,People and Places,Planning and Development Servs,132C,Amazon Business,09/04/2024,PE158339,23.74,0.00,a4 and a3 wall mounted sign holders,Purchase of Tools or Equipment
Wyre Council,http://opendatacommunities.org/doc/district-council/wyre,13/06/2024,People and Places,Planning and Development Servs,132C,Amazon Business,09/04/2024,PE158364,21.66,0.00,a4 and a3 wall mounted sign holders,Purchase of Tools or Equipment
Wyre Council,http://opendatacommunities.org/doc/district-council/wyre,13/06/2024,People and Places,Planning and Development Servs,132C,Amazon Business,09/04/2024,PE158362,56.25,0.00,x5 packs of 200 tamper free money bags LARGE,Purchase of Tools or Equipment
Wyre Council,http://opendatacommunities.org/doc/district-council/wyre,13/06/2024,People and Places,Planning and Development Servs,132C,Amazon Business,25/04/2024,PE158801,13.28,0.00,x4 Push Pull signs for new doors at FM,Purchase of Tools or Equipment
Wyre Council,http://opendatacommunities.org/doc/district-council/wyre,13/06/2024,People and Places,Planning and Development Servs,132C,Amazon Business,19/04/2024,PE158636,24.16,0.00,Equipment for FM,Purchase of Tools or Equipment
Wyre Council,http://opendatacommunities.org/doc/district-council/wyre,13/06/2024,People and Places,Cultural and Related Services,132A,Amazon Business,19/04/2024,PE158635,13.32,0.00,Acc for MH,Purchase of Tools or Equipment
Wyre Council,http://opendatacommunities.org/doc/district-council/wyre,13/06/2024,People and Places,Environmental Services,132B,Amazon Business,19/04/2024,PE158572,18.82,0.00,2 x 6pcs vinyl wall mount for displays - requested by Sammy Grey,Purchase of Tools or Equipment
Wyre Council,http://opendatacommunities.org/doc/district-council/wyre,13/06/2024,People and Places,Support Services,135B,Amazon Business,12/04/2024,PE158485,18.32,0.00,items ordered by John bettle2 x wall clocks for 143+144,Purchase of Tools or Equipment
Wyre Council,http://opendatacommunities.org/doc/district-council/wyre,13/06/2024,People and Places,Environmental Services,132B,Amazon Business,03/04/2024,PE158168,44.02,0.00,"Aolieh Travel Mug, Insulated Coffee Cup,Double Walled Travel Mug Vacuum Insulation Stainless Steel with Leakproof Lid Eco-Friendly Reusable Cup for Coffee,Tea",Purchase of Tools or Equipment
Wyre Council,http://opendatacommunities.org/doc/district-council/wyre,13/06/2024,People and Places,Environmental Services,132B,Amazon Business,03/04/2024,PE158153,107.50,0.00,"Willow WG50UCFF 86L Under Counter Fridge Freezer with 4* Freezer Rating, Adjustable Thermostat, Low Noise Level, 2 Years Warranty - Grey [Energy Class F]",Purchase of Tools or Equipment
Wyre Council,http://opendatacommunities.org/doc/district-council/wyre,13/06/2024,People and Places,Environmental Services,132B,Amazon Business,03/04/2024,PE158153,28.20,0.00,"Russell Hobbs Touch Control Digital Solo Microwave 20L 800W in Silver with 10 Power Levels, 6 Auto Cook Menus, Defrost Control, Clock & Timer RHMT2005S Visit the Russell Hobbs Store",Purchase of Tools or Equipment
Wyre Council,http://opendatacommunities.org/doc/district-council/wyre,13/06/2024,People and Places,Environmental Services,132B,Amazon Business,03/04/2024,PE158153,45.97,0.00,"Aolieh Travel Mug, Insulated Coffee Cup,Double Walled Travel Mug Vacuum Insulation Stainless Steel with Leakproof Lid Eco-Friendly Reusable Cup for Coffee,Tea",Purchase of Tools or Equipment
Wyre Council,http://opendatacommunities.org/doc/district-council/wyre,13/06/2024,People and Places,Environmental Services,132B,Amazon Business,24/04/2024,PE158490,18.32,0.00,Magnetic tabs,Purchase of Tools or Equipment
Wyre Council,http://opendatacommunities.org/doc/district-council/wyre,13/06/2024,People and Places,Planning and Development Servs,132C,Amazon Business,22/04/2024,PE158641,18.27,0.00,Equipment for FM,Purchase of Tools or Equipment
Wyre Council,http://opendatacommunities.org/doc/district-council/wyre,13/06/2024,People and Places,Planning and Development Servs,132C,Amazon Business,22/04/2024,PE158668,17.48,0.00,Equipment for FM,Purchase of Tools or Equipment
Wyre Council,http://opendatacommunities.org/doc/district-council/wyre,13/06/2024,People and Places,Cultural and Related Services,132A,Amazon Business,22/04/2024,PE158640,36.60,0.00,Acc for MH,Purchase of Tools or Equipment
Wyre Council,http://opendatacommunities.org/doc/district-council/wyre,13/06/2024,People and Places,Support Services,135B,Amazon Business,11/04/2024,PE158462,24.78,0.00,Items order by John bettle 2 x whiiteboards for rooms 143+144,Purchase of Tools or Equipment
Wyre Council,http://opendatacommunities.org/doc/district-council/wyre,13/06/2024,People and Places,Support Services,135B,Amazon Business,11/04/2024,PE158461,24.78,0.00,Items order by John bettle 2 x whiiteboards for rooms 143+144,Purchase of Tools or Equipment
Wyre Council,http://opendatacommunities.org/doc/district-council/wyre,13/06/2024,People and Places,Environmental Services,132B,Amazon Business,02/04/2024,PE158144,42.62,0.00,"Russell Hobbs Touch Control Digital Solo Microwave 20L 800W in Silver with 10 Power Levels, 6 Auto Cook Menus, Defrost Control, Clock & Timer RHMT2005SVisit the Russell Hobbs Store",Purchase of Tools or Equipment
Wyre Council,http://opendatacommunities.org/doc/district-council/wyre,13/06/2024,People and Places,Cultural and Related Services,132A,Cardinal Allen Catholic High School,24/04/2024,PE158762,1807.00,0.00,KST Commonwealth Tea Dance 26/03/24 ticket sales,Refund of Ticket Sales to Ext Promoters
Wyre Council,http://opendatacommunities.org/doc/district-council/wyre,13/06/2024,People and Places,Cultural and Related Services,132A,Dance Factory,19/04/2024,PE158623,2242.00,0.00,Dance Factory 5th & 6th April 24: ticket sales,Refund of Ticket Sales to Ext Promoters
Wyre Council,http://opendatacommunities.org/doc/district-council/wyre,13/06/2024,People and Places,Planning and Development Servs,132C,Suez Recycling And Recovery UK LTD,05/04/2024,PE158229,1169.19,0.00,waste removal market suez,Refuse Collection
Wyre Council,http://opendatacommunities.org/doc/district-council/wyre,13/06/2024,Resources,Support Services,135B,Restore Datashred Ltd,04/04/2024,RS158221,216.43,0.00,Shredding last two weeks march,Refuse Collection
Wyre Council,http://opendatacommunities.org/doc/district-council/wyre,13/06/2024,People and Places,Cultural and Related Services,132A,DUCHY OF LANCASTER,30/04/2024,PE158125,1625.00,0.00,Fleetwood Maritime Training Launching Facility: half year foreshore income in advance from 01/04/24 to 30/09/24,Rents
Wyre Council,http://opendatacommunities.org/doc/district-council/wyre,13/06/2024,Finance,General Fund below the line,136A,,04/04/2024,WPST00137826,140000.00,0.00,02/04/24  Project Neptune Loan Repayment,Repayment of Grant
Wyre Council,http://opendatacommunities.org/doc/district-council/wyre,13/06/2024,People and Places,Environmental Services,132B,EAS Electrical Mechanical,18/04/2024,PE158478,72.00,0.00,"Moorland Rd Cemetery: checked all pipework, lifted flag near tap pipework all dry",Responsive Building Maintenance
Wyre Council,http://opendatacommunities.org/doc/district-council/wyre,13/06/2024,People and Places,Cultural and Related Services,132A,EAS Electrical Mechanical,18/04/2024,PE158604,96.00,0.00,Thornton Little Theatre: check 2 sumps are operating correctly.  Clean drainage channel. Tighten loose soil cap. Investigate leak near gas meter,Responsive Building Maintenance
Wyre Council,http://opendatacommunities.org/doc/district-council/wyre,13/06/2024,People and Places,Cultural and Related Services,132A,EAS Electrical Mechanical,23/04/2024,PE158477,55.00,0.00,YMCA Fleetwood: investigate faulty shower pump on middle pump group shower. New one required,Responsive Building Maintenance
Wyre Council,http://opendatacommunities.org/doc/district-council/wyre,13/06/2024,People and Places,Cultural and Related Services,132A,EAS Electrical Mechanical,19/04/2024,PE158627,52.61,0.00,"Riverside Room and Rangers Office, River Rd, Thornton: replaced faulty lamp to store",Responsive Building Maintenance
Wyre Council,http://opendatacommunities.org/doc/district-council/wyre,13/06/2024,People and Places,Planning and Development Servs,132C,EAS Electrical Mechanical,19/04/2024,PE158628,78.87,0.00,Copse Rd Depot: swapped faulty disc led light to 600 x 600 lay in and swapped 2 pl lamps,Responsive Building Maintenance
Wyre Council,http://opendatacommunities.org/doc/district-council/wyre,13/06/2024,People and Places,Planning and Development Servs,132C,EAS Electrical Mechanical,19/04/2024,PE158629,112.95,0.00,Fleetwood MArket: converted x 2 flu lights in stall 1 x 4ft x 1 2 ft. Replaces sw fused spur. Relocated socket,Responsive Building Maintenance
Wyre Council,http://opendatacommunities.org/doc/district-council/wyre,13/06/2024,People and Places,Cultural and Related Services,132A,EAS Electrical Mechanical,26/04/2024,PE158779,1200.24,0.00,"Marine Hall: Trace pipework to isolate heater as valve has failed, install new isolation valve, drain cylinder and remove.  Install new water heater in bar area, vent and test.  Capped off dead leg and fixed leak on hot supply",Responsive Building Maintenance
Wyre Council,http://opendatacommunities.org/doc/district-council/wyre,13/06/2024,People and Places,Cultural and Related Services,132A,EAS Electrical Mechanical,18/04/2024,PE157889,854.80,0.00,"Marine Hall: Converted 2 twin 6` fluorescents using onsite scaffolding. Replaced faulty 200w 5000k high bay un main area in square. Cleaners cupboard light converted to led 5ft single, safe room converted to 6ft twin led. Gents toilet converted to 5fr twi",Responsive Building Maintenance
Wyre Council,http://opendatacommunities.org/doc/district-council/wyre,13/06/2024,People and Places,Planning and Development Servs,132C,M D Security,16/04/2024,PE157340,941.23,0.00,Fleetwood Market: sup0ply and install 3 sets of door hold open devices for middle doors,Responsive Building Maintenance
Wyre Council,http://opendatacommunities.org/doc/district-council/wyre,13/06/2024,People and Places,Cultural and Related Services,132A,M D Security,26/04/2024,PE158792,490.37,0.00,"Little Thornton Theatre: replaced 3 x faulty lights on ramp to car park, 3 x saxby luik fittings, 2 x emergency light gear tray, 1 x 18w gear tray",Responsive Building Maintenance
Wyre Council,http://opendatacommunities.org/doc/district-council/wyre,13/06/2024,People and Places,Cultural and Related Services,132A,M D Security,17/04/2024,PE158217,72.00,0.00,Cottam Hall Pavillion: call out to fault on alarm.  Replaced main panel battery and left working,Responsive Building Maintenance
Wyre Council,http://opendatacommunities.org/doc/district-council/wyre,13/06/2024,People and Places,Cultural and Related Services,132A,M D Security,17/04/2024,PE158219,50.00,0.00,"Public Clici (Mount Grounds) Pavilin: call out to alarm not setting, found detector to be faulty, unprogrammed from system, advise a replacement contact",Responsive Building Maintenance
Wyre Council,http://opendatacommunities.org/doc/district-council/wyre,13/06/2024,People and Places,Cultural and Related Services,132A,Lancashire Clockmakers LTD,18/04/2024,PE158274,2380.00,0.00,"Invoice for 70% 3400.  To supply four new movements running on stepper motors, controled by master clock",Responsive Building Maintenance
Wyre Council,http://opendatacommunities.org/doc/district-council/wyre,13/06/2024,People and Places,Cultural and Related Services,132A,HUWS GRAY LTD,19/04/2024,PE158352,95.87,0.00,grit sand and multicem  R No. 17774 - ymca poulton,Responsive Building Maintenance
Wyre Council,http://opendatacommunities.org/doc/district-council/wyre,13/06/2024,People and Places,Cultural and Related Services,132A,John Carney,29/04/2024,PE158710,120.00,0.00,For clearing out land valley to Marine Hall disabled toilets to stop water ingress and replace ceiling tiles,Responsive Building Maintenance
Wyre Council,http://opendatacommunities.org/doc/district-council/wyre,13/06/2024,People and Places,Cultural and Related Services,132A,John Carney,18/04/2024,PE157388,380.00,0.00,Mount Pavilion: supplying new lead flashings over various roof areas.  Supply and fix broken small tiles to  different areas of roof,Responsive Building Maintenance
Wyre Council,http://opendatacommunities.org/doc/district-council/wyre,13/06/2024,People and Places,Cultural and Related Services,132A,John Carney,23/04/2024,PE158711,120.00,0.00,"New Wave Cafe: check out roof, making usre everything is secure and all bracings are intact.  roof left in safe conditiom",Responsive Building Maintenance
Wyre Council,http://opendatacommunities.org/doc/district-council/wyre,13/06/2024,People and Places,Cultural and Related Services,132A,GARRY CARR BUILDING SERVICES LTD,18/04/2024,PE157736,159.00,0.00,"Public clock, Victoria Rd: install drainage to clock flower bed",Responsive Building Maintenance
Wyre Council,http://opendatacommunities.org/doc/district-council/wyre,13/06/2024,People and Places,Cultural and Related Services,132A,GARRY CARR BUILDING SERVICES LTD,16/04/2024,PE158131,37.36,0.00,Mount Cottages: 3 x cylinder keys. Lighthouses 4 x mortice keys,Responsive Building Maintenance
Wyre Council,http://opendatacommunities.org/doc/district-council/wyre,13/06/2024,People and Places,Planning and Development Servs,132C,GARRY CARR BUILDING SERVICES LTD,16/04/2024,PE157735,386.00,0.00,Unit 9 Butts Close: take down and rebuild section of blockwork wall,Responsive Building Maintenance
Wyre Council,http://opendatacommunities.org/doc/district-council/wyre,13/06/2024,People and Places,Planning and Development Servs,132C,GARRY CARR BUILDING SERVICES LTD,16/04/2024,PE158132,160.00,0.00,Market Studios: 12 x ortice keys,Responsive Building Maintenance
Wyre Council,http://opendatacommunities.org/doc/district-council/wyre,13/06/2024,People and Places,Planning and Development Servs,132C,GARRY CARR BUILDING SERVICES LTD,17/04/2024,PE158133,72.00,0.00,18 x cylinder keys cut for Fleetwood Market,Responsive Building Maintenance
Wyre Council,http://opendatacommunities.org/doc/district-council/wyre,13/06/2024,People and Places,Cultural and Related Services,132A,EVOLUTION CONSTRUCTION GROUP LTD,18/04/2024,PE158391,149.21,0.00,"Marine Hall: Tidy up rainwater damage, re-silicone where stained, wash down with anti fungicidal solution, replace 6 ceiling tiles",Responsive Building Maintenance
Wyre Council,http://opendatacommunities.org/doc/district-council/wyre,13/06/2024,People and Places,Cultural and Related Services,132A,EVOLUTION CONSTRUCTION GROUP LTD,18/04/2024,PE158383,36.83,0.00,Marine Hall: Emergency works to re-fix door to porch,Responsive Building Maintenance
Wyre Council,http://opendatacommunities.org/doc/district-council/wyre,13/06/2024,People and Places,Cultural and Related Services,132A,EVOLUTION CONSTRUCTION GROUP LTD,18/04/2024,PE158382,383.27,0.00,Marine Hall: Carry out repairs to timber stage to ensure no trip hazards or sharp edges,Responsive Building Maintenance
Wyre Council,http://opendatacommunities.org/doc/district-council/wyre,13/06/2024,People and Places,Cultural and Related Services,132A,EVOLUTION CONSTRUCTION GROUP LTD,18/04/2024,PE158381,53.36,0.00,"Marine Hall: Release water from roof after leaks, unblock outlets and temporary make good.",Responsive Building Maintenance
Wyre Council,http://opendatacommunities.org/doc/district-council/wyre,13/06/2024,People and Places,Cultural and Related Services,132A,EVOLUTION CONSTRUCTION GROUP LTD,26/04/2024,PE158392,338.24,0.00,Marine Hall: Order 3 x boxes of ceiling tiles,Responsive Building Maintenance
Wyre Council,http://opendatacommunities.org/doc/district-council/wyre,13/06/2024,People and Places,Cultural and Related Services,132A,EVOLUTION CONSTRUCTION GROUP LTD,26/04/2024,PE154772,230.44,0.00,"Rossall Point Observatory: Supply and fit new handle, latch and lock to door to NCI Ops room",Responsive Building Maintenance
Wyre Council,http://opendatacommunities.org/doc/district-council/wyre,13/06/2024,People and Places,Cultural and Related Services,132A,EVOLUTION CONSTRUCTION GROUP LTD,18/04/2024,PE158387,49.10,0.00,"Riverside Room & Rangers Office, River Rd:  Attend urgently to make repairs to main entrance/fire door lock.  Ensure fire door bar mechanism is in working order",Responsive Building Maintenance
Wyre Council,http://opendatacommunities.org/doc/district-council/wyre,13/06/2024,People and Places,Cultural and Related Services,132A,EVOLUTION CONSTRUCTION GROUP LTD,18/04/2024,PE158379,193.06,0.00,Cottam Hall Pavillion: re: vandalism.  Repair soffits to under the eaves to elevations to LH front and side and RH  side elvations.  Repair/secure/tape under eaves board to a verandah,Responsive Building Maintenance
Wyre Council,http://opendatacommunities.org/doc/district-council/wyre,13/06/2024,People and Places,Cultural and Related Services,132A,EVOLUTION CONSTRUCTION GROUP LTD,18/04/2024,PE158378,49.10,0.00,Cottam Hall Pavilion: re: vandalism.  Carry out repairs to fire damaged panels to rear of pavilion ensuring gaps are filled and lit material cannot be put behind timber boards,Responsive Building Maintenance
Wyre Council,http://opendatacommunities.org/doc/district-council/wyre,13/06/2024,People and Places,Cultural and Related Services,132A,EVOLUTION CONSTRUCTION GROUP LTD,18/04/2024,PE157041,615.65,0.00,Mount Pavilion: Reglaze broken windows to rear of Mount Pavilion,Responsive Building Maintenance
Wyre Council,http://opendatacommunities.org/doc/district-council/wyre,13/06/2024,People and Places,Cultural and Related Services,132A,EVOLUTION CONSTRUCTION GROUP LTD,18/04/2024,PE157035,432.69,0.00,Mount Cottages: Carry out pre-painting repairs to entrance door to volunteers space in basement cottage following vandalism,Responsive Building Maintenance
Wyre Council,http://opendatacommunities.org/doc/district-council/wyre,13/06/2024,People and Places,Planning and Development Servs,132C,EVOLUTION CONSTRUCTION GROUP LTD,18/04/2024,PE158394,61.38,0.00,Fleetwood Market: Install 3 fixings for hawk kites to roof.  3 different anchor point to allow for re-position,Responsive Building Maintenance
Wyre Council,http://opendatacommunities.org/doc/district-council/wyre,13/06/2024,People and Places,Planning and Development Servs,132C,EVOLUTION CONSTRUCTION GROUP LTD,18/04/2024,PE158393,12.28,0.00,Fleetwood Market: Re-hang shutter that has come off its runners to bird cage,Responsive Building Maintenance
Wyre Council,http://opendatacommunities.org/doc/district-council/wyre,13/06/2024,People and Places,Planning and Development Servs,132C,EVOLUTION CONSTRUCTION GROUP LTD,18/04/2024,PE158384,84.60,0.00,"Unit 10, Butts Close: Change lock to front door.  Dispose of old keys and return new to room 221",Responsive Building Maintenance
Wyre Council,http://opendatacommunities.org/doc/district-council/wyre,13/06/2024,People and Places,Planning and Development Servs,132C,EVOLUTION CONSTRUCTION GROUP LTD,18/04/2024,PE158390,60.59,0.00,"Market House, Creative Studios: Supply and fit white metal key safe to Adrian`s work space area",Responsive Building Maintenance
Wyre Council,http://opendatacommunities.org/doc/district-council/wyre,13/06/2024,People and Places,Support Services,135B,EVOLUTION CONSTRUCTION GROUP LTD,18/04/2024,PE158386,61.38,0.00,"SportsDev, Civic Centre: Room 143, remove exisiting wall mounted key box from rrom 131 and relocate to room 143",Responsive Building Maintenance
Wyre Council,http://opendatacommunities.org/doc/district-council/wyre,13/06/2024,People and Places,Support Services,135B,EVOLUTION CONSTRUCTION GROUP LTD,18/04/2024,PE158396,334.56,0.00,"Community Safety Meeting room, Civic Centre: Room 46 - replace cracked glazing to window",Responsive Building Maintenance
Wyre Council,http://opendatacommunities.org/doc/district-council/wyre,13/06/2024,People and Places,Planning and Development Servs,132C,EVOLUTION CONSTRUCTION GROUP LTD,18/04/2024,PE158395,75.35,0.00,"Copse Rd Depot, managers office:: replace broken handle and lock to lower window, repair/replace loose handle and lock to upper window",Responsive Building Maintenance
Wyre Council,http://opendatacommunities.org/doc/district-council/wyre,13/06/2024,People and Places,Cultural and Related Services,132A,EVOLUTION CONSTRUCTION GROUP LTD,18/04/2024,PE158380,249.51,0.00,"New Wave Cafe: re-fix capping, following storm damage",Responsive Building Maintenance
Wyre Council,http://opendatacommunities.org/doc/district-council/wyre,13/06/2024,People and Places,Support Services,135B,EVOLUTION CONSTRUCTION GROUP LTD,18/04/2024,PE158385,66.92,0.00,Civic Centre: Supply and fit door closer to room 208,Responsive Building Maintenance
Wyre Council,http://opendatacommunities.org/doc/district-council/wyre,13/06/2024,People and Places,Support Services,135B,EVOLUTION CONSTRUCTION GROUP LTD,18/04/2024,PE158388,73.65,0.00,"Civic Centre: Install digital code lock to rrom 144, set code to match existing enforcement office code",Responsive Building Maintenance
Wyre Council,http://opendatacommunities.org/doc/district-council/wyre,13/06/2024,People and Places,Support Services,135B,EVOLUTION CONSTRUCTION GROUP LTD,18/04/2024,PE158389,30.69,0.00,Civic Centre: remove white board from foom 079 and re-site on RH wall in room 075,Responsive Building Maintenance
Wyre Council,http://opendatacommunities.org/doc/district-council/wyre,13/06/2024,People and Places,Environmental Services,132B,EVOLUTION CONSTRUCTION GROUP LTD,24/04/2024,PE154760,89.14,0.00,"Danfo PC Memorial Gdns, Fleetwood: Vandalism: reinstate wall to right of door and remove graffiti to 2 x gate pillars",Responsive Building Maintenance
Wyre Council,http://opendatacommunities.org/doc/district-council/wyre,13/06/2024,Resources,Housing General Fund,134A,Mr Faisal Munir,04/04/2024,RS158255,770.00,0.00,REDACT,Rough Sleeper Project/NSNO
Wyre Council,http://opendatacommunities.org/doc/district-council/wyre,13/06/2024,People and Places,Support Services,135B,EAS Electrical Mechanical,25/04/2024,PE157809,478.00,0.00,Memorial Park - new led wall washer light:should be - R17426,Routine Maintenance
Wyre Council,http://opendatacommunities.org/doc/district-council/wyre,13/06/2024,People and Places,Support Services,135B,Glasdon UK LTD,12/04/2024,PE158484,1825.20,0.00,As per quotation EQ70100577Phoenix Recycled Material Seat supplied fully assembled in Black Enviropol material with concrete foundation fixing bolts Qty 4,Routine Maintenance
Wyre Council,http://opendatacommunities.org/doc/district-council/wyre,13/06/2024,People and Places,Support Services,135B,Glasdon UK LTD,12/04/2024,PE158484,636.14,0.00,"Elwood  Recycled Material Seat supplied fully assembled with Black Oak armrests, Black Enviropol seat slats and concrete foundation fixing bolts Qty 1",Routine Maintenance
Wyre Council,http://opendatacommunities.org/doc/district-council/wyre,13/06/2024,People and Places,Support Services,135B,Granthams Signs LTD,24/04/2024,PE158486,787.15,0.00,"Works as quotation Ref: 48283-0 / 07 Re: Wyre Borough Council - Memorial Park Fleetwood - Youth Shelter  To attend site, remove back panels on 3No sides of shelter & install 3No 1 787.15  1890mm x 1215mm x 5mm clear shaped PETg panels Peter Jardine Total",Routine Maintenance
Wyre Council,http://opendatacommunities.org/doc/district-council/wyre,13/06/2024,People and Places,Support Services,135B,Granthams Signs LTD,02/04/2024,PE158139,87.50,0.00,"To Supply plaque as quotation 48266-0 / 07Re: Wyre Borough Council - Bench Plaque - Ruby Lilian EntwistleTo supply only 1No anodised aluminium plate 200mm x 100mm x 1.5mm, 1 87.50 engraved and infilled as copy, Ruby Lilian Entwistle etcPeter Ja",Routine Maintenance
Wyre Council,http://opendatacommunities.org/doc/district-council/wyre,13/06/2024,People and Places,Support Services,135B,Granthams Signs LTD,02/04/2024,PE158140,87.50,0.00,"Supply and deliver Bench Plaque - John Robert Leadbetter & Jonathan Leadbetter Quotation Ref: 48279-0 / 07To supply only 1No anodised aluminium plate 200mm x 100mm x 1.5mm, 1 87.50 engraved and infilled as copy of artwork attached John Robert Lea",Routine Maintenance
Wyre Council,http://opendatacommunities.org/doc/district-council/wyre,13/06/2024,People and Places,Highways,133B,Glasdon UK LTD,22/04/2024,PE158716,535.37,0.00,"Supply one black phoenix memorial bench and plaque.Plaque inscription to read In Memory of Joe Hall 13/01/1950 to 30/10/2023Sit and take in the view, as I often loved to do.           Please deliver bench to Copse Road Depot, Copse Road, Fle",Seats and Shelters (Non BM)
Wyre Council,http://opendatacommunities.org/doc/district-council/wyre,13/06/2024,People and Places,Highways,133B,Glasdon UK LTD,18/04/2024,PE158597,456.30,0.00,Supply one black phoenix memorial bench and plaque. Plaque inscription to read   In Memory of John Clements (GOBBA) 04/10/1960 - 05/01/2024  Fylde Coast Fishing Legend   Please send proof to Alison Webster for authorisation   Please deliver bench to Copse,Seats and Shelters (Non BM)
Wyre Council,http://opendatacommunities.org/doc/district-council/wyre,13/06/2024,People and Places,Highways,133B,Glasdon UK LTD,03/04/2024,PE158166,535.38,0.00,"Supply one black phoenix memorial bench and plaque  Plaque inscription to read. In Memory of Liam Anyon from 17-08-1993 to 26-10-2023�A daddy, his girl and Fleetwood Beach�Please deliver bench to Copse Road Depot, Copse Road, Fleetwood.  P",Seats and Shelters (Non BM)
Wyre Council,http://opendatacommunities.org/doc/district-council/wyre,13/06/2024,People and Places,Cultural and Related Services,132A,WATER PLUS LTD,23/04/2024,PE158158,244.86,0.00,"3001212063 Ashdell Nursery Bowling Green  &amp; Pc`S, Victoria Road East, THORNTON CLEVELEYS, FY5 3SZ Sewerage Charge",Sewerage
Wyre Council,http://opendatacommunities.org/doc/district-council/wyre,13/06/2024,People and Places,Support Services,135B,WATER PLUS LTD,23/04/2024,PE158156,-11388.21,0.00,"3002029939 Wyre Civic Centre, Breck Road, POULTON-LE-FYLDE, FY6 7PU Sewerage Charge",Sewerage
Wyre Council,http://opendatacommunities.org/doc/district-council/wyre,13/06/2024,People and Places,Cultural and Related Services,132A,WATER PLUS LTD,23/04/2024,PE158156,-2409.22,0.00,"3001212063 Ashdell Nursery Bowling Green & Pc`S, Victoria Road East, THORNTON CLEVELEYS, FY5 3SZ Sewerage Charge",Sewerage
Wyre Council,http://opendatacommunities.org/doc/district-council/wyre,13/06/2024,People and Places,Environmental Services,132B,WATER PLUS LTD,17/04/2024,PE158241,25.15,0.00,"300172496X Cemetery, Moorland Road, POULTON LE FYLDE, FY6 7HA From  01-04-2024 to 01-04-2025 Sewerage Charge",Sewerage
Wyre Council,http://opendatacommunities.org/doc/district-council/wyre,13/06/2024,People and Places,Environmental Services,132B,WATER PLUS LTD,17/04/2024,PE158241,53.58,0.00,"3002905739 Ex Marine Grds Ladies C, The Esplanade, FLEETWOOD, FY7 6BG  From 01-04-2024 to 01-04-2025 Sewerage Charge",Sewerage
Wyre Council,http://opendatacommunities.org/doc/district-council/wyre,13/06/2024,Resources,Support Services,135B,Idox Software LTD,29/04/2024,RS158112,281.25,0.00,Professional Services: Mobile Apps Admin Training 10% discount applied off the package for a PO in July,Software Maintenance
Wyre Council,http://opendatacommunities.org/doc/district-council/wyre,13/06/2024,Resources,Support Services,135B,Idox Software LTD,29/04/2024,RS158112,1282.50,0.00,Professional Services: Project Management 10% discount applied off the package for a PO in July,Software Maintenance
Wyre Council,http://opendatacommunities.org/doc/district-council/wyre,13/06/2024,Resources,Support Services,135B,Idox Software LTD,29/04/2024,RS158112,2565.00,0.00,Professional Services: Technical Consultancy to install x6 Apps 10% discount applied off the package for a PO in July,Software Maintenance
Wyre Council,http://opendatacommunities.org/doc/district-council/wyre,13/06/2024,Resources,Support Services,135B,Idox Software LTD,19/04/2024,RS158666,1500.00,0.00,Annual support/ maintenance for 10x Uniform licences @ 150 per licence,Software Maintenance
Wyre Council,http://opendatacommunities.org/doc/district-council/wyre,13/06/2024,Resources,Support Services,135B,Idox Software LTD,17/04/2024,RS158598,7500.00,0.00,2 blocks of 5 licenses for Idox Uniform @ 3750 per block.,Software Maintenance
Wyre Council,http://opendatacommunities.org/doc/district-council/wyre,13/06/2024,Resources,Support Services,135B,Clear Skies software LTD,17/04/2024,RS158614,1796.87,0.00,BACAS Support from 01/01/2024 to 31/12/2024.,Software Maintenance
Wyre Council,http://opendatacommunities.org/doc/district-council/wyre,13/06/2024,Resources,Support Services,135B,CCS MEDIA LTD,19/04/2024,RS158639,2394.42,0.00,Patch My PC Starting Price - Enterprise - For fewer Than 714 Devices - 1 Year Subscription (ESD)Patch My PC Starting Price - Enterprise - For fewer Than 714 Devices - 1 Year Subscription (ESD) byPatch My PCEnd user contact details are required.Pri,Software Maintenance
Wyre Council,http://opendatacommunities.org/doc/district-council/wyre,13/06/2024,People and Places,Planning and Development Servs,132C,PSM Group,09/04/2024,PE158327,1300.00,0.00,replace assorted trader signs after water damage,Special Events
Wyre Council,http://opendatacommunities.org/doc/district-council/wyre,13/06/2024,People and Places,Support Services,135B,Dr Tree Surgeons,10/04/2024,PE158408,380.00,0.00,Quote 968 Quote ref: Tree survey of Windsor Road/ Walmsley Close open space Garstang by R Arrell.G1 &#8208; Prune to clear column & raise over roadside.       Clear column raise over path.200.00G2&#8208; Prune to provide 2M width clearan,Special Maintenance - Trees
Wyre Council,http://opendatacommunities.org/doc/district-council/wyre,13/06/2024,People and Places,Support Services,135B,Dr Tree Surgeons,09/04/2024,PE158359,510.00,0.00,quotation 966quotation reference :  Tree Survey of Villa Way (Canal side) under taken by R ArrellT1 &#8208; Remove tree. 130.00 G1 &#8208; Reduce back from dwelling & corrective Prune. 40.00 G1 &#8208; Re &#8208; pollard 6 x Willows. 180.0,Special Maintenance - Trees
Wyre Council,http://opendatacommunities.org/doc/district-council/wyre,13/06/2024,People and Places,Support Services,135B,Dr Tree Surgeons,09/04/2024,PE158360,140.00,0.00,Quote 967 Quote Ref: Tree Survey of Ashfied Ride Rise POS Catterall undertaken by R Arrell.6 &#8208; Crown raise and reduce from property. 20.00 7 &#8208; Crown raise and reduce from property. 40.00 G3 &#8208; crown raise trees. 80.00 1 &#8208;,Special Maintenance - Trees
Wyre Council,http://opendatacommunities.org/doc/district-council/wyre,13/06/2024,People and Places,Support Services,135B,HMA Tree Care,22/04/2024,PE158648,600.00,0.00,"Quote 816  Site Address YMCA , Windsor Road , Garstang , Lancashire , PR3 1ED  G1 Pine x 4 Reduce back selected branches to provide 2 metres clearance from building and lamp post. Crown raise to highway spec (5.2m). Deadwood throughout crown. 360.00  T1",Special Maintenance - Trees
Wyre Council,http://opendatacommunities.org/doc/district-council/wyre,13/06/2024,People and Places,Support Services,135B,T-Fer Tree Surgeons,09/04/2024,PE158333,120.00,0.00,"Quote 61 28/03/24 Pennine View , Great EcclestonOak � reduce from property 120Total net amount 120VAT @20% 0Quote total 120",Special Maintenance - Trees
Wyre Council,http://opendatacommunities.org/doc/district-council/wyre,13/06/2024,People and Places,Support Services,135B,T-Fer Tree Surgeons,09/04/2024,PE158331,980.00,0.00,"Quote 60 26/03/24Plantation Avenue - Knot endScheduled tree work. 980Total net amount 980VAT @ 20 % 0Quote total 980 All major tree works have been discussed with the tree contractor and include but not exclusively:  weather, chai",Special Maintenance - Trees
Wyre Council,http://opendatacommunities.org/doc/district-council/wyre,13/06/2024,People and Places,Support Services,135B,T-Fer Tree Surgeons,09/04/2024,PE158334,280.00,0.00,"Quote 59 26/03/24Duckworth Drive, Garstang Scheduled tree work. 280Total net value 280 VAT @20 0Quote total 280",Special Maintenance - Trees
Wyre Council,http://opendatacommunities.org/doc/district-council/wyre,13/06/2024,People and Places,Support Services,135B,T-Fer Tree Surgeons,09/04/2024,PE158332,530.00,0.00,"Quote 6202/04/24 - Broadwater Woods , Fleetwood (Treetops).1-Elm � lateral reduction        1202-Willow � lateral reduction1403-Willow � coppice 904-Oak � Reduce crown profile by 1.5m180Total net amount 530VAT @20% 0Q",Special Maintenance - Trees
Wyre Council,http://opendatacommunities.org/doc/district-council/wyre,13/06/2024,People and Places,Support Services,135B,T-Fer Tree Surgeons,29/04/2024,PE158862,280.00,0.00,17/04/24 Quote 69 - St Chads Church Poulton le FyldeX3 Horse chestnut � crown raise to 2.5mTotal net amount 280VAT & 20% 0Quote total 280,Special Maintenance - Trees
Wyre Council,http://opendatacommunities.org/doc/district-council/wyre,13/06/2024,People and Places,Support Services,135B,T-Fer Tree Surgeons,23/04/2024,PE158683,630.00,0.00,"Quote 64 04/04/24 Littlewood , Fleetwood X4 Sycamore deadwood, X1 Elm � deadwood, X1 Alder � deadwood. (refer to plan). 630Total net amount 630VAT @ 20% 0Quote total 630All major tree works have been discussed with the tree contrac",Special Maintenance - Trees
Wyre Council,http://opendatacommunities.org/doc/district-council/wyre,13/06/2024,People and Places,Support Services,135B,T-Fer Tree Surgeons,23/04/2024,PE158684,320.00,0.00,"Quote 58 26/03/24Stone Cross Gardens, GarstangNorway maple � reduce damaged primary branch by 50%320Total net amount 320VAT @20% 0Quote total 320",Special Maintenance - Trees
Wyre Council,http://opendatacommunities.org/doc/district-council/wyre,13/06/2024,People and Places,Support Services,135B,T-Fer Tree Surgeons,23/04/2024,PE158685,640.00,0.00,"Quote 63 04/04/24 Custom House Road, FleetwoodMature Poplar - reduce crown by approx. one 3rd.Total net amount 640VAT @20% 0Quote total640",Special Maintenance - Trees
Wyre Council,http://opendatacommunities.org/doc/district-council/wyre,13/06/2024,People and Places,Support Services,135B,T-Fer Tree Surgeons,17/04/2024,PE158610,980.00,0.00,"10/04/24 Vicarage Park , Poulton Quote 66Scheduled tree work All major tree works have been discussed with the tree contractor and include but not exclusively:  weather, chainsaw use, chipper, lifting and handling, manoeuvring, exposure to noise,",Special Maintenance - Trees
Wyre Council,http://opendatacommunities.org/doc/district-council/wyre,13/06/2024,Resources,Support Services,135B,Lyreco UK LTD,02/04/2024,RS158162,486.00,0.00,A4 Copier Paper,Stationery
Wyre Council,http://opendatacommunities.org/doc/district-council/wyre,13/06/2024,People and Places,Cultural and Related Services,132A,Lyreco UK LTD,03/04/2024,PE158163,40.85,0.00,MultiCopy Zero Carbon A3 white 80gsm @ 4.85 per ream,Stationery
Wyre Council,http://opendatacommunities.org/doc/district-council/wyre,13/06/2024,Resources,Housing General Fund,134A,Preston City Council,10/04/2024,RS158370,86.80,0.00,"Care and Repair formsAttendance Allowance forms, A4, 32pp, black and white on standard 80gsm copier paper then stapled into booklet - 100 copiesFoundations form, A4, 12pp, black and white on YELLOW 80gsm copier paper then stapled into booklet - 100 co",Stationery
Wyre Council,http://opendatacommunities.org/doc/district-council/wyre,13/06/2024,People and Places,Cultural and Related Services,132A,Bates Office Services Ltd,11/04/2024,PE157957,132.00,0.00,SECOND CLASS POSTAGE STAMPS BOOK OF 100,Stationery
Wyre Council,http://opendatacommunities.org/doc/district-council/wyre,13/06/2024,People and Places,Cultural and Related Services,132A,Bates Office Services Ltd,11/04/2024,PE157957,118.00,0.00,Stamps,Stationery
Wyre Council,http://opendatacommunities.org/doc/district-council/wyre,13/06/2024,Resources,Support Services,135B,Bates Office Services Ltd,09/04/2024,RS158357,7.40,0.00,Q CONNECT GEL PEN BLACK - PK10,Stationery
Wyre Council,http://opendatacommunities.org/doc/district-council/wyre,13/06/2024,Resources,Support Services,135B,Bates Office Services Ltd,09/04/2024,RS158357,1.30,0.00,Initiative Spring Action Staple Remover Safe Lock Black,Stationery
Wyre Council,http://opendatacommunities.org/doc/district-council/wyre,13/06/2024,Resources,Support Services,135B,Bates Office Services Ltd,09/04/2024,RS158357,2.07,0.00,"2024 Diary,A5,Two days per page-BLUE",Stationery
Wyre Council,http://opendatacommunities.org/doc/district-council/wyre,13/06/2024,Resources,Support Services,135B,Bates Office Services Ltd,05/04/2024,RS158120,48.45,0.00,5 packs A3 Laminating Pouches 150micron LM8922  Your ref SQ127304,Stationery
Wyre Council,http://opendatacommunities.org/doc/district-council/wyre,13/06/2024,People and Places,Support Services,135B,Amazon Business,12/04/2024,PE158465,7.03,0.00,items for John Bettle1 x heavy duty sticky tape dispenser,Stationery
Wyre Council,http://opendatacommunities.org/doc/district-council/wyre,13/06/2024,Resources,Support Services,135B,Amazon Business,23/04/2024,RS158678,11.44,0.00,2 x Q-Connect 250 ml Whiteboard Surface Cleaner,Stationery
Wyre Council,http://opendatacommunities.org/doc/district-council/wyre,13/06/2024,Resources,Support Services,135B,Amazon Business,23/04/2024,RS158678,4.99,0.00,100 Pcs A4 Plastic Punched Punch Pockets 30-35 Micron for Folders Filing,Stationery
Wyre Council,http://opendatacommunities.org/doc/district-council/wyre,13/06/2024,People and Places,Support Services,135B,Amazon Business,26/04/2024,PE158829,18.82,0.00,1 box A5  Envelopes requested by Julia Housing Options,Stationery
Wyre Council,http://opendatacommunities.org/doc/district-council/wyre,13/06/2024,People and Places,Support Services,135B,Amazon Business,16/04/2024,PE158583,6.59,0.00,"Amazon Business stationery order - Laminating pouches, Papermate, Blue-tack",Stationery
Wyre Council,http://opendatacommunities.org/doc/district-council/wyre,13/06/2024,People and Places,Support Services,135B,Amazon Business,16/04/2024,PE158496,27.30,0.00,Amazon business order - Papermate Pencils and Hook tape,Stationery
Wyre Council,http://opendatacommunities.org/doc/district-council/wyre,13/06/2024,People and Places,Support Services,135B,Amazon Business,16/04/2024,PE158495,2.82,0.00,"Amazon Business stationery order - Laminating pouches, Papermate, Blue-tack",Stationery
Wyre Council,http://opendatacommunities.org/doc/district-council/wyre,13/06/2024,People and Places,Support Services,135B,Amazon Business,16/04/2024,PE158584,17.72,0.00,"Amazon Business stationery order - Laminating pouches, Papermate, Blue-tack",Stationery
Wyre Council,http://opendatacommunities.org/doc/district-council/wyre,13/06/2024,People and Places,Support Services,135B,Amazon Business,03/04/2024,PE158099,27.70,0.00,"ESYLIFE 3 Pocket Hanging File Organiser, Wall Mounted Magazine File Holder, Wall Magazine Rack, A4 Paper Storage Letter Shelf, Silver",Stationery
Wyre Council,http://opendatacommunities.org/doc/district-council/wyre,13/06/2024,Resources,Central Services to the Public,131C,Amazon Business,08/04/2024,RS158257,16.46,0.00,Personalised Self Inking Signature Stamp,Stationery
Wyre Council,http://opendatacommunities.org/doc/district-council/wyre,13/06/2024,Resources,Support Services,135B,Amazon Business,22/04/2024,RS158415,9.99,0.00,"1 x FOCCTS 10 Packs Small Notepad A5, Kraft Cover Notebooks 5 Packs Blank Page/ 5 Lined Page (38 Sheets Each), Great Sketchbook Drawing Notebook, Classic Diary Note Pads.",Stationery
Wyre Council,http://opendatacommunities.org/doc/district-council/wyre,13/06/2024,Resources,Support Services,135B,Amazon Business,22/04/2024,RS158667,16.24,0.00,Pack of 25 Foolscap Manilla Document Storage Cases,Stationery
Wyre Council,http://opendatacommunities.org/doc/district-council/wyre,13/06/2024,People and Places,Current Assets,130B,Standard Fuel Oils,23/04/2024,PE158374,53245.67,0.00,"Supply Renewable Diesel  Delivered 8/4/24 36006 litres 1.4788ppl   Delivered to Wyre Council, Copse Road Depot, Copse Road, Fleetwood, FY7 6RP",Stock - Copse Road Fuel
Wyre Council,http://opendatacommunities.org/doc/district-council/wyre,13/06/2024,Resources,Current Assets,130B,Whistl Uk Limited,11/04/2024,RS158342,243.29,0.00, Postal charges 1st April 2024-31st March 2025,Stores Purchases
Wyre Council,http://opendatacommunities.org/doc/district-council/wyre,13/06/2024,Resources,Current Assets,130B,Whistl Uk Limited,11/04/2024,RS158342,3.20,0.00,Postal charges 1st April 2024-31st March 2025,Stores Purchases
Wyre Council,http://opendatacommunities.org/doc/district-council/wyre,13/06/2024,Resources,Current Assets,130B,Whistl Uk Limited,24/04/2024,RS158778,462.34,0.00, Postal charges 1st April 2024-31st March 2025,Stores Purchases
Wyre Council,http://opendatacommunities.org/doc/district-council/wyre,13/06/2024,Resources,Current Assets,130B,Whistl Uk Limited,24/04/2024,RS158778,5.00,0.00, Postal charges 1st April 2024-31st March 2025,Stores Purchases
Wyre Council,http://opendatacommunities.org/doc/district-council/wyre,13/06/2024,Resources,Current Assets,130B,Whistl Uk Limited,17/04/2024,RS158587,293.35,0.00, Postal charges 1st April 2024-31st March 2025,Stores Purchases
Wyre Council,http://opendatacommunities.org/doc/district-council/wyre,13/06/2024,Resources,Current Assets,130B,Whistl Uk Limited,17/04/2024,RS158587,12.70,0.00, Postal charges 1st April 2024-31st March 2025,Stores Purchases
Wyre Council,http://opendatacommunities.org/doc/district-council/wyre,13/06/2024,Resources,Current Assets,130B,Whistl Uk Limited,05/04/2024,RS158191,448.42,0.00,Postal charges 01/04/2023-31/03/2024,Stores Purchases
Wyre Council,http://opendatacommunities.org/doc/district-council/wyre,13/06/2024,Resources,Current Assets,130B,Whistl Uk Limited,05/04/2024,RS158191,3.20,0.00,Postal charges 01/04/2023-31/03/2024,Stores Purchases
Wyre Council,http://opendatacommunities.org/doc/district-council/wyre,13/06/2024,Resources,Current Assets,130B,Pitney Bowes LTD  Postage By Phone,05/04/2024,RS158261,1001.20,0.00,Franking maching,Stores Purchases
Wyre Council,http://opendatacommunities.org/doc/district-council/wyre,13/06/2024,People and Places,Cultural and Related Services,132A,WATER PLUS LTD,23/04/2024,PE158156,-779.13,0.00,"3001212063 Ashdell Nursery Bowling Green & Pc`S, Victoria Road East, THORNTON CLEVELEYS, FY5 3SZ Drainage Charge",Surface Water/Highway Drainage
Wyre Council,http://opendatacommunities.org/doc/district-council/wyre,13/06/2024,People and Places,Cultural and Related Services,132A,WATER PLUS LTD,17/04/2024,PE158241,161.43,0.00,"3001539925 Cottam Hall Pavilion, Blackpool Old Rd, Poulton Le Fylde,  LANCASHIRE, FY5 3SZ From 01-04-2024 to 01-04-2025 Drainage Charge",Surface Water/Highway Drainage
Wyre Council,http://opendatacommunities.org/doc/district-council/wyre,13/06/2024,People and Places,Environmental Services,132B,WATER PLUS LTD,17/04/2024,PE158241,22.11,0.00,"300172496X Cemetery, Moorland Road, POULTON LE FYLDE, FY6 7HA From  01-04-2024 to 01-04-2025 Drainage Charge",Surface Water/Highway Drainage
Wyre Council,http://opendatacommunities.org/doc/district-council/wyre,13/06/2024,People and Places,Cultural and Related Services,132A,WATER PLUS LTD,17/04/2024,PE158241,4229.51,0.00,"3001673974 Wbc Car Park, Fleetwood Road  North, THORNTON CLEVELEYS, FY5 4AB From 01-04-2024 to 01-04-2025 Drainage  Charge",Surface Water/Highway Drainage
Wyre Council,http://opendatacommunities.org/doc/district-council/wyre,13/06/2024,People and Places,Environmental Services,132B,WATER PLUS LTD,17/04/2024,PE158241,47.11,0.00,"3002905739 Ex Marine Grds Ladies C, The Esplanade, FLEETWOOD, FY7 6BG  From 01-04-2024 to 01-04-2025 Drainage Charge",Surface Water/Highway Drainage
Wyre Council,http://opendatacommunities.org/doc/district-council/wyre,13/06/2024,People and Places,Environmental Services,132B,WATER PLUS LTD,17/04/2024,PE158241,893.70,0.00,"3001643714 Conveniences Adjacent, The Esplanade, FLEETWOOD, FY7 6HF From  01-04-2024 to 01-04-2025 Drainage Charge",Surface Water/Highway Drainage
Wyre Council,http://opendatacommunities.org/doc/district-council/wyre,13/06/2024,People and Places,Environmental Services,132B,WATER PLUS LTD,17/04/2024,PE158241,161.43,0.00,"3001706112 82 High Street, Great Eccleston, PRESTON LANCASHIRE, PR3 0YB  From 01-04-2024 to 01-04-2025 Drainage Charge",Surface Water/Highway Drainage
Wyre Council,http://opendatacommunities.org/doc/district-council/wyre,13/06/2024,People and Places,Support Services,135B,WATER PLUS LTD,17/04/2024,PE158241,29516.50,0.00,"3001828455 Wyre Civic Centre, Breck Road, POULTON-LE-FYLDE, FY6 7PU From  01-04-2024 to 01-04-2025 Drainage Charge",Surface Water/Highway Drainage
Wyre Council,http://opendatacommunities.org/doc/district-council/wyre,13/06/2024,People and Places,Cultural and Related Services,132A,WATER PLUS LTD,17/04/2024,PE158241,48.43,0.00,"3000056165 Public Conveniences, The New Wave, North Promenade,  THORNTON-CLEVELEYS, FY5 1LW From 01-04-2024 to 01-04-2025 Drainage Charge",Surface Water/Highway Drainage
Wyre Council,http://opendatacommunities.org/doc/district-council/wyre,13/06/2024,People and Places,Cultural and Related Services,132A,WATER PLUS LTD,17/04/2024,PE158241,2022.07,0.00,"3003059106 Marine Garden &amp; Lake, The Esplanade, FLEETWOOD, FY7 6DN  From 01-04-2024 to 01-04-2025 Drainage Charge",Surface Water/Highway Drainage
Wyre Council,http://opendatacommunities.org/doc/district-council/wyre,13/06/2024,People and Places,Planning and Development Servs,132C,WATER PLUS LTD,17/04/2024,PE158241,8320.35,0.00,"3001924233 Copse Road, 50 Fleetwood, FY7 6RP From 01-04-2024 to  01-04-2025 Drainage Charge",Surface Water/Highway Drainage
Wyre Council,http://opendatacommunities.org/doc/district-council/wyre,13/06/2024,People and Places,Planning and Development Servs,132C,WATER PLUS LTD,17/04/2024,PE158241,161.43,0.00,"3000155848 Store 2 1st Floor, 24 Adelaide Street, FLEETWOOD, FY7 6AB From  01-04-2024 to 01-04-2025 Drainage Charge",Surface Water/Highway Drainage
Wyre Council,http://opendatacommunities.org/doc/district-council/wyre,13/06/2024,People and Places,Planning and Development Servs,132C,WATER PLUS LTD,17/04/2024,PE158241,161.43,0.00,"3000362231 Store 9 26 Adelaide Street, FLEETWOOD, FY7 6AB From 01-04-2024  to 01-04-2025 Drainage Charge",Surface Water/Highway Drainage
Wyre Council,http://opendatacommunities.org/doc/district-council/wyre,13/06/2024,People and Places,Planning and Development Servs,132C,WATER PLUS LTD,17/04/2024,PE158241,161.43,0.00,"3002941891 Store 5 2nd Floor, 24 Adelaide Street, FLEETWOOD, FY7 6AB From  01-04-2024 to 01-04-2025 Drainage Charge",Surface Water/Highway Drainage
Wyre Council,http://opendatacommunities.org/doc/district-council/wyre,13/06/2024,People and Places,Planning and Development Servs,132C,WATER PLUS LTD,17/04/2024,PE158241,161.43,0.00,"3001923830 Store 3 2nd Floor, 24 Adelaide Street, FLEETWOOD, FY7 6AB From  01-04-2024 to 01-04-2025 Drainage Charge",Surface Water/Highway Drainage
Wyre Council,http://opendatacommunities.org/doc/district-council/wyre,13/06/2024,People and Places,Cultural and Related Services,132A,WATER PLUS LTD,17/04/2024,PE158241,161.43,0.00,"3001406208 Jubilee Gardens, Victoria Square, THORNTON-CLEVELEYS, FY5 1AY  From 01-04-2024 to 01-04-2025 Drainage Charge",Surface Water/Highway Drainage
Wyre Council,http://opendatacommunities.org/doc/district-council/wyre,13/06/2024,People and Places,Planning and Development Servs,132C,WATER PLUS LTD,17/04/2024,PE158241,161.43,0.00,"3001923849 Store 4 2nd Floor, 24 Adelaide Street, FLEETWOOD, FY7 6AB From  01-04-2024 to 01-04-2025 Drainage Charge",Surface Water/Highway Drainage
Wyre Council,http://opendatacommunities.org/doc/district-council/wyre,13/06/2024,People and Places,Planning and Development Servs,132C,WATER PLUS LTD,17/04/2024,PE158241,9403.57,0.00,"3001923881 Fleetwood Market, Adelaide Street, FLEETWOOD, FY7 6AB From  01-04-2024 to 01-04-2025 Drainage Charge",Surface Water/Highway Drainage
Wyre Council,http://opendatacommunities.org/doc/district-council/wyre,13/06/2024,People and Places,Planning and Development Servs,132C,WATER PLUS LTD,17/04/2024,PE158241,161.43,0.00,"3002901229 Store 1 !St Floor, 24 Adelaide Street, FLEETWOOD, FY7 6AB From  01-04-2024 to 01-04-2025 Drainage Charge",Surface Water/Highway Drainage
Wyre Council,http://opendatacommunities.org/doc/district-council/wyre,13/06/2024,People and Places,Parking Services,133F,WATER PLUS LTD,17/04/2024,PE158241,4229.51,0.00,"3001673885 Derby Road, THORNTON-CLEVELEYS, FY5 1DE From 01-04-2024 to  01-04-2025 Drainage Charge",Surface Water/Highway Drainage
Wyre Council,http://opendatacommunities.org/doc/district-council/wyre,13/06/2024,People and Places,Parking Services,133F,WATER PLUS LTD,17/04/2024,PE158241,180.26,0.00,"3001673893 Car Park, Derby Road, POULTON LE FYLDE, FY6 7AF From  01-04-2024 to 01-04-2025 Drainage Charge",Surface Water/Highway Drainage
